{"text_format":"1","workbook":"xlsx","n_sheets":3,"sheets":["قيود يومية","1","2"],"not_rendered":{"charts":0,"images":0,"macros":0,"external_links":0,"defined_names":35,"comments":0,"pivot_tables":0},"unopened":[],"bounds":{"document_bytes":16777216,"sheet_cells":100000,"rows_first":2000,"rows_last":500,"rows_between":2000,"halvings":0,"cell_chars":16384,"cell_head_chars":4096},"cells_cut":0,"cells_raw":0,"read":"whole","date_system":"1900"}

{"sheet":"قيود يومية","index":0,"n_rows":5729,"n_cols":12,"rows_kept":5729,"cut":false,"hidden":false,"merged":[[1,3,1,4],[2,3,2,4],[3,3,3,4],[6,5,8,5],[6,0,8,0],[6,1,8,1],[6,2,8,2],[6,3,8,3],[6,4,8,4],[1,7,4,7],[6,6,8,6],[6,7,8,7],[6,8,6,10],[6,11,8,11],[7,8,8,8],[7,9,7,10],[1,9,1,10],[2,9,2,10],[3,9,3,10],[4,9,4,10]]}
[]
[null,null,null,null,null,null,null,"قيود اليومية"]
[]
[]
[]
[]
["م","رقم السند قبض صرف فاتورة","كود العميل","نوع","التاريخ","اســـــــم العميـــــــل اســـــــم الشركــــــة","الوصف","تفاصيل السند / بيان الحركة","الحركـــــة",null,null,"الرصيد العام لحركات النقدية بالصندوق"]
[null,null,null,null,null,null,null,null,"قبض ( مدين )","انواع سندات الصرف ( الدائنة )"]
[null,null,null,null,null,null,null,null,null,"ص / متنوع","ص / ايجار / ....."]
[]
[1,250,1,"قبض","2020-08-25","محمد احمد","بضائع","شراؤ بضائع",500,null,null,{"$f":"IF(AND(I11=\"\",J11=\"\"),\"\",L10+I11-J11-K11)","v":500}]
[2,251,1,"قبض","2020-08-26","محمد احمد","بضائع","شراؤ بضائع",501,null,null,1001]
[3,252,1,"قبض","2020-08-27","محمد احمد","بضائع","شراؤ بضائع",502,null,null,1503]
[4,253,1,"قبض","2020-08-28","محمد احمد","بضائع","شراؤ بضائع",503,null,null,2006]
[5,254,1,"قبض","2020-08-29","محمد احمد","بضائع","شراؤ بضائع",504,null,null,2510]
[6,255,1,"قبض","2020-08-30","محمد احمد","بضائع","شراؤ بضائع",505,null,null,3015]
[7,300,2,"صؤف","2020-10-15","خالد علي","مخزن","دفعات",0,300,null,2715]
[8,300,2,"صؤف","2020-10-16","خالد علي","مخزن","دفعات",0,300,null,2415]
[9,300,2,"صؤف","2020-10-17","خالد علي","مخزن","دفعات",0,300,null,2115]
[10,300,2,"صؤف","2020-10-18","خالد علي","مخزن","دفعات",0,300,null,1815]
[11,300,2,"صؤف","2020-10-19","خالد علي","مخزن","دفعات",0,300,null,1515]
[12,300,2,"صؤف","2020-10-20","خالد علي","مخزن","دفعات",0,300,null,1215]
[13,300,2,"صؤف","2020-10-21","خالد علي","مخزن","دفعات",0,300,null,915]
[14,300,2,"صؤف","2020-10-22","خالد علي","مخزن","دفعات",0,300,null,615]
[15,null,null,null,null,null,null,null,null,null,null,""]
[16,null,null,null,null,null,null,null,null,null,null,""]
[17,null,null,null,null,null,null,null,null,null,null,""]
[18,null,null,null,null,null,null,null,null,null,null,""]
[19,null,null,null,null,null,null,null,null,null,null,""]
[20,null,null,null,null,null,null,null,null,null,null,""]
[21,null,null,null,null,null,null,null,null,null,null,""]
[22,null,null,null,null,null,null,null,null,null,null,""]
[23,null,null,null,null,null,null,null,null,null,null,""]
[24,null,null,null,null,null,null,null,null,null,null,""]
[25,null,null,null,null,null,null,null,null,null,null,""]
[26,null,null,null,null,null,null,null,null,null,null,""]
[27,null,null,null,null,null,null,null,null,null,null,""]
[28,null,null,null,null,null,null,null,null,null,null,""]
[29,null,null,null,null,null,null,null,null,null,null,""]
[30,null,null,null,null,null,null,null,null,null,null,""]
[31,null,null,null,null,null,null,null,null,null,null,""]
[32,null,null,null,null,null,null,null,null,null,null,""]
[33,null,null,null,null,null,null,null,null,null,null,""]
[34,null,null,null,null,null,null,null,null,null,null,""]
[35,null,null,null,null,null,null,null,null,null,null,""]
[36,null,null,null,null,null,null,null,null,null,null,""]
[37,null,null,null,null,null,null,null,null,null,null,""]
[38,null,null,null,null,null,null,null,null,null,null,""]
[39,null,null,null,null,null,null,null,null,null,null,""]
[40,null,null,null,null,null,null,null,null,null,null,""]
[41,null,null,null,null,null,null,null,null,null,null,""]
[42,null,null,null,null,null,null,null,null,null,null,""]
[43,null,null,null,null,null,null,null,null,null,null,""]
[44,null,null,null,null,null,null,null,null,null,null,""]
[45,null,null,null,null,null,null,null,null,null,null,""]
[46,null,null,null,null,null,null,null,null,null,null,""]
[47,null,null,null,null,null,null,null,null,null,null,""]
[48,null,null,null,null,null,null,null,null,null,null,""]
[49,null,null,null,null,null,null,null,null,null,null,""]
[50,null,null,null,null,null,null,null,null,null,null,""]
[51,null,null,null,null,null,null,null,null,null,null,""]
[52,null,null,null,null,null,null,null,null,null,null,""]
[53,null,null,null,null,null,null,null,null,null,null,""]
[54,null,null,null,null,null,null,null,null,null,null,""]
[55,null,null,null,null,null,null,null,null,null,null,""]
[56,null,null,null,null,null,null,null,null,null,null,""]
[57,null,null,null,null,null,null,null,null,null,null,""]
[58,null,null,null,null,null,null,null,null,null,null,""]
[59,null,null,null,null,null,null,null,null,null,null,""]
[60,null,null,null,null,null,null,null,null,null,null,""]
[61,null,null,null,null,null,null,null,null,null,null,""]
[62,null,null,null,null,null,null,null,null,null,null,""]
[63,null,null,null,null,null,null,null,null,null,null,""]
[64,null,null,null,null,null,null,null,null,null,null,""]
[65,null,null,null,null,null,null,null,null,null,null,{"$f":"IF(AND(I75=\"\",J75=\"\"),\"\",L74+I75-J75-K75)","v":""}]
[66,null,null,null,null,null,null,null,null,null,null,""]
[67,null,null,null,null,null,null,null,null,null,null,""]
[68,null,null,null,null,null,null,null,null,null,null,""]
[69,null,null,null,null,null,null,null,null,null,null,""]
[70,null,null,null,null,null,null,null,null,null,null,""]
[71,null,null,null,null,null,null,null,null,null,null,""]
[72,null,null,null,null,null,null,null,null,null,null,""]
[73,null,null,null,null,null,null,null,null,null,null,""]
[74,null,null,null,null,null,null,null,null,null,null,""]
[75,null,null,null,null,null,null,null,null,null,null,""]
[76,null,null,null,null,null,null,null,null,null,null,""]
[77,null,null,null,null,null,null,null,null,null,null,""]
[78,null,null,null,null,null,null,null,null,null,null,""]
[79,null,null,null,null,null,null,null,null,null,null,""]
[80,null,null,null,null,null,null,null,null,null,null,""]
[81,null,null,null,null,null,null,null,null,null,null,""]
[82,null,null,null,null,null,null,null,null,null,null,""]
[83,null,null,null,null,null,null,null,null,null,null,""]
[84,null,null,null,null,null,null,null,null,null,null,""]
[85,null,null,null,null,null,null,null,null,null,null,""]
[86,null,null,null,null,null,null,null,null,null,null,""]
[87,null,null,null,null,null,null,null,null,null,null,""]
[88,null,null,null,null,null,null,null,null,null,null,""]
[89,null,null,null,null,null,null,null,null,null,null,""]
[90,null,null,null,null,null,null,null,null,null,null,""]
[91,null,null,null,null,null,null,null,null,null,null,""]
[92,null,null,null,null,null,null,null,null,null,null,""]
[93,null,null,null,null,null,null,null,null,null,null,""]
[94,null,null,null,null,null,null,null,null,null,null,""]
[95,null,null,null,null,null,null,null,null,null,null,""]
[96,null,null,null,null,null,null,null,null,null,null,""]
[97,null,null,null,null,null,null,null,null,null,null,""]
[98,null,null,null,null,null,null,null,null,null,null,""]
[99,null,null,null,null,null,null,null,null,null,null,""]
[100,null,null,null,null,null,null,null,null,null,null,""]
[101,null,null,null,null,null,null,null,null,null,null,""]
[102,null,null,null,null,null,null,null,null,null,null,""]
[103,null,null,null,null,null,null,null,null,null,null,""]
[104,null,null,null,null,null,null,null,null,null,null,""]
[105,null,null,null,null,null,null,null,null,null,null,""]
[106,null,null,null,null,null,null,null,null,null,null,""]
[107,null,null,null,null,null,null,null,null,null,null,""]
[108,null,null,null,null,null,null,null,null,null,null,""]
[109,null,null,null,null,null,null,null,null,null,null,""]
[110,null,null,null,null,null,null,null,null,null,null,""]
[111,null,null,null,null,null,null,null,null,null,null,""]
[112,null,null,null,null,null,null,null,null,null,null,""]
[113,null,null,null,null,null,null,null,null,null,null,""]
[114,null,null,null,null,null,null,null,null,null,null,""]
[115,null,null,null,null,null,null,null,null,null,null,""]
[116,null,null,null,null,null,null,null,null,null,null,""]
[117,null,null,null,null,null,null,null,null,null,null,""]
[118,null,null,null,null,null,null,null,null,null,null,""]
[119,null,null,null,null,null,null,null,null,null,null,""]
[120,null,null,null,null,null,null,null,null,null,null,""]
[121,null,null,null,null,null,null,null,null,null,null,""]
[122,null,null,null,null,null,null,null,null,null,null,""]
[123,null,null,null,null,null,null,null,null,null,null,""]
[124,null,null,null,null,null,null,null,null,null,null,""]
[125,null,null,null,null,null,null,null,null,null,null,""]
[126,null,null,null,null,null,null,null,null,null,null,""]
[127,null,null,null,null,null,null,null,null,null,null,""]
[128,null,null,null,null,null,null,null,null,null,null,""]
[129,null,null,null,null,null,null,null,null,null,null,{"$f":"IF(AND(I139=\"\",J139=\"\"),\"\",L138+I139-J139-K139)","v":""}]
[130,null,null,null,null,null,null,null,null,null,null,""]
[131,null,null,null,null,null,null,null,null,null,null,""]
[132,null,null,null,null,null,null,null,null,null,null,""]
[133,null,null,null,null,null,null,null,null,null,null,""]
[134,null,null,null,null,null,null,null,null,null,null,""]
[135,null,null,null,null,null,null,null,null,null,null,""]
[136,null,null,null,null,null,null,null,null,null,null,""]
[137,null,null,null,null,null,null,null,null,null,null,""]
[138,null,null,null,null,null,null,null,null,null,null,""]
[139,null,null,null,null,null,null,null,null,null,null,""]
[140,null,null,null,null,null,null,null,null,null,null,""]
[141,null,null,null,null,null,null,null,null,null,null,""]
[142,null,null,null,null,null,null,null,null,null,null,""]
[143,null,null,null,null,null,null,null,null,null,null,""]
[144,null,null,null,null,null,null,null,null,null,null,""]
[145,null,null,null,null,null,null,null,null,null,null,""]
[146,null,null,null,null,null,null,null,null,null,null,""]
[147,null,null,null,null,null,null,null,null,null,null,""]
[148,null,null,null,null,null,null,null,null,null,null,""]
[149,null,null,null,null,null,null,null,null,null,null,""]
[150,null,null,null,null,null,null,null,null,null,null,""]
[151,null,null,null,null,null,null,null,null,null,null,""]
[152,null,null,null,null,null,null,null,null,null,null,""]
[153,null,null,null,null,null,null,null,null,null,null,""]
[154,null,null,null,null,null,null,null,null,null,null,""]
[155,null,null,null,null,null,null,null,null,null,null,""]
[156,null,null,null,null,null,null,null,null,null,null,""]
[157,null,null,null,null,null,null,null,null,null,null,""]
[158,null,null,null,null,null,null,null,null,null,null,""]
[159,null,null,null,null,null,null,null,null,null,null,""]
[160,null,null,null,null,null,null,null,null,null,null,""]
[161,null,null,null,null,null,null,null,null,null,null,""]
[162,null,null,null,null,null,null,null,null,null,null,""]
[163,null,null,null,null,null,null,null,null,null,null,""]
[164,null,null,null,null,null,null,null,null,null,null,""]
[165,null,null,null,null,null,null,null,null,null,null,""]
[166,null,null,null,null,null,null,null,null,null,null,""]
[167,null,null,null,null,null,null,null,null,null,null,""]
[168,null,null,null,null,null,null,null,null,null,null,""]
[169,null,null,null,null,null,null,null,null,null,null,""]
[170,null,null,null,null,null,null,null,null,null,null,""]
[171,null,null,null,null,null,null,null,null,null,null,""]
[172,null,null,null,null,null,null,null,null,null,null,""]
[173,null,null,null,null,null,null,null,null,null,null,""]
[174,null,null,null,null,null,null,null,null,null,null,""]
[175,null,null,null,null,null,null,null,null,null,null,""]
[176,null,null,null,null,null,null,null,null,null,null,""]
[177,null,null,null,null,null,null,null,null,null,null,""]
[178,null,null,null,null,null,null,null,null,null,null,""]
[179,null,null,null,null,null,null,null,null,null,null,""]
[180,null,null,null,null,null,null,null,null,null,null,""]
[181,null,null,null,null,null,null,null,null,null,null,""]
[182,null,null,null,null,null,null,null,null,null,null,""]
[183,null,null,null,null,null,null,null,null,null,null,""]
[184,null,null,null,null,null,null,null,null,null,null,""]
[185,null,null,null,null,null,null,null,null,null,null,""]
[186,null,null,null,null,null,null,null,null,null,null,""]
[187,null,null,null,null,null,null,null,null,null,null,""]
[188,null,null,null,null,null,null,null,null,null,null,""]
[189,null,null,null,null,null,null,null,null,null,null,""]
[190,null,null,null,null,null,null,null,null,null,null,""]
[191,null,null,null,null,null,null,null,null,null,null,""]
[192,null,null,null,null,null,null,null,null,null,null,""]
[193,null,null,null,null,null,null,null,null,null,null,{"$f":"IF(AND(I203=\"\",J203=\"\"),\"\",L202+I203-J203-K203)","v":""}]
[194,null,null,null,null,null,null,null,null,null,null,""]
[195,null,null,null,null,null,null,null,null,null,null,""]
[196,null,null,null,null,null,null,null,null,null,null,""]
[197,null,null,null,null,null,null,null,null,null,null,""]
[198,null,null,null,null,null,null,null,null,null,null,""]
[199,null,null,null,null,null,null,null,null,null,null,""]
[200,null,null,null,null,null,null,null,null,null,null,""]
[201,null,null,null,null,null,null,null,null,null,null,""]
[202,null,null,null,null,null,null,null,null,null,null,""]
[203,null,null,null,null,null,null,null,null,null,null,""]
[204,null,null,null,null,null,null,null,null,null,null,""]
[205,null,null,null,null,null,null,null,null,null,null,""]
[206,null,null,null,null,null,null,null,null,null,null,""]
[207,null,null,null,null,null,null,null,null,null,null,""]
[208,null,null,null,null,null,null,null,null,null,null,""]
[209,null,null,null,null,null,null,null,null,null,null,""]
[210,null,null,null,null,null,null,null,null,null,null,""]
[211,null,null,null,null,null,null,null,null,null,null,""]
[212,null,null,null,null,null,null,null,null,null,null,""]
[213,null,null,null,null,null,null,null,null,null,null,""]
[214,null,null,null,null,null,null,null,null,null,null,""]
[215,null,null,null,null,null,null,null,null,null,null,""]
[216,null,null,null,null,null,null,null,null,null,null,""]
[217,null,null,null,null,null,null,null,null,null,null,""]
[218,null,null,null,null,null,null,null,null,null,null,""]
[219,null,null,null,null,null,null,null,null,null,null,""]
[220,null,null,null,null,null,null,null,null,null,null,""]
[221,null,null,null,null,null,null,null,null,null,null,""]
[222,null,null,null,null,null,null,null,null,null,null,""]
[223,null,null,null,null,null,null,null,null,null,null,""]
[224,null,null,null,null,null,null,null,null,null,null,""]
[225,null,null,null,null,null,null,null,null,null,null,""]
[226,null,null,null,null,null,null,null,null,null,null,""]
[227,null,null,null,null,null,null,null,null,null,null,""]
[228,null,null,null,null,null,null,null,null,null,null,""]
[229,null,null,null,null,null,null,null,null,null,null,""]
[230,null,null,null,null,null,null,null,null,null,null,""]
[231,null,null,null,null,null,null,null,null,null,null,""]
[232,null,null,null,null,null,null,null,null,null,null,""]
[233,null,null,null,null,null,null,null,null,null,null,""]
[234,null,null,null,null,null,null,null,null,null,null,""]
[235,null,null,null,null,null,null,null,null,null,null,""]
[236,null,null,null,null,null,null,null,null,null,null,""]
[237,null,null,null,null,null,null,null,null,null,null,""]
[238,null,null,null,null,null,null,null,null,null,null,""]
[239,null,null,null,null,null,null,null,null,null,null,""]
[240,null,null,null,null,null,null,null,null,null,null,""]
[241,null,null,null,null,null,null,null,null,null,null,""]
[242,null,null,null,null,null,null,null,null,null,null,""]
[243,null,null,null,null,null,null,null,null,null,null,""]
[244,null,null,null,null,null,null,null,null,null,null,""]
[245,null,null,null,null,null,null,null,null,null,null,""]
[246,null,null,null,null,null,null,null,null,null,null,""]
[247,null,null,null,null,null,null,null,null,null,null,""]
[248,null,null,null,null,null,null,null,null,null,null,""]
[249,null,null,null,null,null,null,null,null,null,null,""]
[250,null,null,null,null,null,null,null,null,null,null,""]
[251,null,null,null,null,null,null,null,null,null,null,""]
[252,null,null,null,null,null,null,null,null,null,null,""]
[253,null,null,null,null,null,null,null,null,null,null,""]
[254,null,null,null,null,null,null,null,null,null,null,""]
[255,null,null,null,null,null,null,null,null,null,null,""]
[256,null,null,null,null,null,null,null,null,null,null,""]
[257,null,null,null,null,null,null,null,null,null,null,{"$f":"IF(AND(I267=\"\",J267=\"\"),\"\",L266+I267-J267-K267)","v":""}]
[258,null,null,null,null,null,null,null,null,null,null,""]
[259,null,null,null,null,null,null,null,null,null,null,""]
[260,null,null,null,null,null,null,null,null,null,null,""]
[261,null,null,null,null,null,null,null,null,null,null,""]
[262,null,null,null,null,null,null,null,null,null,null,""]
[263,null,null,null,null,null,null,null,null,null,null,""]
[264,null,null,null,null,null,null,null,null,null,null,""]
[265,null,null,null,null,null,null,null,null,null,null,""]
[266,null,null,null,null,null,null,null,null,null,null,""]
[267,null,null,null,null,null,null,null,null,null,null,""]
[268,null,null,null,null,null,null,null,null,null,null,""]
[269,null,null,null,null,null,null,null,null,null,null,""]
[270,null,null,null,null,null,null,null,null,null,null,""]
[271,null,null,null,null,null,null,null,null,null,null,""]
[272,null,null,null,null,null,null,null,null,null,null,""]
[273,null,null,null,null,null,null,null,null,null,null,""]
[274,null,null,null,null,null,null,null,null,null,null,""]
[275,null,null,null,null,null,null,null,null,null,null,""]
[276,null,null,null,null,null,null,null,null,null,null,""]
[277,null,null,null,null,null,null,null,null,null,null,""]
[278,null,null,null,null,null,null,null,null,null,null,""]
[279,null,null,null,null,null,null,null,null,null,null,""]
[280,null,null,null,null,null,null,null,null,null,null,""]
[281,null,null,null,null,null,null,null,null,null,null,""]
[282,null,null,null,null,null,null,null,null,null,null,""]
[283,null,null,null,null,null,null,null,null,null,null,""]
[284,null,null,null,null,null,null,null,null,null,null,""]
[285,null,null,null,null,null,null,null,null,null,null,""]
[286,null,null,null,null,null,null,null,null,null,null,""]
[287,null,null,null,null,null,null,null,null,null,null,""]
[288,null,null,null,null,null,null,null,null,null,null,""]
[289,null,null,null,null,null,null,null,null,null,null,""]
[290,null,null,null,null,null,null,null,null,null,null,""]
[291,null,null,null,null,null,null,null,null,null,null,""]
[292,null,null,null,null,null,null,null,null,null,null,""]
[293,null,null,null,null,null,null,null,null,null,null,""]
[294,null,null,null,null,null,null,null,null,null,null,""]
[295,null,null,null,null,null,null,null,null,null,null,""]
[296,null,null,null,null,null,null,null,null,null,null,""]
[297,null,null,null,null,null,null,null,null,null,null,""]
[298,null,null,null,null,null,null,null,null,null,null,""]
[299,null,null,null,null,null,null,null,null,null,null,""]
[300,null,null,null,null,null,null,null,null,null,null,""]
[301,null,null,null,null,null,null,null,null,null,null,""]
[302,null,null,null,null,null,null,null,null,null,null,""]
[303,null,null,null,null,null,null,null,null,null,null,""]
[304,null,null,null,null,null,null,null,null,null,null,""]
[305,null,null,null,null,null,null,null,null,null,null,""]
[306,null,null,null,null,null,null,null,null,null,null,""]
[307,null,null,null,null,null,null,null,null,null,null,""]
[308,null,null,null,null,null,null,null,null,null,null,""]
[309,null,null,null,null,null,null,null,null,null,null,""]
[310,null,null,null,null,null,null,null,null,null,null,""]
[311,null,null,null,null,null,null,null,null,null,null,""]
[312,null,null,null,null,null,null,null,null,null,null,""]
[313,null,null,null,null,null,null,null,null,null,null,""]
[314,null,null,null,null,null,null,null,null,null,null,""]
[315,null,null,null,null,null,null,null,null,null,null,""]
[316,null,null,null,null,null,null,null,null,null,null,""]
[317,null,null,null,null,null,null,null,null,null,null,""]
[318,null,null,null,null,null,null,null,null,null,null,""]
[319,null,null,null,null,null,null,null,null,null,null,""]
[320,null,null,null,null,null,null,null,null,null,null,""]
[321,null,null,null,null,null,null,null,null,null,null,{"$f":"IF(AND(I331=\"\",J331=\"\"),\"\",L330+I331-J331-K331)","v":""}]
[322,null,null,null,null,null,null,null,null,null,null,""]
[323,null,null,null,null,null,null,null,null,null,null,""]
[324,null,null,null,null,null,null,null,null,null,null,""]
[325,null,null,null,null,null,null,null,null,null,null,""]
[326,null,null,null,null,null,null,null,null,null,null,""]
[327,null,null,null,null,null,null,null,null,null,null,""]
[328,null,null,null,null,null,null,null,null,null,null,""]
[329,null,null,null,null,null,null,null,null,null,null,""]
[330,null,null,null,null,null,null,null,null,null,null,""]
[331,null,null,null,null,null,null,null,null,null,null,""]
[332,null,null,null,null,null,null,null,null,null,null,""]
[333,null,null,null,null,null,null,null,null,null,null,""]
[334,null,null,null,null,null,null,null,null,null,null,""]
[335,null,null,null,null,null,null,null,null,null,null,""]
[336,null,null,null,null,null,null,null,null,null,null,""]
[337,null,null,null,null,null,null,null,null,null,null,""]
[338,null,null,null,null,null,null,null,null,null,null,""]
[339,null,null,null,null,null,null,null,null,null,null,""]
[340,null,null,null,null,null,null,null,null,null,null,""]
[341,null,null,null,null,null,null,null,null,null,null,""]
[342,null,null,null,null,null,null,null,null,null,null,""]
[343,null,null,null,null,null,null,null,null,null,null,""]
[344,null,null,null,null,null,null,null,null,null,null,""]
[345,null,null,null,null,null,null,null,null,null,null,""]
[346,null,null,null,null,null,null,null,null,null,null,""]
[347,null,null,null,null,null,null,null,null,null,null,""]
[348,null,null,null,null,null,null,null,null,null,null,""]
[349,null,null,null,null,null,null,null,null,null,null,""]
[350,null,null,null,null,null,null,null,null,null,null,""]
[351,null,null,null,null,null,null,null,null,null,null,""]
[352,null,null,null,null,null,null,null,null,null,null,""]
[353,null,null,null,null,null,null,null,null,null,null,""]
[354,null,null,null,null,null,null,null,null,null,null,""]
[355,null,null,null,null,null,null,null,null,null,null,""]
[356,null,null,null,null,null,null,null,null,null,null,""]
[357,null,null,null,null,null,null,null,null,null,null,""]
[358,null,null,null,null,null,null,null,null,null,null,""]
[359,null,null,null,null,null,null,null,null,null,null,""]
[360,null,null,null,null,null,null,null,null,null,null,""]
[361,null,null,null,null,null,null,null,null,null,null,""]
[362,null,null,null,null,null,null,null,null,null,null,""]
[363,null,null,null,null,null,null,null,null,null,null,""]
[364,null,null,null,null,null,null,null,null,null,null,""]
[365,null,null,null,null,null,null,null,null,null,null,""]
[366,null,null,null,null,null,null,null,null,null,null,""]
[367,null,null,null,null,null,null,null,null,null,null,""]
[368,null,null,null,null,null,null,null,null,null,null,""]
[369,null,null,null,null,null,null,null,null,null,null,""]
[370,null,null,null,null,null,null,null,null,null,null,""]
[371,null,null,null,null,null,null,null,null,null,null,""]
[372,null,null,null,null,null,null,null,null,null,null,""]
[373,null,null,null,null,null,null,null,null,null,null,""]
[374,null,null,null,null,null,null,null,null,null,null,""]
[375,null,null,null,null,null,null,null,null,null,null,""]
[376,null,null,null,null,null,null,null,null,null,null,""]
[377,null,null,null,null,null,null,null,null,null,null,""]
[378,null,null,null,null,null,null,null,null,null,null,""]
[379,null,null,null,null,null,null,null,null,null,null,""]
[380,null,null,null,null,null,null,null,null,null,null,""]
[381,null,null,null,null,null,null,null,null,null,null,""]
[382,null,null,null,null,null,null,null,null,null,null,""]
[383,null,null,null,null,null,null,null,null,null,null,""]
[384,null,null,null,null,null,null,null,null,null,null,""]
[385,null,null,null,null,null,null,null,null,null,null,{"$f":"IF(AND(I395=\"\",J395=\"\"),\"\",L394+I395-J395-K395)","v":""}]
[386,null,null,null,null,null,null,null,null,null,null,""]
[387,null,null,null,null,null,null,null,null,null,null,""]
[388,null,null,null,null,null,null,null,null,null,null,""]
[389,null,null,null,null,null,null,null,null,null,null,""]
[390,null,null,null,null,null,null,null,null,null,null,""]
[391,null,null,null,null,null,null,null,null,null,null,""]
[392,null,null,null,null,null,null,null,null,null,null,""]
[393,null,null,null,null,null,null,null,null,null,null,""]
[394,null,null,null,null,null,null,null,null,null,null,""]
[395,null,null,null,null,null,null,null,null,null,null,""]
[396,null,null,null,null,null,null,null,null,null,null,""]
[397,null,null,null,null,null,null,null,null,null,null,""]
[398,null,null,null,null,null,null,null,null,null,null,""]
[399,null,null,null,null,null,null,null,null,null,null,""]
[400,null,null,null,null,null,null,null,null,null,null,""]
[401,null,null,null,null,null,null,null,null,null,null,""]
[402,null,null,null,null,null,null,null,null,null,null,""]
[403,null,null,null,null,null,null,null,null,null,null,""]
[404,null,null,null,null,null,null,null,null,null,null,""]
[405,null,null,null,null,null,null,null,null,null,null,""]
[406,null,null,null,null,null,null,null,null,null,null,""]
[407,null,null,null,null,null,null,null,null,null,null,""]
[408,null,null,null,null,null,null,null,null,null,null,""]
[409,null,null,null,null,null,null,null,null,null,null,""]
[410,null,null,null,null,null,null,null,null,null,null,""]
[411,null,null,null,null,null,null,null,null,null,null,""]
[412,null,null,null,null,null,null,null,null,null,null,""]
[413,null,null,null,null,null,null,null,null,null,null,""]
[414,null,null,null,null,null,null,null,null,null,null,""]
[415,null,null,null,null,null,null,null,null,null,null,""]
[416,null,null,null,null,null,null,null,null,null,null,""]
[417,null,null,null,null,null,null,null,null,null,null,""]
[418,null,null,null,null,null,null,null,null,null,null,""]
[419,null,null,null,null,null,null,null,null,null,null,""]
[420,null,null,null,null,null,null,null,null,null,null,""]
[421,null,null,null,null,null,null,null,null,null,null,""]
[422,null,null,null,null,null,null,null,null,null,null,""]
[423,null,null,null,null,null,null,null,null,null,null,""]
[424,null,null,null,null,null,null,null,null,null,null,""]
[425,null,null,null,null,null,null,null,null,null,null,""]
[426,null,null,null,null,null,null,null,null,null,null,""]
[427,null,null,null,null,null,null,null,null,null,null,""]
[428,null,null,null,null,null,null,null,null,null,null,""]
[429,null,null,null,null,null,null,null,null,null,null,""]
[430,null,null,null,null,null,null,null,null,null,null,""]
[431,null,null,null,null,null,null,null,null,null,null,""]
[432,null,null,null,null,null,null,null,null,null,null,""]
[433,null,null,null,null,null,null,null,null,null,null,""]
[434,null,null,null,null,null,null,null,null,null,null,""]
[435,null,null,null,null,null,null,null,null,null,null,""]
[436,null,null,null,null,null,null,null,null,null,null,""]
[437,null,null,null,null,null,null,null,null,null,null,""]
[438,null,null,null,null,null,null,null,null,null,null,""]
[439,null,null,null,null,null,null,null,null,null,null,""]
[440,null,null,null,null,null,null,null,null,null,null,""]
[441,null,null,null,null,null,null,null,null,null,null,""]
[442,null,null,null,null,null,null,null,null,null,null,""]
[443,null,null,null,null,null,null,null,null,null,null,""]
[444,null,null,null,null,null,null,null,null,null,null,""]
[445,null,null,null,null,null,null,null,null,null,null,""]
[446,null,null,null,null,null,null,null,null,null,null,""]
[447,null,null,null,null,null,null,null,null,null,null,""]
[448,null,null,null,null,null,null,null,null,null,null,""]
[449,null,null,null,null,null,null,null,null,null,null,{"$f":"IF(AND(I459=\"\",J459=\"\"),\"\",L458+I459-J459-K459)","v":""}]
[450,null,null,null,null,null,null,null,null,null,null,""]
[451,null,null,null,null,null,null,null,null,null,null,""]
[452,null,null,null,null,null,null,null,null,null,null,""]
[453,null,null,null,null,null,null,null,null,null,null,""]
[454,null,null,null,null,null,null,null,null,null,null,""]
[455,null,null,null,null,null,null,null,null,null,null,""]
[456,null,null,null,null,null,null,null,null,null,null,""]
[457,null,null,null,null,null,null,null,null,null,null,""]
[458,null,null,null,null,null,null,null,null,null,null,""]
[459,null,null,null,null,null,null,null,null,null,null,""]
[460,null,null,null,null,null,null,null,null,null,null,""]
[461,null,null,null,null,null,null,null,null,null,null,""]
[462,null,null,null,null,null,null,null,null,null,null,""]
[463,null,null,null,null,null,null,null,null,null,null,""]
[464,null,null,null,null,null,null,null,null,null,null,""]
[465,null,null,null,null,null,null,null,null,null,null,""]
[466,null,null,null,null,null,null,null,null,null,null,""]
[467,null,null,null,null,null,null,null,null,null,null,""]
[468,null,null,null,null,null,null,null,null,null,null,""]
[469,null,null,null,null,null,null,null,null,null,null,""]
[470,null,null,null,null,null,null,null,null,null,null,""]
[471,null,null,null,null,null,null,null,null,null,null,""]
[472,null,null,null,null,null,null,null,null,null,null,""]
[473,null,null,null,null,null,null,null,null,null,null,""]
[474,null,null,null,null,null,null,null,null,null,null,""]
[475,null,null,null,null,null,null,null,null,null,null,""]
[476,null,null,null,null,null,null,null,null,null,null,""]
[477,null,null,null,null,null,null,null,null,null,null,""]
[478,null,null,null,null,null,null,null,null,null,null,""]
[479,null,null,null,null,null,null,null,null,null,null,""]
[480,null,null,null,null,null,null,null,null,null,null,""]
[481,null,null,null,null,null,null,null,null,null,null,""]
[482,null,null,null,null,null,null,null,null,null,null,""]
[483,null,null,null,null,null,null,null,null,null,null,""]
[484,null,null,null,null,null,null,null,null,null,null,""]
[485,null,null,null,null,null,null,null,null,null,null,""]
[486,null,null,null,null,null,null,null,null,null,null,""]
[487,null,null,null,null,null,null,null,null,null,null,""]
[488,null,null,null,null,null,null,null,null,null,null,""]
[489,null,null,null,null,null,null,null,null,null,null,""]
[490,null,null,null,null,null,null,null,null,null,null,""]
[491,null,null,null,null,null,null,null,null,null,null,""]
[492,null,null,null,null,null,null,null,null,null,null,""]
[493,null,null,null,null,null,null,null,null,null,null,""]
[494,null,null,null,null,null,null,null,null,null,null,""]
[495,null,null,null,null,null,null,null,null,null,null,""]
[496,null,null,null,null,null,null,null,null,null,null,""]
[497,null,null,null,null,null,null,null,null,null,null,""]
[498,null,null,null,null,null,null,null,null,null,null,""]
[499,null,null,null,null,null,null,null,null,null,null,""]
[500,null,null,null,null,null,null,null,null,null,null,""]
[501,null,null,null,null,null,null,null,null,null,null,""]
[502,null,null,null,null,null,null,null,null,null,null,""]
[503,null,null,null,null,null,null,null,null,null,null,""]
[504,null,null,null,null,null,null,null,null,null,null,""]
[505,null,null,null,null,null,null,null,null,null,null,""]
[506,null,null,null,null,null,null,null,null,null,null,""]
[507,null,null,null,null,null,null,null,null,null,null,""]
[508,null,null,null,null,null,null,null,null,null,null,""]
[509,null,null,null,null,null,null,null,null,null,null,""]
[510,null,null,null,null,null,null,null,null,null,null,""]
[511,null,null,null,null,null,null,null,null,null,null,""]
[512,null,null,null,null,null,null,null,null,null,null,""]
[513,null,null,null,null,null,null,null,null,null,null,{"$f":"IF(AND(I523=\"\",J523=\"\"),\"\",L522+I523-J523-K523)","v":""}]
[514,null,null,null,null,null,null,null,null,null,null,""]
[515,null,null,null,null,null,null,null,null,null,null,""]
[516,null,null,null,null,null,null,null,null,null,null,""]
[517,null,null,null,null,null,null,null,null,null,null,""]
[518,null,null,null,null,null,null,null,null,null,null,""]
[519,null,null,null,null,null,null,null,null,null,null,""]
[520,null,null,null,null,null,null,null,null,null,null,""]
[521,null,null,null,null,null,null,null,null,null,null,""]
[522,null,null,null,null,null,null,null,null,null,null,""]
[523,null,null,null,null,null,null,null,null,null,null,""]
[524,null,null,null,null,null,null,null,null,null,null,""]
[525,null,null,null,null,null,null,null,null,null,null,""]
[526,null,null,null,null,null,null,null,null,null,null,""]
[527,null,null,null,null,null,null,null,null,null,null,""]
[528,null,null,null,null,null,null,null,null,null,null,""]
[529,null,null,null,null,null,null,null,null,null,null,""]
[530,null,null,null,null,null,null,null,null,null,null,""]
[531,null,null,null,null,null,null,null,null,null,null,""]
[532,null,null,null,null,null,null,null,null,null,null,""]
[533,null,null,null,null,null,null,null,null,null,null,""]
[534,null,null,null,null,null,null,null,null,null,null,""]
[535,null,null,null,null,null,null,null,null,null,null,""]
[536,null,null,null,null,null,null,null,null,null,null,""]
[537,null,null,null,null,null,null,null,null,null,null,""]
[538,null,null,null,null,null,null,null,null,null,null,""]
[539,null,null,null,null,null,null,null,null,null,null,""]
[540,null,null,null,null,null,null,null,null,null,null,""]
[541,null,null,null,null,null,null,null,null,null,null,""]
[542,null,null,null,null,null,null,null,null,null,null,""]
[543,null,null,null,null,null,null,null,null,null,null,""]
[544,null,null,null,null,null,null,null,null,null,null,""]
[545,null,null,null,null,null,null,null,null,null,null,""]
[546,null,null,null,null,null,null,null,null,null,null,""]
[547,null,null,null,null,null,null,null,null,null,null,""]
[548,null,null,null,null,null,null,null,null,null,null,""]
[549,null,null,null,null,null,null,null,null,null,null,""]
[550,null,null,null,null,null,null,null,null,null,null,""]
[551,null,null,null,null,null,null,null,null,null,null,""]
[552,null,null,null,null,null,null,null,null,null,null,""]
[553,null,null,null,null,null,null,null,null,null,null,""]
[554,null,null,null,null,null,null,null,null,null,null,""]
[555,null,null,null,null,null,null,null,null,null,null,""]
[556,null,null,null,null,null,null,null,null,null,null,""]
[557,null,null,null,null,null,null,null,null,null,null,""]
[558,null,null,null,null,null,null,null,null,null,null,""]
[559,null,null,null,null,null,null,null,null,null,null,""]
[560,null,null,null,null,null,null,null,null,null,null,""]
[561,null,null,null,null,null,null,null,null,null,null,""]
[562,null,null,null,null,null,null,null,null,null,null,""]
[563,null,null,null,null,null,null,null,null,null,null,""]
[564,null,null,null,null,null,null,null,null,null,null,""]
[565,null,null,null,null,null,null,null,null,null,null,""]
[566,null,null,null,null,null,null,null,null,null,null,""]
[567,null,null,null,null,null,null,null,null,null,null,""]
[568,null,null,null,null,null,null,null,null,null,null,""]
[569,null,null,null,null,null,null,null,null,null,null,""]
[570,null,null,null,null,null,null,null,null,null,null,""]
[571,null,null,null,null,null,null,null,null,null,null,""]
[572,null,null,null,null,null,null,null,null,null,null,""]
[573,null,null,null,null,null,null,null,null,null,null,""]
[574,null,null,null,null,null,null,null,null,null,null,""]
[575,null,null,null,null,null,null,null,null,null,null,""]
[576,null,null,null,null,null,null,null,null,null,null,""]
[577,null,null,null,null,null,null,null,null,null,null,{"$f":"IF(AND(I587=\"\",J587=\"\"),\"\",L586+I587-J587-K587)","v":""}]
[578,null,null,null,null,null,null,null,null,null,null,""]
[579,null,null,null,null,null,null,null,null,null,null,""]
[580,null,null,null,null,null,null,null,null,null,null,""]
[581,null,null,null,null,null,null,null,null,null,null,""]
[582,null,null,null,null,null,null,null,null,null,null,""]
[583,null,null,null,null,null,null,null,null,null,null,""]
[584,null,null,null,null,null,null,null,null,null,null,""]
[585,null,null,null,null,null,null,null,null,null,null,""]
[586,null,null,null,null,null,null,null,null,null,null,""]
[587,null,null,null,null,null,null,null,null,null,null,""]
[588,null,null,null,null,null,null,null,null,null,null,""]
[589,null,null,null,null,null,null,null,null,null,null,""]
[590,null,null,null,null,null,null,null,null,null,null,""]
[591,null,null,null,null,null,null,null,null,null,null,""]
[592,null,null,null,null,null,null,null,null,null,null,""]
[593,null,null,null,null,null,null,null,null,null,null,""]
[594,null,null,null,null,null,null,null,null,null,null,""]
[595,null,null,null,null,null,null,null,null,null,null,""]
[596,null,null,null,null,null,null,null,null,null,null,""]
[597,null,null,null,null,null,null,null,null,null,null,""]
[598,null,null,null,null,null,null,null,null,null,null,""]
[599,null,null,null,null,null,null,null,null,null,null,""]
[600,null,null,null,null,null,null,null,null,null,null,""]
[601,null,null,null,null,null,null,null,null,null,null,""]
[602,null,null,null,null,null,null,null,null,null,null,""]
[603,null,null,null,null,null,null,null,null,null,null,""]
[604,null,null,null,null,null,null,null,null,null,null,""]
[605,null,null,null,null,null,null,null,null,null,null,""]
[606,null,null,null,null,null,null,null,null,null,null,""]
[607,null,null,null,null,null,null,null,null,null,null,""]
[608,null,null,null,null,null,null,null,null,null,null,""]
[609,null,null,null,null,null,null,null,null,null,null,""]
[610,null,null,null,null,null,null,null,null,null,null,""]
[611,null,null,null,null,null,null,null,null,null,null,""]
[612,null,null,null,null,null,null,null,null,null,null,""]
[613,null,null,null,null,null,null,null,null,null,null,""]
[614,null,null,null,null,null,null,null,null,null,null,""]
[615,null,null,null,null,null,null,null,null,null,null,""]
[616,null,null,null,null,null,null,null,null,null,null,""]
[617,null,null,null,null,null,null,null,null,null,null,""]
[618,null,null,null,null,null,null,null,null,null,null,""]
[619,null,null,null,null,null,null,null,null,null,null,""]
[620,null,null,null,null,null,null,null,null,null,null,""]
[621,null,null,null,null,null,null,null,null,null,null,""]
[622,null,null,null,null,null,null,null,null,null,null,""]
[623,null,null,null,null,null,null,null,null,null,null,""]
[624,null,null,null,null,null,null,null,null,null,null,""]
[625,null,null,null,null,null,null,null,null,null,null,""]
[626,null,null,null,null,null,null,null,null,null,null,""]
[627,null,null,null,null,null,null,null,null,null,null,""]
[628,null,null,null,null,null,null,null,null,null,null,""]
[629,null,null,null,null,null,null,null,null,null,null,""]
[630,null,null,null,null,null,null,null,null,null,null,""]
[631,null,null,null,null,null,null,null,null,null,null,""]
[632,null,null,null,null,null,null,null,null,null,null,""]
[633,null,null,null,null,null,null,null,null,null,null,""]
[634,null,null,null,null,null,null,null,null,null,null,""]
[635,null,null,null,null,null,null,null,null,null,null,""]
[636,null,null,null,null,null,null,null,null,null,null,""]
[637,null,null,null,null,null,null,null,null,null,null,""]
[638,null,null,null,null,null,null,null,null,null,null,""]
[639,null,null,null,null,null,null,null,null,null,null,""]
[640,null,null,null,null,null,null,null,null,null,null,""]
[641,null,null,null,null,null,null,null,null,null,null,{"$f":"IF(AND(I651=\"\",J651=\"\"),\"\",L650+I651-J651-K651)","v":""}]
[642,null,null,null,null,null,null,null,null,null,null,""]
[643,null,null,null,null,null,null,null,null,null,null,""]
[644,null,null,null,null,null,null,null,null,null,null,""]
[645,null,null,null,null,null,null,null,null,null,null,""]
[646,null,null,null,null,null,null,null,null,null,null,""]
[647,null,null,null,null,null,null,null,null,null,null,""]
[648,null,null,null,null,null,null,null,null,null,null,""]
[649,null,null,null,null,null,null,null,null,null,null,""]
[650,null,null,null,null,null,null,null,null,null,null,""]
[651,null,null,null,null,null,null,null,null,null,null,""]
[652,null,null,null,null,null,null,null,null,null,null,""]
[653,null,null,null,null,null,null,null,null,null,null,""]
[654,null,null,null,null,null,null,null,null,null,null,""]
[655,null,null,null,null,null,null,null,null,null,null,""]
[656,null,null,null,null,null,null,null,null,null,null,""]
[657,null,null,null,null,null,null,null,null,null,null,""]
[658,null,null,null,null,null,null,null,null,null,null,""]
[659,null,null,null,null,null,null,null,null,null,null,""]
[660,null,null,null,null,null,null,null,null,null,null,""]
[661,null,null,null,null,null,null,null,null,null,null,""]
[662,null,null,null,null,null,null,null,null,null,null,""]
[663,null,null,null,null,null,null,null,null,null,null,""]
[664,null,null,null,null,null,null,null,null,null,null,""]
[665,null,null,null,null,null,null,null,null,null,null,""]
[666,null,null,null,null,null,null,null,null,null,null,""]
[667,null,null,null,null,null,null,null,null,null,null,""]
[668,null,null,null,null,null,null,null,null,null,null,""]
[669,null,null,null,null,null,null,null,null,null,null,""]
[670,null,null,null,null,null,null,null,null,null,null,""]
[671,null,null,null,null,null,null,null,null,null,null,""]
[672,null,null,null,null,null,null,null,null,null,null,""]
[673,null,null,null,null,null,null,null,null,null,null,""]
[674,null,null,null,null,null,null,null,null,null,null,""]
[675,null,null,null,null,null,null,null,null,null,null,""]
[676,null,null,null,null,null,null,null,null,null,null,""]
[677,null,null,null,null,null,null,null,null,null,null,""]
[678,null,null,null,null,null,null,null,null,null,null,""]
[679,null,null,null,null,null,null,null,null,null,null,""]
[680,null,null,null,null,null,null,null,null,null,null,""]
[681,null,null,null,null,null,null,null,null,null,null,""]
[682,null,null,null,null,null,null,null,null,null,null,""]
[683,null,null,null,null,null,null,null,null,null,null,""]
[684,null,null,null,null,null,null,null,null,null,null,""]
[685,null,null,null,null,null,null,null,null,null,null,""]
[686,null,null,null,null,null,null,null,null,null,null,""]
[687,null,null,null,null,null,null,null,null,null,null,""]
[688,null,null,null,null,null,null,null,null,null,null,""]
[689,null,null,null,null,null,null,null,null,null,null,""]
[690,null,null,null,null,null,null,null,null,null,null,""]
[691,null,null,null,null,null,null,null,null,null,null,""]
[692,null,null,null,null,null,null,null,null,null,null,""]
[693,null,null,null,null,null,null,null,null,null,null,""]
[694,null,null,null,null,null,null,null,null,null,null,""]
[695,null,null,null,null,null,null,null,null,null,null,""]
[696,null,null,null,null,null,null,null,null,null,null,""]
[697,null,null,null,null,null,null,null,null,null,null,""]
[698,null,null,null,null,null,null,null,null,null,null,""]
[699,null,null,null,null,null,null,null,null,null,null,""]
[700,null,null,null,null,null,null,null,null,null,null,""]
[701,null,null,null,null,null,null,null,null,null,null,""]
[702,null,null,null,null,null,null,null,null,null,null,""]
[703,null,null,null,null,null,null,null,null,null,null,""]
[704,null,null,null,null,null,null,null,null,null,null,""]
[705,null,null,null,null,null,null,null,null,null,null,{"$f":"IF(AND(I715=\"\",J715=\"\"),\"\",L714+I715-J715-K715)","v":""}]
[706,null,null,null,null,null,null,null,null,null,null,""]
[707,null,null,null,null,null,null,null,null,null,null,""]
[708,null,null,null,null,null,null,null,null,null,null,""]
[709,null,null,null,null,null,null,null,null,null,null,""]
[710,null,null,null,null,null,null,null,null,null,null,""]
[711,null,null,null,null,null,null,null,null,null,null,""]
[712,null,null,null,null,null,null,null,null,null,null,""]
[713,null,null,null,null,null,null,null,null,null,null,""]
[714,null,null,null,null,null,null,null,null,null,null,""]
[715,null,null,null,null,null,null,null,null,null,null,""]
[716,null,null,null,null,null,null,null,null,null,null,""]
[717,null,null,null,null,null,null,null,null,null,null,""]
[718,null,null,null,null,null,null,null,null,null,null,""]
[719,null,null,null,null,null,null,null,null,null,null,""]
[720,null,null,null,null,null,null,null,null,null,null,""]
[721,null,null,null,null,null,null,null,null,null,null,""]
[722,null,null,null,null,null,null,null,null,null,null,""]
[723,null,null,null,null,null,null,null,null,null,null,""]
[724,null,null,null,null,null,null,null,null,null,null,""]
[725,null,null,null,null,null,null,null,null,null,null,""]
[726,null,null,null,null,null,null,null,null,null,null,""]
[727,null,null,null,null,null,null,null,null,null,null,""]
[728,null,null,null,null,null,null,null,null,null,null,""]
[729,null,null,null,null,null,null,null,null,null,null,""]
[730,null,null,null,null,null,null,null,null,null,null,""]
[731,null,null,null,null,null,null,null,null,null,null,""]
[732,null,null,null,null,null,null,null,null,null,null,""]
[733,null,null,null,null,null,null,null,null,null,null,""]
[734,null,null,null,null,null,null,null,null,null,null,""]
[735,null,null,null,null,null,null,null,null,null,null,""]
[736,null,null,null,null,null,null,null,null,null,null,""]
[737,null,null,null,null,null,null,null,null,null,null,""]
[738,null,null,null,null,null,null,null,null,null,null,""]
[739,null,null,null,null,null,null,null,null,null,null,""]
[740,null,null,null,null,null,null,null,null,null,null,""]
[741,null,null,null,null,null,null,null,null,null,null,""]
[742,null,null,null,null,null,null,null,null,null,null,""]
[743,null,null,null,null,null,null,null,null,null,null,""]
[744,null,null,null,null,null,null,null,null,null,null,""]
[745,null,null,null,null,null,null,null,null,null,null,""]
[746,null,null,null,null,null,null,null,null,null,null,""]
[747,null,null,null,null,null,null,null,null,null,null,""]
[748,null,null,null,null,null,null,null,null,null,null,""]
[749,null,null,null,null,null,null,null,null,null,null,""]
[750,null,null,null,null,null,null,null,null,null,null,""]
[751,null,null,null,null,null,null,null,null,null,null,""]
[752,null,null,null,null,null,null,null,null,null,null,""]
[753,null,null,null,null,null,null,null,null,null,null,""]
[754,null,null,null,null,null,null,null,null,null,null,""]
[755,null,null,null,null,null,null,null,null,null,null,""]
[756,null,null,null,null,null,null,null,null,null,null,""]
[757,null,null,null,null,null,null,null,null,null,null,""]
[758,null,null,null,null,null,null,null,null,null,null,""]
[759,null,null,null,null,null,null,null,null,null,null,""]
[760,null,null,null,null,null,null,null,null,null,null,""]
[761,null,null,null,null,null,null,null,null,null,null,""]
[762,null,null,null,null,null,null,null,null,null,null,""]
[763,null,null,null,null,null,null,null,null,null,null,""]
[764,null,null,null,null,null,null,null,null,null,null,""]
[765,null,null,null,null,null,null,null,null,null,null,""]
[766,null,null,null,null,null,null,null,null,null,null,""]
[767,null,null,null,null,null,null,null,null,null,null,""]
[768,null,null,null,null,null,null,null,null,null,null,""]
[769,null,null,null,null,null,null,null,null,null,null,{"$f":"IF(AND(I779=\"\",J779=\"\"),\"\",L778+I779-J779-K779)","v":""}]
[770,null,null,null,null,null,null,null,null,null,null,""]
[771,null,null,null,null,null,null,null,null,null,null,""]
[772,null,null,null,null,null,null,null,null,null,null,""]
[773,null,null,null,null,null,null,null,null,null,null,""]
[774,null,null,null,null,null,null,null,null,null,null,""]
[775,null,null,null,null,null,null,null,null,null,null,""]
[776,null,null,null,null,null,null,null,null,null,null,""]
[777,null,null,null,null,null,null,null,null,null,null,""]
[778,null,null,null,null,null,null,null,null,null,null,""]
[779,null,null,null,null,null,null,null,null,null,null,""]
[780,null,null,null,null,null,null,null,null,null,null,""]
[781,null,null,null,null,null,null,null,null,null,null,""]
[782,null,null,null,null,null,null,null,null,null,null,""]
[783,null,null,null,null,null,null,null,null,null,null,""]
[784,null,null,null,null,null,null,null,null,null,null,""]
[785,null,null,null,null,null,null,null,null,null,null,""]
[786,null,null,null,null,null,null,null,null,null,null,""]
[787,null,null,null,null,null,null,null,null,null,null,""]
[788,null,null,null,null,null,null,null,null,null,null,""]
[789,null,null,null,null,null,null,null,null,null,null,""]
[790,null,null,null,null,null,null,null,null,null,null,""]
[791,null,null,null,null,null,null,null,null,null,null,""]
[792,null,null,null,null,null,null,null,null,null,null,""]
[793,null,null,null,null,null,null,null,null,null,null,""]
[794,null,null,null,null,null,null,null,null,null,null,""]
[795,null,null,null,null,null,null,null,null,null,null,""]
[796,null,null,null,null,null,null,null,null,null,null,""]
[797,null,null,null,null,null,null,null,null,null,null,""]
[798,null,null,null,null,null,null,null,null,null,null,""]
[799,null,null,null,null,null,null,null,null,null,null,""]
[800,null,null,null,null,null,null,null,null,null,null,""]
[801,null,null,null,null,null,null,null,null,null,null,""]
[802,null,null,null,null,null,null,null,null,null,null,""]
[803,null,null,null,null,null,null,null,null,null,null,""]
[804,null,null,null,null,null,null,null,null,null,null,""]
[805,null,null,null,null,null,null,null,null,null,null,""]
[806,null,null,null,null,null,null,null,null,null,null,""]
[807,null,null,null,null,null,null,null,null,null,null,""]
[808,null,null,null,null,null,null,null,null,null,null,""]
[809,null,null,null,null,null,null,null,null,null,null,""]
[810,null,null,null,null,null,null,null,null,null,null,""]
[811,null,null,null,null,null,null,null,null,null,null,""]
[812,null,null,null,null,null,null,null,null,null,null,""]
[813,null,null,null,null,null,null,null,null,null,null,""]
[814,null,null,null,null,null,null,null,null,null,null,""]
[815,null,null,null,null,null,null,null,null,null,null,""]
[816,null,null,null,null,null,null,null,null,null,null,""]
[817,null,null,null,null,null,null,null,null,null,null,""]
[818,null,null,null,null,null,null,null,null,null,null,""]
[819,null,null,null,null,null,null,null,null,null,null,""]
[820,null,null,null,null,null,null,null,null,null,null,""]
[821,null,null,null,null,null,null,null,null,null,null,""]
[822,null,null,null,null,null,null,null,null,null,null,""]
[823,null,null,null,null,null,null,null,null,null,null,""]
[824,null,null,null,null,null,null,null,null,null,null,""]
[825,null,null,null,null,null,null,null,null,null,null,""]
[826,null,null,null,null,null,null,null,null,null,null,""]
[827,null,null,null,null,null,null,null,null,null,null,""]
[828,null,null,null,null,null,null,null,null,null,null,""]
[829,null,null,null,null,null,null,null,null,null,null,""]
[830,null,null,null,null,null,null,null,null,null,null,""]
[831,null,null,null,null,null,null,null,null,null,null,""]
[832,null,null,null,null,null,null,null,null,null,null,""]
[833,null,null,null,null,null,null,null,null,null,null,{"$f":"IF(AND(I843=\"\",J843=\"\"),\"\",L842+I843-J843-K843)","v":""}]
[834,null,null,null,null,null,null,null,null,null,null,""]
[835,null,null,null,null,null,null,null,null,null,null,""]
[836,null,null,null,null,null,null,null,null,null,null,""]
[837,null,null,null,null,null,null,null,null,null,null,""]
[838,null,null,null,null,null,null,null,null,null,null,""]
[839,null,null,null,null,null,null,null,null,null,null,""]
[840,null,null,null,null,null,null,null,null,null,null,""]
[841,null,null,null,null,null,null,null,null,null,null,""]
[842,null,null,null,null,null,null,null,null,null,null,""]
[843,null,null,null,null,null,null,null,null,null,null,""]
[844,null,null,null,null,null,null,null,null,null,null,""]
[845,null,null,null,null,null,null,null,null,null,null,""]
[846,null,null,null,null,null,null,null,null,null,null,""]
[847,null,null,null,null,null,null,null,null,null,null,""]
[848,null,null,null,null,null,null,null,null,null,null,""]
[849,null,null,null,null,null,null,null,null,null,null,""]
[850,null,null,null,null,null,null,null,null,null,null,""]
[851,null,null,null,null,null,null,null,null,null,null,""]
[852,null,null,null,null,null,null,null,null,null,null,""]
[853,null,null,null,null,null,null,null,null,null,null,""]
[854,null,null,null,null,null,null,null,null,null,null,""]
[855,null,null,null,null,null,null,null,null,null,null,""]
[856,null,null,null,null,null,null,null,null,null,null,""]
[857,null,null,null,null,null,null,null,null,null,null,""]
[858,null,null,null,null,null,null,null,null,null,null,""]
[859,null,null,null,null,null,null,null,null,null,null,""]
[860,null,null,null,null,null,null,null,null,null,null,""]
[861,null,null,null,null,null,null,null,null,null,null,""]
[862,null,null,null,null,null,null,null,null,null,null,""]
[863,null,null,null,null,null,null,null,null,null,null,""]
[864,null,null,null,null,null,null,null,null,null,null,""]
[865,null,null,null,null,null,null,null,null,null,null,""]
[866,null,null,null,null,null,null,null,null,null,null,""]
[867,null,null,null,null,null,null,null,null,null,null,""]
[868,null,null,null,null,null,null,null,null,null,null,""]
[869,null,null,null,null,null,null,null,null,null,null,""]
[870,null,null,null,null,null,null,null,null,null,null,""]
[871,null,null,null,null,null,null,null,null,null,null,""]
[872,null,null,null,null,null,null,null,null,null,null,""]
[873,null,null,null,null,null,null,null,null,null,null,""]
[874,null,null,null,null,null,null,null,null,null,null,""]
[875,null,null,null,null,null,null,null,null,null,null,""]
[876,null,null,null,null,null,null,null,null,null,null,""]
[877,null,null,null,null,null,null,null,null,null,null,""]
[878,null,null,null,null,null,null,null,null,null,null,""]
[879,null,null,null,null,null,null,null,null,null,null,""]
[880,null,null,null,null,null,null,null,null,null,null,""]
[881,null,null,null,null,null,null,null,null,null,null,""]
[882,null,null,null,null,null,null,null,null,null,null,""]
[883,null,null,null,null,null,null,null,null,null,null,""]
[884,null,null,null,null,null,null,null,null,null,null,""]
[885,null,null,null,null,null,null,null,null,null,null,""]
[886,null,null,null,null,null,null,null,null,null,null,""]
[887,null,null,null,null,null,null,null,null,null,null,""]
[888,null,null,null,null,null,null,null,null,null,null,""]
[889,null,null,null,null,null,null,null,null,null,null,""]
[890,null,null,null,null,null,null,null,null,null,null,""]
[891,null,null,null,null,null,null,null,null,null,null,""]
[892,null,null,null,null,null,null,null,null,null,null,""]
[893,null,null,null,null,null,null,null,null,null,null,""]
[894,null,null,null,null,null,null,null,null,null,null,""]
[895,null,null,null,null,null,null,null,null,null,null,""]
[896,null,null,null,null,null,null,null,null,null,null,""]
[897,null,null,null,null,null,null,null,null,null,null,{"$f":"IF(AND(I907=\"\",J907=\"\"),\"\",L906+I907-J907-K907)","v":""}]
[898,null,null,null,null,null,null,null,null,null,null,""]
[899,null,null,null,null,null,null,null,null,null,null,""]
[900,null,null,null,null,null,null,null,null,null,null,""]
[901,null,null,null,null,null,null,null,null,null,null,""]
[902,null,null,null,null,null,null,null,null,null,null,""]
[903,null,null,null,null,null,null,null,null,null,null,""]
[904,null,null,null,null,null,null,null,null,null,null,""]
[905,null,null,null,null,null,null,null,null,null,null,""]
[906,null,null,null,null,null,null,null,null,null,null,""]
[907,null,null,null,null,null,null,null,null,null,null,""]
[908,null,null,null,null,null,null,null,null,null,null,""]
[909,null,null,null,null,null,null,null,null,null,null,""]
[910,null,null,null,null,null,null,null,null,null,null,""]
[911,null,null,null,null,null,null,null,null,null,null,""]
[912,null,null,null,null,null,null,null,null,null,null,""]
[913,null,null,null,null,null,null,null,null,null,null,""]
[914,null,null,null,null,null,null,null,null,null,null,""]
[915,null,null,null,null,null,null,null,null,null,null,""]
[916,null,null,null,null,null,null,null,null,null,null,""]
[917,null,null,null,null,null,null,null,null,null,null,""]
[918,null,null,null,null,null,null,null,null,null,null,""]
[919,null,null,null,null,null,null,null,null,null,null,""]
[920,null,null,null,null,null,null,null,null,null,null,""]
[921,null,null,null,null,null,null,null,null,null,null,""]
[922,null,null,null,null,null,null,null,null,null,null,""]
[923,null,null,null,null,null,null,null,null,null,null,""]
[924,null,null,null,null,null,null,null,null,null,null,""]
[925,null,null,null,null,null,null,null,null,null,null,""]
[926,null,null,null,null,null,null,null,null,null,null,""]
[927,null,null,null,null,null,null,null,null,null,null,""]
[928,null,null,null,null,null,null,null,null,null,null,""]
[929,null,null,null,null,null,null,null,null,null,null,""]
[930,null,null,null,null,null,null,null,null,null,null,""]
[931,null,null,null,null,null,null,null,null,null,null,""]
[932,null,null,null,null,null,null,null,null,null,null,""]
[933,null,null,null,null,null,null,null,null,null,null,""]
[934,null,null,null,null,null,null,null,null,null,null,""]
[935,null,null,null,null,null,null,null,null,null,null,""]
[936,null,null,null,null,null,null,null,null,null,null,""]
[937,null,null,null,null,null,null,null,null,null,null,""]
[938,null,null,null,null,null,null,null,null,null,null,""]
[939,null,null,null,null,null,null,null,null,null,null,""]
[940,null,null,null,null,null,null,null,null,null,null,""]
[941,null,null,null,null,null,null,null,null,null,null,""]
[942,null,null,null,null,null,null,null,null,null,null,""]
[943,null,null,null,null,null,null,null,null,null,null,""]
[944,null,null,null,null,null,null,null,null,null,null,""]
[945,null,null,null,null,null,null,null,null,null,null,""]
[946,null,null,null,null,null,null,null,null,null,null,""]
[947,null,null,null,null,null,null,null,null,null,null,""]
[948,null,null,null,null,null,null,null,null,null,null,""]
[949,null,null,null,null,null,null,null,null,null,null,""]
[950,null,null,null,null,null,null,null,null,null,null,""]
[951,null,null,null,null,null,null,null,null,null,null,""]
[952,null,null,null,null,null,null,null,null,null,null,""]
[953,null,null,null,null,null,null,null,null,null,null,""]
[954,null,null,null,null,null,null,null,null,null,null,""]
[955,null,null,null,null,null,null,null,null,null,null,""]
[956,null,null,null,null,null,null,null,null,null,null,""]
[957,null,null,null,null,null,null,null,null,null,null,""]
[958,null,null,null,null,null,null,null,null,null,null,""]
[959,null,null,null,null,null,null,null,null,null,null,""]
[960,null,null,null,null,null,null,null,null,null,null,""]
[961,null,null,null,null,null,null,null,null,null,null,{"$f":"IF(AND(I971=\"\",J971=\"\"),\"\",L970+I971-J971-K971)","v":""}]
[962,null,null,null,null,null,null,null,null,null,null,""]
[963,null,null,null,null,null,null,null,null,null,null,""]
[964,null,null,null,null,null,null,null,null,null,null,""]
[965,null,null,null,null,null,null,null,null,null,null,""]
[966,null,null,null,null,null,null,null,null,null,null,""]
[967,null,null,null,null,null,null,null,null,null,null,""]
[968,null,null,null,null,null,null,null,null,null,null,""]
[969,null,null,null,null,null,null,null,null,null,null,""]
[970,null,null,null,null,null,null,null,null,null,null,""]
[971,null,null,null,null,null,null,null,null,null,null,""]
[972,null,null,null,null,null,null,null,null,null,null,""]
[973,null,null,null,null,null,null,null,null,null,null,""]
[974,null,null,null,null,null,null,null,null,null,null,""]
[975,null,null,null,null,null,null,null,null,null,null,""]
[976,null,null,null,null,null,null,null,null,null,null,""]
[977,null,null,null,null,null,null,null,null,null,null,""]
[978,null,null,null,null,null,null,null,null,null,null,""]
[979,null,null,null,null,null,null,null,null,null,null,""]
[980,null,null,null,null,null,null,null,null,null,null,""]
[981,null,null,null,null,null,null,null,null,null,null,""]
[982]
[983]
[984]
[985]
[986]
[987]
[988]
[989]
[990]
[991]
[992]
[993]
[994]
[995]
[996]
[997]
[998]
[999]
[1000]
[1001]
[1002]
[1003]
[1004]
[1005]
[1006]
[1007]
[1008]
[1009]
[1010]
[1011]
[1012]
[1013]
[1014]
[1015]
[1016]
[1017]
[1018]
[1019]
[1020]
[1021]
[1022]
[1023]
[1024]
[1025]
[1026]
[1027]
[1028]
[1029]
[1030]
[1031]
[1032]
[1033]
[1034]
[1035]
[1036]
[1037]
[1038]
[1039]
[1040]
[1041]
[1042]
[1043]
[1044]
[1045]
[1046]
[1047]
[1048]
[1049]
[1050]
[1051]
[1052]
[1053]
[1054]
[1055]
[1056]
[1057]
[1058]
[1059]
[1060]
[1061]
[1062]
[1063]
[1064]
[1065]
[1066]
[1067]
[1068]
[1069]
[1070]
[1071]
[1072]
[1073]
[1074]
[1075]
[1076]
[1077]
[1078]
[1079]
[1080]
[1081]
[1082]
[1083]
[1084]
[1085]
[1086]
[1087]
[1088]
[1089]
[1090]
[1091]
[1092]
[1093]
[1094]
[1095]
[1096]
[1097]
[1098]
[1099]
[1100]
[1101]
[1102]
[1103]
[1104]
[1105]
[1106]
[1107]
[1108]
[1109]
[1110]
[1111]
[1112]
[1113]
[1114]
[1115]
[1116]
[1117]
[1118]
[1119]
[1120]
[1121]
[1122]
[1123]
[1124]
[1125]
[1126]
[1127]
[1128]
[1129]
[1130]
[1131]
[1132]
[1133]
[1134]
[1135]
[1136]
[1137]
[1138]
[1139]
[1140]
[1141]
[1142]
[1143]
[1144]
[1145]
[1146]
[1147]
[1148]
[1149]
[1150]
[1151]
[1152]
[1153]
[1154]
[1155]
[1156]
[1157]
[1158]
[1159]
[1160]
[1161]
[1162]
[1163]
[1164]
[1165]
[1166]
[1167]
[1168]
[1169]
[1170]
[1171]
[1172]
[1173]
[1174]
[1175]
[1176]
[1177]
[1178]
[1179]
[1180]
[1181]
[1182]
[1183]
[1184]
[1185]
[1186]
[1187]
[1188]
[1189]
[1190]
[1191]
[1192]
[1193]
[1194]
[1195]
[1196]
[1197]
[1198]
[1199]
[1200]
[1201]
[1202]
[1203]
[1204]
[1205]
[1206]
[1207]
[1208]
[1209]
[1210]
[1211]
[1212]
[1213]
[1214]
[1215]
[1216]
[1217]
[1218]
[1219]
[1220]
[1221]
[1222]
[1223]
[1224]
[1225]
[1226]
[1227]
[1228]
[1229]
[1230]
[1231]
[1232]
[1233]
[1234]
[1235]
[1236]
[1237]
[1238]
[1239]
[1240]
[1241]
[1242]
[1243]
[1244]
[1245]
[1246]
[1247]
[1248]
[1249]
[1250]
[1251]
[1252]
[1253]
[1254]
[1255]
[1256]
[1257]
[1258]
[1259]
[1260]
[1261]
[1262]
[1263]
[1264]
[1265]
[1266]
[1267]
[1268]
[1269]
[1270]
[1271]
[1272]
[1273]
[1274]
[1275]
[1276]
[1277]
[1278]
[1279]
[1280]
[1281]
[1282]
[1283]
[1284]
[1285]
[1286]
[1287]
[1288]
[1289]
[1290]
[1291]
[1292]
[1293]
[1294]
[1295]
[1296]
[1297]
[1298]
[1299]
[1300]
[1301]
[1302]
[1303]
[1304]
[1305]
[1306]
[1307]
[1308]
[1309]
[1310]
[1311]
[1312]
[1313]
[1314]
[1315]
[1316]
[1317]
[1318]
[1319]
[1320]
[1321]
[1322]
[1323]
[1324]
[1325]
[1326]
[1327]
[1328]
[1329]
[1330]
[1331]
[1332]
[1333]
[1334]
[1335]
[1336]
[1337]
[1338]
[1339]
[1340]
[1341]
[1342]
[1343]
[1344]
[1345]
[1346]
[1347]
[1348]
[1349]
[1350]
[1351]
[1352]
[1353]
[1354]
[1355]
[1356]
[1357]
[1358]
[1359]
[1360]
[1361]
[1362]
[1363]
[1364]
[1365]
[1366]
[1367]
[1368]
[1369]
[1370]
[1371]
[1372]
[1373]
[1374]
[1375]
[1376]
[1377]
[1378]
[1379]
[1380]
[1381]
[1382]
[1383]
[1384]
[1385]
[1386]
[1387]
[1388]
[1389]
[1390]
[1391]
[1392]
[1393]
[1394]
[1395]
[1396]
[1397]
[1398]
[1399]
[1400]
[1401]
[1402]
[1403]
[1404]
[1405]
[1406]
[1407]
[1408]
[1409]
[1410]
[1411]
[1412]
[1413]
[1414]
[1415]
[1416]
[1417]
[1418]
[1419]
[1420]
[1421]
[1422]
[1423]
[1424]
[1425]
[1426]
[1427]
[1428]
[1429]
[1430]
[1431]
[1432]
[1433]
[1434]
[1435]
[1436]
[1437]
[1438]
[1439]
[1440]
[1441]
[1442]
[1443]
[1444]
[1445]
[1446]
[1447]
[1448]
[1449]
[1450]
[1451]
[1452]
[1453]
[1454]
[1455]
[1456]
[1457]
[1458]
[1459]
[1460]
[1461]
[1462]
[1463]
[1464]
[1465]
[1466]
[1467]
[1468]
[1469]
[1470]
[1471]
[1472]
[1473]
[1474]
[1475]
[1476]
[1477]
[1478]
[1479]
[1480]
[1481]
[1482]
[1483]
[1484]
[1485]
[1486]
[1487]
[1488]
[1489]
[1490]
[1491]
[1492]
[1493]
[1494]
[1495]
[1496]
[1497]
[1498]
[1499]
[1500]
[1501]
[1502]
[1503]
[1504]
[1505]
[1506]
[1507]
[1508]
[1509]
[1510]
[1511]
[1512]
[1513]
[1514]
[1515]
[1516]
[1517]
[1518]
[1519]
[1520]
[1521]
[1522]
[1523]
[1524]
[1525]
[1526]
[1527]
[1528]
[1529]
[1530]
[1531]
[1532]
[1533]
[1534]
[1535]
[1536]
[1537]
[1538]
[1539]
[1540]
[1541]
[1542]
[1543]
[1544]
[1545]
[1546]
[1547]
[1548]
[1549]
[1550]
[1551]
[1552]
[1553]
[1554]
[1555]
[1556]
[1557]
[1558]
[1559]
[1560]
[1561]
[1562]
[1563]
[1564]
[1565]
[1566]
[1567]
[1568]
[1569]
[1570]
[1571]
[1572]
[1573]
[1574]
[1575]
[1576]
[1577]
[1578]
[1579]
[1580]
[1581]
[1582]
[1583]
[1584]
[1585]
[1586]
[1587]
[1588]
[1589]
[1590]
[1591]
[1592]
[1593]
[1594]
[1595]
[1596]
[1597]
[1598]
[1599]
[1600]
[1601]
[1602]
[1603]
[1604]
[1605]
[1606]
[1607]
[1608]
[1609]
[1610]
[1611]
[1612]
[1613]
[1614]
[1615]
[1616]
[1617]
[1618]
[1619]
[1620]
[1621]
[1622]
[1623]
[1624]
[1625]
[1626]
[1627]
[1628]
[1629]
[1630]
[1631]
[1632]
[1633]
[1634]
[1635]
[1636]
[1637]
[1638]
[1639]
[1640]
[1641]
[1642]
[1643]
[1644]
[1645]
[1646]
[1647]
[1648]
[1649]
[1650]
[1651]
[1652]
[1653]
[1654]
[1655]
[1656]
[1657]
[1658]
[1659]
[1660]
[1661]
[1662]
[1663]
[1664]
[1665]
[1666]
[1667]
[1668]
[1669]
[1670]
[1671]
[1672]
[1673]
[1674]
[1675]
[1676]
[1677]
[1678]
[1679]
[1680]
[1681]
[1682]
[1683]
[1684]
[1685]
[1686]
[1687]
[1688]
[1689]
[1690]
[1691]
[1692]
[1693]
[1694]
[1695]
[1696]
[1697]
[1698]
[1699]
[1700]
[1701]
[1702]
[1703]
[1704]
[1705]
[1706]
[1707]
[1708]
[1709]
[1710]
[1711]
[1712]
[1713]
[1714]
[1715]
[1716]
[1717]
[1718]
[1719]
[1720]
[1721]
[1722]
[1723]
[1724]
[1725]
[1726]
[1727]
[1728]
[1729]
[1730]
[1731]
[1732]
[1733]
[1734]
[1735]
[1736]
[1737]
[1738]
[1739]
[1740]
[1741]
[1742]
[1743]
[1744]
[1745]
[1746]
[1747]
[1748]
[1749]
[1750]
[1751]
[1752]
[1753]
[1754]
[1755]
[1756]
[1757]
[1758]
[1759]
[1760]
[1761]
[1762]
[1763]
[1764]
[1765]
[1766]
[1767]
[1768]
[1769]
[1770]
[1771]
[1772]
[1773]
[1774]
[1775]
[1776]
[1777]
[1778]
[1779]
[1780]
[1781]
[1782]
[1783]
[1784]
[1785]
[1786]
[1787]
[1788]
[1789]
[1790]
[1791]
[1792]
[1793]
[1794]
[1795]
[1796]
[1797]
[1798]
[1799]
[1800]
[1801]
[1802]
[1803]
[1804]
[1805]
[1806]
[1807]
[1808]
[1809]
[1810]
[1811]
[1812]
[1813]
[1814]
[1815]
[1816]
[1817]
[1818]
[1819]
[1820]
[1821]
[1822]
[1823]
[1824]
[1825]
[1826]
[1827]
[1828]
[1829]
[1830]
[1831]
[1832]
[1833]
[1834]
[1835]
[1836]
[1837]
[1838]
[1839]
[1840]
[1841]
[1842]
[1843]
[1844]
[1845]
[1846]
[1847]
[1848]
[1849]
[1850]
[1851]
[1852]
[1853]
[1854]
[1855]
[1856]
[1857]
[1858]
[1859]
[1860]
[1861]
[1862]
[1863]
[1864]
[1865]
[1866]
[1867]
[1868]
[1869]
[1870]
[1871]
[1872]
[1873]
[1874]
[1875]
[1876]
[1877]
[1878]
[1879]
[1880]
[1881]
[1882]
[1883]
[1884]
[1885]
[1886]
[1887]
[1888]
[1889]
[1890]
[1891]
[1892]
[1893]
[1894]
[1895]
[1896]
[1897]
[1898]
[1899]
[1900]
[1901]
[1902]
[1903]
[1904]
[1905]
[1906]
[1907]
[1908]
[1909]
[1910]
[1911]
[1912]
[1913]
[1914]
[1915]
[1916]
[1917]
[1918]
[1919]
[1920]
[1921]
[1922]
[1923]
[1924]
[1925]
[1926]
[1927]
[1928]
[1929]
[1930]
[1931]
[1932]
[1933]
[1934]
[1935]
[1936]
[1937]
[1938]
[1939]
[1940]
[1941]
[1942]
[1943]
[1944]
[1945]
[1946]
[1947]
[1948]
[1949]
[1950]
[1951]
[1952]
[1953]
[1954]
[1955]
[1956]
[1957]
[1958]
[1959]
[1960]
[1961]
[1962]
[1963]
[1964]
[1965]
[1966]
[1967]
[1968]
[1969]
[1970]
[1971]
[1972]
[1973]
[1974]
[1975]
[1976]
[1977]
[1978]
[1979]
[1980]
[1981]
[1982]
[1983]
[1984]
[1985]
[1986]
[1987]
[1988]
[1989]
[1990]
[1991]
[1992]
[1993]
[1994]
[1995]
[1996]
[1997]
[1998]
[1999]
[2000]
[2001]
[2002]
[2003]
[2004]
[2005]
[2006]
[2007]
[2008]
[2009]
[2010]
[2011]
[2012]
[2013]
[2014]
[2015]
[2016]
[2017]
[2018]
[2019]
[2020]
[2021]
[2022]
[2023]
[2024]
[2025]
[2026]
[2027]
[2028]
[2029]
[2030]
[2031]
[2032]
[2033]
[2034]
[2035]
[2036]
[2037]
[2038]
[2039]
[2040]
[2041]
[2042]
[2043]
[2044]
[2045]
[2046]
[2047]
[2048]
[2049]
[2050]
[2051]
[2052]
[2053]
[2054]
[2055]
[2056]
[2057]
[2058]
[2059]
[2060]
[2061]
[2062]
[2063]
[2064]
[2065]
[2066]
[2067]
[2068]
[2069]
[2070]
[2071]
[2072]
[2073]
[2074]
[2075]
[2076]
[2077]
[2078]
[2079]
[2080]
[2081]
[2082]
[2083]
[2084]
[2085]
[2086]
[2087]
[2088]
[2089]
[2090]
[2091]
[2092]
[2093]
[2094]
[2095]
[2096]
[2097]
[2098]
[2099]
[2100]
[2101]
[2102]
[2103]
[2104]
[2105]
[2106]
[2107]
[2108]
[2109]
[2110]
[2111]
[2112]
[2113]
[2114]
[2115]
[2116]
[2117]
[2118]
[2119]
[2120]
[2121]
[2122]
[2123]
[2124]
[2125]
[2126]
[2127]
[2128]
[2129]
[2130]
[2131]
[2132]
[2133]
[2134]
[2135]
[2136]
[2137]
[2138]
[2139]
[2140]
[2141]
[2142]
[2143]
[2144]
[2145]
[2146]
[2147]
[2148]
[2149]
[2150]
[2151]
[2152]
[2153]
[2154]
[2155]
[2156]
[2157]
[2158]
[2159]
[2160]
[2161]
[2162]
[2163]
[2164]
[2165]
[2166]
[2167]
[2168]
[2169]
[2170]
[2171]
[2172]
[2173]
[2174]
[2175]
[2176]
[2177]
[2178]
[2179]
[2180]
[2181]
[2182]
[2183]
[2184]
[2185]
[2186]
[2187]
[2188]
[2189]
[2190]
[2191]
[2192]
[2193]
[2194]
[2195]
[2196]
[2197]
[2198]
[2199]
[2200]
[2201]
[2202]
[2203]
[2204]
[2205]
[2206]
[2207]
[2208]
[2209]
[2210]
[2211]
[2212]
[2213]
[2214]
[2215]
[2216]
[2217]
[2218]
[2219]
[2220]
[2221]
[2222]
[2223]
[2224]
[2225]
[2226]
[2227]
[2228]
[2229]
[2230]
[2231]
[2232]
[2233]
[2234]
[2235]
[2236]
[2237]
[2238]
[2239]
[2240]
[2241]
[2242]
[2243]
[2244]
[2245]
[2246]
[2247]
[2248]
[2249]
[2250]
[2251]
[2252]
[2253]
[2254]
[2255]
[2256]
[2257]
[2258]
[2259]
[2260]
[2261]
[2262]
[2263]
[2264]
[2265]
[2266]
[2267]
[2268]
[2269]
[2270]
[2271]
[2272]
[2273]
[2274]
[2275]
[2276]
[2277]
[2278]
[2279]
[2280]
[2281]
[2282]
[2283]
[2284]
[2285]
[2286]
[2287]
[2288]
[2289]
[2290]
[2291]
[2292]
[2293]
[2294]
[2295]
[2296]
[2297]
[2298]
[2299]
[2300]
[2301]
[2302]
[2303]
[2304]
[2305]
[2306]
[2307]
[2308]
[2309]
[2310]
[2311]
[2312]
[2313]
[2314]
[2315]
[2316]
[2317]
[2318]
[2319]
[2320]
[2321]
[2322]
[2323]
[2324]
[2325]
[2326]
[2327]
[2328]
[2329]
[2330]
[2331]
[2332]
[2333]
[2334]
[2335]
[2336]
[2337]
[2338]
[2339]
[2340]
[2341]
[2342]
[2343]
[2344]
[2345]
[2346]
[2347]
[2348]
[2349]
[2350]
[2351]
[2352]
[2353]
[2354]
[2355]
[2356]
[2357]
[2358]
[2359]
[2360]
[2361]
[2362]
[2363]
[2364]
[2365]
[2366]
[2367]
[2368]
[2369]
[2370]
[2371]
[2372]
[2373]
[2374]
[2375]
[2376]
[2377]
[2378]
[2379]
[2380]
[2381]
[2382]
[2383]
[2384]
[2385]
[2386]
[2387]
[2388]
[2389]
[2390]
[2391]
[2392]
[2393]
[2394]
[2395]
[2396]
[2397]
[2398]
[2399]
[2400]
[2401]
[2402]
[2403]
[2404]
[2405]
[2406]
[2407]
[2408]
[2409]
[2410]
[2411]
[2412]
[2413]
[2414]
[2415]
[2416]
[2417]
[2418]
[2419]
[2420]
[2421]
[2422]
[2423]
[2424]
[2425]
[2426]
[2427]
[2428]
[2429]
[2430]
[2431]
[2432]
[2433]
[2434]
[2435]
[2436]
[2437]
[2438]
[2439]
[2440]
[2441]
[2442]
[2443]
[2444]
[2445]
[2446]
[2447]
[2448]
[2449]
[2450]
[2451]
[2452]
[2453]
[2454]
[2455]
[2456]
[2457]
[2458]
[2459]
[2460]
[2461]
[2462]
[2463]
[2464]
[2465]
[2466]
[2467]
[2468]
[2469]
[2470]
[2471]
[2472]
[2473]
[2474]
[2475]
[2476]
[2477]
[2478]
[2479]
[2480]
[2481]
[2482]
[2483]
[2484]
[2485]
[2486]
[2487]
[2488]
[2489]
[2490]
[2491]
[2492]
[2493]
[2494]
[2495]
[2496]
[2497]
[2498]
[2499]
[2500]
[2501]
[2502]
[2503]
[2504]
[2505]
[2506]
[2507]
[2508]
[2509]
[2510]
[2511]
[2512]
[2513]
[2514]
[2515]
[2516]
[2517]
[2518]
[2519]
[2520]
[2521]
[2522]
[2523]
[2524]
[2525]
[2526]
[2527]
[2528]
[2529]
[2530]
[2531]
[2532]
[2533]
[2534]
[2535]
[2536]
[2537]
[2538]
[2539]
[2540]
[2541]
[2542]
[2543]
[2544]
[2545]
[2546]
[2547]
[2548]
[2549]
[2550]
[2551]
[2552]
[2553]
[2554]
[2555]
[2556]
[2557]
[2558]
[2559]
[2560]
[2561]
[2562]
[2563]
[2564]
[2565]
[2566]
[2567]
[2568]
[2569]
[2570]
[2571]
[2572]
[2573]
[2574]
[2575]
[2576]
[2577]
[2578]
[2579]
[2580]
[2581]
[2582]
[2583]
[2584]
[2585]
[2586]
[2587]
[2588]
[2589]
[2590]
[2591]
[2592]
[2593]
[2594]
[2595]
[2596]
[2597]
[2598]
[2599]
[2600]
[2601]
[2602]
[2603]
[2604]
[2605]
[2606]
[2607]
[2608]
[2609]
[2610]
[2611]
[2612]
[2613]
[2614]
[2615]
[2616]
[2617]
[2618]
[2619]
[2620]
[2621]
[2622]
[2623]
[2624]
[2625]
[2626]
[2627]
[2628]
[2629]
[2630]
[2631]
[2632]
[2633]
[2634]
[2635]
[2636]
[2637]
[2638]
[2639]
[2640]
[2641]
[2642]
[2643]
[2644]
[2645]
[2646]
[2647]
[2648]
[2649]
[2650]
[2651]
[2652]
[2653]
[2654]
[2655]
[2656]
[2657]
[2658]
[2659]
[2660]
[2661]
[2662]
[2663]
[2664]
[2665]
[2666]
[2667]
[2668]
[2669]
[2670]
[2671]
[2672]
[2673]
[2674]
[2675]
[2676]
[2677]
[2678]
[2679]
[2680]
[2681]
[2682]
[2683]
[2684]
[2685]
[2686]
[2687]
[2688]
[2689]
[2690]
[2691]
[2692]
[2693]
[2694]
[2695]
[2696]
[2697]
[2698]
[2699]
[2700]
[2701]
[2702]
[2703]
[2704]
[2705]
[2706]
[2707]
[2708]
[2709]
[2710]
[2711]
[2712]
[2713]
[2714]
[2715]
[2716]
[2717]
[2718]
[2719]
[2720]
[2721]
[2722]
[2723]
[2724]
[2725]
[2726]
[2727]
[2728]
[2729]
[2730]
[2731]
[2732]
[2733]
[2734]
[2735]
[2736]
[2737]
[2738]
[2739]
[2740]
[2741]
[2742]
[2743]
[2744]
[2745]
[2746]
[2747]
[2748]
[2749]
[2750]
[2751]
[2752]
[2753]
[2754]
[2755]
[2756]
[2757]
[2758]
[2759]
[2760]
[2761]
[2762]
[2763]
[2764]
[2765]
[2766]
[2767]
[2768]
[2769]
[2770]
[2771]
[2772]
[2773]
[2774]
[2775]
[2776]
[2777]
[2778]
[2779]
[2780]
[2781]
[2782]
[2783]
[2784]
[2785]
[2786]
[2787]
[2788]
[2789]
[2790]
[2791]
[2792]
[2793]
[2794]
[2795]
[2796]
[2797]
[2798]
[2799]
[2800]
[2801]
[2802]
[2803]
[2804]
[2805]
[2806]
[2807]
[2808]
[2809]
[2810]
[2811]
[2812]
[2813]
[2814]
[2815]
[2816]
[2817]
[2818]
[2819]
[2820]
[2821]
[2822]
[2823]
[2824]
[2825]
[2826]
[2827]
[2828]
[2829]
[2830]
[2831]
[2832]
[2833]
[2834]
[2835]
[2836]
[2837]
[2838]
[2839]
[2840]
[2841]
[2842]
[2843]
[2844]
[2845]
[2846]
[2847]
[2848]
[2849]
[2850]
[2851]
[2852]
[2853]
[2854]
[2855]
[2856]
[2857]
[2858]
[2859]
[2860]
[2861]
[2862]
[2863]
[2864]
[2865]
[2866]
[2867]
[2868]
[2869]
[2870]
[2871]
[2872]
[2873]
[2874]
[2875]
[2876]
[2877]
[2878]
[2879]
[2880]
[2881]
[2882]
[2883]
[2884]
[2885]
[2886]
[2887]
[2888]
[2889]
[2890]
[2891]
[2892]
[2893]
[2894]
[2895]
[2896]
[2897]
[2898]
[2899]
[2900]
[2901]
[2902]
[2903]
[2904]
[2905]
[2906]
[2907]
[2908]
[2909]
[2910]
[2911]
[2912]
[2913]
[2914]
[2915]
[2916]
[2917]
[2918]
[2919]
[2920]
[2921]
[2922]
[2923]
[2924]
[2925]
[2926]
[2927]
[2928]
[2929]
[2930]
[2931]
[2932]
[2933]
[2934]
[2935]
[2936]
[2937]
[2938]
[2939]
[2940]
[2941]
[2942]
[2943]
[2944]
[2945]
[2946]
[2947]
[2948]
[2949]
[2950]
[2951]
[2952]
[2953]
[2954]
[2955]
[2956]
[2957]
[2958]
[2959]
[2960]
[2961]
[2962]
[2963]
[2964]
[2965]
[2966]
[2967]
[2968]
[2969]
[2970]
[2971]
[2972]
[2973]
[2974]
[2975]
[2976]
[2977]
[2978]
[2979]
[2980]
[2981]
[2982]
[2983]
[2984]
[2985]
[2986]
[2987]
[2988]
[2989]
[2990]
[2991]
[2992]
[2993]
[2994]
[2995]
[2996]
[2997]
[2998]
[2999]
[3000]
[3001]
[3002]
[3003]
[3004]
[3005]
[3006]
[3007]
[3008]
[3009]
[3010]
[3011]
[3012]
[3013]
[3014]
[3015]
[3016]
[3017]
[3018]
[3019]
[3020]
[3021]
[3022]
[3023]
[3024]
[3025]
[3026]
[3027]
[3028]
[3029]
[3030]
[3031]
[3032]
[3033]
[3034]
[3035]
[3036]
[3037]
[3038]
[3039]
[3040]
[3041]
[3042]
[3043]
[3044]
[3045]
[3046]
[3047]
[3048]
[3049]
[3050]
[3051]
[3052]
[3053]
[3054]
[3055]
[3056]
[3057]
[3058]
[3059]
[3060]
[3061]
[3062]
[3063]
[3064]
[3065]
[3066]
[3067]
[3068]
[3069]
[3070]
[3071]
[3072]
[3073]
[3074]
[3075]
[3076]
[3077]
[3078]
[3079]
[3080]
[3081]
[3082]
[3083]
[3084]
[3085]
[3086]
[3087]
[3088]
[3089]
[3090]
[3091]
[3092]
[3093]
[3094]
[3095]
[3096]
[3097]
[3098]
[3099]
[3100]
[3101]
[3102]
[3103]
[3104]
[3105]
[3106]
[3107]
[3108]
[3109]
[3110]
[3111]
[3112]
[3113]
[3114]
[3115]
[3116]
[3117]
[3118]
[3119]
[3120]
[3121]
[3122]
[3123]
[3124]
[3125]
[3126]
[3127]
[3128]
[3129]
[3130]
[3131]
[3132]
[3133]
[3134]
[3135]
[3136]
[3137]
[3138]
[3139]
[3140]
[3141]
[3142]
[3143]
[3144]
[3145]
[3146]
[3147]
[3148]
[3149]
[3150]
[3151]
[3152]
[3153]
[3154]
[3155]
[3156]
[3157]
[3158]
[3159]
[3160]
[3161]
[3162]
[3163]
[3164]
[3165]
[3166]
[3167]
[3168]
[3169]
[3170]
[3171]
[3172]
[3173]
[3174]
[3175]
[3176]
[3177]
[3178]
[3179]
[3180]
[3181]
[3182]
[3183]
[3184]
[3185]
[3186]
[3187]
[3188]
[3189]
[3190]
[3191]
[3192]
[3193]
[3194]
[3195]
[3196]
[3197]
[3198]
[3199]
[3200]
[3201]
[3202]
[3203]
[3204]
[3205]
[3206]
[3207]
[3208]
[3209]
[3210]
[3211]
[3212]
[3213]
[3214]
[3215]
[3216]
[3217]
[3218]
[3219]
[3220]
[3221]
[3222]
[3223]
[3224]
[3225]
[3226]
[3227]
[3228]
[3229]
[3230]
[3231]
[3232]
[3233]
[3234]
[3235]
[3236]
[3237]
[3238]
[3239]
[3240]
[3241]
[3242]
[3243]
[3244]
[3245]
[3246]
[3247]
[3248]
[3249]
[3250]
[3251]
[3252]
[3253]
[3254]
[3255]
[3256]
[3257]
[3258]
[3259]
[3260]
[3261]
[3262]
[3263]
[3264]
[3265]
[3266]
[3267]
[3268]
[3269]
[3270]
[3271]
[3272]
[3273]
[3274]
[3275]
[3276]
[3277]
[3278]
[3279]
[3280]
[3281]
[3282]
[3283]
[3284]
[3285]
[3286]
[3287]
[3288]
[3289]
[3290]
[3291]
[3292]
[3293]
[3294]
[3295]
[3296]
[3297]
[3298]
[3299]
[3300]
[3301]
[3302]
[3303]
[3304]
[3305]
[3306]
[3307]
[3308]
[3309]
[3310]
[3311]
[3312]
[3313]
[3314]
[3315]
[3316]
[3317]
[3318]
[3319]
[3320]
[3321]
[3322]
[3323]
[3324]
[3325]
[3326]
[3327]
[3328]
[3329]
[3330]
[3331]
[3332]
[3333]
[3334]
[3335]
[3336]
[3337]
[3338]
[3339]
[3340]
[3341]
[3342]
[3343]
[3344]
[3345]
[3346]
[3347]
[3348]
[3349]
[3350]
[3351]
[3352]
[3353]
[3354]
[3355]
[3356]
[3357]
[3358]
[3359]
[3360]
[3361]
[3362]
[3363]
[3364]
[3365]
[3366]
[3367]
[3368]
[3369]
[3370]
[3371]
[3372]
[3373]
[3374]
[3375]
[3376]
[3377]
[3378]
[3379]
[3380]
[3381]
[3382]
[3383]
[3384]
[3385]
[3386]
[3387]
[3388]
[3389]
[3390]
[3391]
[3392]
[3393]
[3394]
[3395]
[3396]
[3397]
[3398]
[3399]
[3400]
[3401]
[3402]
[3403]
[3404]
[3405]
[3406]
[3407]
[3408]
[3409]
[3410]
[3411]
[3412]
[3413]
[3414]
[3415]
[3416]
[3417]
[3418]
[3419]
[3420]
[3421]
[3422]
[3423]
[3424]
[3425]
[3426]
[3427]
[3428]
[3429]
[3430]
[3431]
[3432]
[3433]
[3434]
[3435]
[3436]
[3437]
[3438]
[3439]
[3440]
[3441]
[3442]
[3443]
[3444]
[3445]
[3446]
[3447]
[3448]
[3449]
[3450]
[3451]
[3452]
[3453]
[3454]
[3455]
[3456]
[3457]
[3458]
[3459]
[3460]
[3461]
[3462]
[3463]
[3464]
[3465]
[3466]
[3467]
[3468]
[3469]
[3470]
[3471]
[3472]
[3473]
[3474]
[3475]
[3476]
[3477]
[3478]
[3479]
[3480]
[3481]
[3482]
[3483]
[3484]
[3485]
[3486]
[3487]
[3488]
[3489]
[3490]
[3491]
[3492]
[3493]
[3494]
[3495]
[3496]
[3497]
[3498]
[3499]
[3500]
[3501]
[3502]
[3503]
[3504]
[3505]
[3506]
[3507]
[3508]
[3509]
[3510]
[3511]
[3512]
[3513]
[3514]
[3515]
[3516]
[3517]
[3518]
[3519]
[3520]
[3521]
[3522]
[3523]
[3524]
[3525]
[3526]
[3527]
[3528]
[3529]
[3530]
[3531]
[3532]
[3533]
[3534]
[3535]
[3536]
[3537]
[3538]
[3539]
[3540]
[3541]
[3542]
[3543]
[3544]
[3545]
[3546]
[3547]
[3548]
[3549]
[3550]
[3551]
[3552]
[3553]
[3554]
[3555]
[3556]
[3557]
[3558]
[3559]
[3560]
[3561]
[3562]
[3563]
[3564]
[3565]
[3566]
[3567]
[3568]
[3569]
[3570]
[3571]
[3572]
[3573]
[3574]
[3575]
[3576]
[3577]
[3578]
[3579]
[3580]
[3581]
[3582]
[3583]
[3584]
[3585]
[3586]
[3587]
[3588]
[3589]
[3590]
[3591]
[3592]
[3593]
[3594]
[3595]
[3596]
[3597]
[3598]
[3599]
[3600]
[3601]
[3602]
[3603]
[3604]
[3605]
[3606]
[3607]
[3608]
[3609]
[3610]
[3611]
[3612]
[3613]
[3614]
[3615]
[3616]
[3617]
[3618]
[3619]
[3620]
[3621]
[3622]
[3623]
[3624]
[3625]
[3626]
[3627]
[3628]
[3629]
[3630]
[3631]
[3632]
[3633]
[3634]
[3635]
[3636]
[3637]
[3638]
[3639]
[3640]
[3641]
[3642]
[3643]
[3644]
[3645]
[3646]
[3647]
[3648]
[3649]
[3650]
[3651]
[3652]
[3653]
[3654]
[3655]
[3656]
[3657]
[3658]
[3659]
[3660]
[3661]
[3662]
[3663]
[3664]
[3665]
[3666]
[3667]
[3668]
[3669]
[3670]
[3671]
[3672]
[3673]
[3674]
[3675]
[3676]
[3677]
[3678]
[3679]
[3680]
[3681]
[3682]
[3683]
[3684]
[3685]
[3686]
[3687]
[3688]
[3689]
[3690]
[3691]
[3692]
[3693]
[3694]
[3695]
[3696]
[3697]
[3698]
[3699]
[3700]
[3701]
[3702]
[3703]
[3704]
[3705]
[3706]
[3707]
[3708]
[3709]
[3710]
[3711]
[3712]
[3713]
[3714]
[3715]
[3716]
[3717]
[3718]
[3719]
[3720]
[3721]
[3722]
[3723]
[3724]
[3725]
[3726]
[3727]
[3728]
[3729]
[3730]
[3731]
[3732]
[3733]
[3734]
[3735]
[3736]
[3737]
[3738]
[3739]
[3740]
[3741]
[3742]
[3743]
[3744]
[3745]
[3746]
[3747]
[3748]
[3749]
[3750]
[3751]
[3752]
[3753]
[3754]
[3755]
[3756]
[3757]
[3758]
[3759]
[3760]
[3761]
[3762]
[3763]
[3764]
[3765]
[3766]
[3767]
[3768]
[3769]
[3770]
[3771]
[3772]
[3773]
[3774]
[3775]
[3776]
[3777]
[3778]
[3779]
[3780]
[3781]
[3782]
[3783]
[3784]
[3785]
[3786]
[3787]
[3788]
[3789]
[3790]
[3791]
[3792]
[3793]
[3794]
[3795]
[3796]
[3797]
[3798]
[3799]
[3800]
[3801]
[3802]
[3803]
[3804]
[3805]
[3806]
[3807]
[3808]
[3809]
[3810]
[3811]
[3812]
[3813]
[3814]
[3815]
[3816]
[3817]
[3818]
[3819]
[3820]
[3821]
[3822]
[3823]
[3824]
[3825]
[3826]
[3827]
[3828]
[3829]
[3830]
[3831]
[3832]
[3833]
[3834]
[3835]
[3836]
[3837]
[3838]
[3839]
[3840]
[3841]
[3842]
[3843]
[3844]
[3845]
[3846]
[3847]
[3848]
[3849]
[3850]
[3851]
[3852]
[3853]
[3854]
[3855]
[3856]
[3857]
[3858]
[3859]
[3860]
[3861]
[3862]
[3863]
[3864]
[3865]
[3866]
[3867]
[3868]
[3869]
[3870]
[3871]
[3872]
[3873]
[3874]
[3875]
[3876]
[3877]
[3878]
[3879]
[3880]
[3881]
[3882]
[3883]
[3884]
[3885]
[3886]
[3887]
[3888]
[3889]
[3890]
[3891]
[3892]
[3893]
[3894]
[3895]
[3896]
[3897]
[3898]
[3899]
[3900]
[3901]
[3902]
[3903]
[3904]
[3905]
[3906]
[3907]
[3908]
[3909]
[3910]
[3911]
[3912]
[3913]
[3914]
[3915]
[3916]
[3917]
[3918]
[3919]
[3920]
[3921]
[3922]
[3923]
[3924]
[3925]
[3926]
[3927]
[3928]
[3929]
[3930]
[3931]
[3932]
[3933]
[3934]
[3935]
[3936]
[3937]
[3938]
[3939]
[3940]
[3941]
[3942]
[3943]
[3944]
[3945]
[3946]
[3947]
[3948]
[3949]
[3950]
[3951]
[3952]
[3953]
[3954]
[3955]
[3956]
[3957]
[3958]
[3959]
[3960]
[3961]
[3962]
[3963]
[3964]
[3965]
[3966]
[3967]
[3968]
[3969]
[3970]
[3971]
[3972]
[3973]
[3974]
[3975]
[3976]
[3977]
[3978]
[3979]
[3980]
[3981]
[3982]
[3983]
[3984]
[3985]
[3986]
[3987]
[3988]
[3989]
[3990]
[3991]
[3992]
[3993]
[3994]
[3995]
[3996]
[3997]
[3998]
[3999]
[4000]
[4001]
[4002]
[4003]
[4004]
[4005]
[4006]
[4007]
[4008]
[4009]
[4010]
[4011]
[4012]
[4013]
[4014]
[4015]
[4016]
[4017]
[4018]
[4019]
[4020]
[4021]
[4022]
[4023]
[4024]
[4025]
[4026]
[4027]
[4028]
[4029]
[4030]
[4031]
[4032]
[4033]
[4034]
[4035]
[4036]
[4037]
[4038]
[4039]
[4040]
[4041]
[4042]
[4043]
[4044]
[4045]
[4046]
[4047]
[4048]
[4049]
[4050]
[4051]
[4052]
[4053]
[4054]
[4055]
[4056]
[4057]
[4058]
[4059]
[4060]
[4061]
[4062]
[4063]
[4064]
[4065]
[4066]
[4067]
[4068]
[4069]
[4070]
[4071]
[4072]
[4073]
[4074]
[4075]
[4076]
[4077]
[4078]
[4079]
[4080]
[4081]
[4082]
[4083]
[4084]
[4085]
[4086]
[4087]
[4088]
[4089]
[4090]
[4091]
[4092]
[4093]
[4094]
[4095]
[4096]
[4097]
[4098]
[4099]
[4100]
[4101]
[4102]
[4103]
[4104]
[4105]
[4106]
[4107]
[4108]
[4109]
[4110]
[4111]
[4112]
[4113]
[4114]
[4115]
[4116]
[4117]
[4118]
[4119]
[4120]
[4121]
[4122]
[4123]
[4124]
[4125]
[4126]
[4127]
[4128]
[4129]
[4130]
[4131]
[4132]
[4133]
[4134]
[4135]
[4136]
[4137]
[4138]
[4139]
[4140]
[4141]
[4142]
[4143]
[4144]
[4145]
[4146]
[4147]
[4148]
[4149]
[4150]
[4151]
[4152]
[4153]
[4154]
[4155]
[4156]
[4157]
[4158]
[4159]
[4160]
[4161]
[4162]
[4163]
[4164]
[4165]
[4166]
[4167]
[4168]
[4169]
[4170]
[4171]
[4172]
[4173]
[4174]
[4175]
[4176]
[4177]
[4178]
[4179]
[4180]
[4181]
[4182]
[4183]
[4184]
[4185]
[4186]
[4187]
[4188]
[4189]
[4190]
[4191]
[4192]
[4193]
[4194]
[4195]
[4196]
[4197]
[4198]
[4199]
[4200]
[4201]
[4202]
[4203]
[4204]
[4205]
[4206]
[4207]
[4208]
[4209]
[4210]
[4211]
[4212]
[4213]
[4214]
[4215]
[4216]
[4217]
[4218]
[4219]
[4220]
[4221]
[4222]
[4223]
[4224]
[4225]
[4226]
[4227]
[4228]
[4229]
[4230]
[4231]
[4232]
[4233]
[4234]
[4235]
[4236]
[4237]
[4238]
[4239]
[4240]
[4241]
[4242]
[4243]
[4244]
[4245]
[4246]
[4247]
[4248]
[4249]
[4250]
[4251]
[4252]
[4253]
[4254]
[4255]
[4256]
[4257]
[4258]
[4259]
[4260]
[4261]
[4262]
[4263]
[4264]
[4265]
[4266]
[4267]
[4268]
[4269]
[4270]
[4271]
[4272]
[4273]
[4274]
[4275]
[4276]
[4277]
[4278]
[4279]
[4280]
[4281]
[4282]
[4283]
[4284]
[4285]
[4286]
[4287]
[4288]
[4289]
[4290]
[4291]
[4292]
[4293]
[4294]
[4295]
[4296]
[4297]
[4298]
[4299]
[4300]
[4301]
[4302]
[4303]
[4304]
[4305]
[4306]
[4307]
[4308]
[4309]
[4310]
[4311]
[4312]
[4313]
[4314]
[4315]
[4316]
[4317]
[4318]
[4319]
[4320]
[4321]
[4322]
[4323]
[4324]
[4325]
[4326]
[4327]
[4328]
[4329]
[4330]
[4331]
[4332]
[4333]
[4334]
[4335]
[4336]
[4337]
[4338]
[4339]
[4340]
[4341]
[4342]
[4343]
[4344]
[4345]
[4346]
[4347]
[4348]
[4349]
[4350]
[4351]
[4352]
[4353]
[4354]
[4355]
[4356]
[4357]
[4358]
[4359]
[4360]
[4361]
[4362]
[4363]
[4364]
[4365]
[4366]
[4367]
[4368]
[4369]
[4370]
[4371]
[4372]
[4373]
[4374]
[4375]
[4376]
[4377]
[4378]
[4379]
[4380]
[4381]
[4382]
[4383]
[4384]
[4385]
[4386]
[4387]
[4388]
[4389]
[4390]
[4391]
[4392]
[4393]
[4394]
[4395]
[4396]
[4397]
[4398]
[4399]
[4400]
[4401]
[4402]
[4403]
[4404]
[4405]
[4406]
[4407]
[4408]
[4409]
[4410]
[4411]
[4412]
[4413]
[4414]
[4415]
[4416]
[4417]
[4418]
[4419]
[4420]
[4421]
[4422]
[4423]
[4424]
[4425]
[4426]
[4427]
[4428]
[4429]
[4430]
[4431]
[4432]
[4433]
[4434]
[4435]
[4436]
[4437]
[4438]
[4439]
[4440]
[4441]
[4442]
[4443]
[4444]
[4445]
[4446]
[4447]
[4448]
[4449]
[4450]
[4451]
[4452]
[4453]
[4454]
[4455]
[4456]
[4457]
[4458]
[4459]
[4460]
[4461]
[4462]
[4463]
[4464]
[4465]
[4466]
[4467]
[4468]
[4469]
[4470]
[4471]
[4472]
[4473]
[4474]
[4475]
[4476]
[4477]
[4478]
[4479]
[4480]
[4481]
[4482]
[4483]
[4484]
[4485]
[4486]
[4487]
[4488]
[4489]
[4490]
[4491]
[4492]
[4493]
[4494]
[4495]
[4496]
[4497]
[4498]
[4499]
[4500]
[4501]
[4502]
[4503]
[4504]
[4505]
[4506]
[4507]
[4508]
[4509]
[4510]
[4511]
[4512]
[4513]
[4514]
[4515]
[4516]
[4517]
[4518]
[4519]
[4520]
[4521]
[4522]
[4523]
[4524]
[4525]
[4526]
[4527]
[4528]
[4529]
[4530]
[4531]
[4532]
[4533]
[4534]
[4535]
[4536]
[4537]
[4538]
[4539]
[4540]
[4541]
[4542]
[4543]
[4544]
[4545]
[4546]
[4547]
[4548]
[4549]
[4550]
[4551]
[4552]
[4553]
[4554]
[4555]
[4556]
[4557]
[4558]
[4559]
[4560]
[4561]
[4562]
[4563]
[4564]
[4565]
[4566]
[4567]
[4568]
[4569]
[4570]
[4571]
[4572]
[4573]
[4574]
[4575]
[4576]
[4577]
[4578]
[4579]
[4580]
[4581]
[4582]
[4583]
[4584]
[4585]
[4586]
[4587]
[4588]
[4589]
[4590]
[4591]
[4592]
[4593]
[4594]
[4595]
[4596]
[4597]
[4598]
[4599]
[4600]
[4601]
[4602]
[4603]
[4604]
[4605]
[4606]
[4607]
[4608]
[4609]
[4610]
[4611]
[4612]
[4613]
[4614]
[4615]
[4616]
[4617]
[4618]
[4619]
[4620]
[4621]
[4622]
[4623]
[4624]
[4625]
[4626]
[4627]
[4628]
[4629]
[4630]
[4631]
[4632]
[4633]
[4634]
[4635]
[4636]
[4637]
[4638]
[4639]
[4640]
[4641]
[4642]
[4643]
[4644]
[4645]
[4646]
[4647]
[4648]
[4649]
[4650]
[4651]
[4652]
[4653]
[4654]
[4655]
[4656]
[4657]
[4658]
[4659]
[4660]
[4661]
[4662]
[4663]
[4664]
[4665]
[4666]
[4667]
[4668]
[4669]
[4670]
[4671]
[4672]
[4673]
[4674]
[4675]
[4676]
[4677]
[4678]
[4679]
[4680]
[4681]
[4682]
[4683]
[4684]
[4685]
[4686]
[4687]
[4688]
[4689]
[4690]
[4691]
[4692]
[4693]
[4694]
[4695]
[4696]
[4697]
[4698]
[4699]
[4700]
[4701]
[4702]
[4703]
[4704]
[4705]
[4706]
[4707]
[4708]
[4709]
[4710]
[4711]
[4712]
[4713]
[4714]
[4715]
[4716]
[4717]
[4718]
[4719]
[4720]
[4721]
[4722]
[4723]
[4724]
[4725]
[4726]
[4727]
[4728]
[4729]
[4730]
[4731]
[4732]
[4733]
[4734]
[4735]
[4736]
[4737]
[4738]
[4739]
[4740]
[4741]
[4742]
[4743]
[4744]
[4745]
[4746]
[4747]
[4748]
[4749]
[4750]
[4751]
[4752]
[4753]
[4754]
[4755]
[4756]
[4757]
[4758]
[4759]
[4760]
[4761]
[4762]
[4763]
[4764]
[4765]
[4766]
[4767]
[4768]
[4769]
[4770]
[4771]
[4772]
[4773]
[4774]
[4775]
[4776]
[4777]
[4778]
[4779]
[4780]
[4781]
[4782]
[4783]
[4784]
[4785]
[4786]
[4787]
[4788]
[4789]
[4790]
[4791]
[4792]
[4793]
[4794]
[4795]
[4796]
[4797]
[4798]
[4799]
[4800]
[4801]
[4802]
[4803]
[4804]
[4805]
[4806]
[4807]
[4808]
[4809]
[4810]
[4811]
[4812]
[4813]
[4814]
[4815]
[4816]
[4817]
[4818]
[4819]
[4820]
[4821]
[4822]
[4823]
[4824]
[4825]
[4826]
[4827]
[4828]
[4829]
[4830]
[4831]
[4832]
[4833]
[4834]
[4835]
[4836]
[4837]
[4838]
[4839]
[4840]
[4841]
[4842]
[4843]
[4844]
[4845]
[4846]
[4847]
[4848]
[4849]
[4850]
[4851]
[4852]
[4853]
[4854]
[4855]
[4856]
[4857]
[4858]
[4859]
[4860]
[4861]
[4862]
[4863]
[4864]
[4865]
[4866]
[4867]
[4868]
[4869]
[4870]
[4871]
[4872]
[4873]
[4874]
[4875]
[4876]
[4877]
[4878]
[4879]
[4880]
[4881]
[4882]
[4883]
[4884]
[4885]
[4886]
[4887]
[4888]
[4889]
[4890]
[4891]
[4892]
[4893]
[4894]
[4895]
[4896]
[4897]
[4898]
[4899]
[4900]
[4901]
[4902]
[4903]
[4904]
[4905]
[4906]
[4907]
[4908]
[4909]
[4910]
[4911]
[4912]
[4913]
[4914]
[4915]
[4916]
[4917]
[4918]
[4919]
[4920]
[4921]
[4922]
[4923]
[4924]
[4925]
[4926]
[4927]
[4928]
[4929]
[4930]
[4931]
[4932]
[4933]
[4934]
[4935]
[4936]
[4937]
[4938]
[4939]
[4940]
[4941]
[4942]
[4943]
[4944]
[4945]
[4946]
[4947]
[4948]
[4949]
[4950]
[4951]
[4952]
[4953]
[4954]
[4955]
[4956]
[4957]
[4958]
[4959]
[4960]
[4961]
[4962]
[4963]
[4964]
[4965]
[4966]
[4967]
[4968]
[4969]
[4970]
[4971]
[4972]
[4973]
[4974]
[4975]
[4976]
[4977]
[4978]
[4979]
[4980]
[4981]
[4982]
[4983]
[4984]
[4985]
[4986]
[4987]
[4988]
[4989]
[4990]
[4991]
[4992]
[4993]
[4994]
[4995]
[4996]
[4997]
[4998]
[4999]
[5000]
[5001]
[5002]
[5003]
[5004]
[5005]
[5006]
[5007]
[5008]
[5009]
[5010]
[5011]
[5012]
[5013]
[5014]
[5015]
[5016]
[5017]
[5018]
[5019]
[5020]
[5021]
[5022]
[5023]
[5024]
[5025]
[5026]
[5027]
[5028]
[5029]
[5030]
[5031]
[5032]
[5033]
[5034]
[5035]
[5036]
[5037]
[5038]
[5039]
[5040]
[5041]
[5042]
[5043]
[5044]
[5045]
[5046]
[5047]
[5048]
[5049]
[5050]
[5051]
[5052]
[5053]
[5054]
[5055]
[5056]
[5057]
[5058]
[5059]
[5060]
[5061]
[5062]
[5063]
[5064]
[5065]
[5066]
[5067]
[5068]
[5069]
[5070]
[5071]
[5072]
[5073]
[5074]
[5075]
[5076]
[5077]
[5078]
[5079]
[5080]
[5081]
[5082]
[5083]
[5084]
[5085]
[5086]
[5087]
[5088]
[5089]
[5090]
[5091]
[5092]
[5093]
[5094]
[5095]
[5096]
[5097]
[5098]
[5099]
[5100]
[5101]
[5102]
[5103]
[5104]
[5105]
[5106]
[5107]
[5108]
[5109]
[5110]
[5111]
[5112]
[5113]
[5114]
[5115]
[5116]
[5117]
[5118]
[5119]
[5120]
[5121]
[5122]
[5123]
[5124]
[5125]
[5126]
[5127]
[5128]
[5129]
[5130]
[5131]
[5132]
[5133]
[5134]
[5135]
[5136]
[5137]
[5138]
[5139]
[5140]
[5141]
[5142]
[5143]
[5144]
[5145]
[5146]
[5147]
[5148]
[5149]
[5150]
[5151]
[5152]
[5153]
[5154]
[5155]
[5156]
[5157]
[5158]
[5159]
[5160]
[5161]
[5162]
[5163]
[5164]
[5165]
[5166]
[5167]
[5168]
[5169]
[5170]
[5171]
[5172]
[5173]
[5174]
[5175]
[5176]
[5177]
[5178]
[5179]
[5180]
[5181]
[5182]
[5183]
[5184]
[5185]
[5186]
[5187]
[5188]
[5189]
[5190]
[5191]
[5192]
[5193]
[5194]
[5195]
[5196]
[5197]
[5198]
[5199]
[5200]
[5201]
[5202]
[5203]
[5204]
[5205]
[5206]
[5207]
[5208]
[5209]
[5210]
[5211]
[5212]
[5213]
[5214]
[5215]
[5216]
[5217]
[5218]
[5219]
[5220]
[5221]
[5222]
[5223]
[5224]
[5225]
[5226]
[5227]
[5228]
[5229]
[5230]
[5231]
[5232]
[5233]
[5234]
[5235]
[5236]
[5237]
[5238]
[5239]
[5240]
[5241]
[5242]
[5243]
[5244]
[5245]
[5246]
[5247]
[5248]
[5249]
[5250]
[5251]
[5252]
[5253]
[5254]
[5255]
[5256]
[5257]
[5258]
[5259]
[5260]
[5261]
[5262]
[5263]
[5264]
[5265]
[5266]
[5267]
[5268]
[5269]
[5270]
[5271]
[5272]
[5273]
[5274]
[5275]
[5276]
[5277]
[5278]
[5279]
[5280]
[5281]
[5282]
[5283]
[5284]
[5285]
[5286]
[5287]
[5288]
[5289]
[5290]
[5291]
[5292]
[5293]
[5294]
[5295]
[5296]
[5297]
[5298]
[5299]
[5300]
[5301]
[5302]
[5303]
[5304]
[5305]
[5306]
[5307]
[5308]
[5309]
[5310]
[5311]
[5312]
[5313]
[5314]
[5315]
[5316]
[5317]
[5318]
[5319]
[5320]
[5321]
[5322]
[5323]
[5324]
[5325]
[5326]
[5327]
[5328]
[5329]
[5330]
[5331]
[5332]
[5333]
[5334]
[5335]
[5336]
[5337]
[5338]
[5339]
[5340]
[5341]
[5342]
[5343]
[5344]
[5345]
[5346]
[5347]
[5348]
[5349]
[5350]
[5351]
[5352]
[5353]
[5354]
[5355]
[5356]
[5357]
[5358]
[5359]
[5360]
[5361]
[5362]
[5363]
[5364]
[5365]
[5366]
[5367]
[5368]
[5369]
[5370]
[5371]
[5372]
[5373]
[5374]
[5375]
[5376]
[5377]
[5378]
[5379]
[5380]
[5381]
[5382]
[5383]
[5384]
[5385]
[5386]
[5387]
[5388]
[5389]
[5390]
[5391]
[5392]
[5393]
[5394]
[5395]
[5396]
[5397]
[5398]
[5399]
[5400]
[5401]
[5402]
[5403]
[5404]
[5405]
[5406]
[5407]
[5408]
[5409]
[5410]
[5411]
[5412]
[5413]
[5414]
[5415]
[5416]
[5417]
[5418]
[5419]
[5420]
[5421]
[5422]
[5423]
[5424]
[5425]
[5426]
[5427]
[5428]
[5429]
[5430]
[5431]
[5432]
[5433]
[5434]
[5435]
[5436]
[5437]
[5438]
[5439]
[5440]
[5441]
[5442]
[5443]
[5444]
[5445]
[5446]
[5447]
[5448]
[5449]
[5450]
[5451]
[5452]
[5453]
[5454]
[5455]
[5456]
[5457]
[5458]
[5459]
[5460]
[5461]
[5462]
[5463]
[5464]
[5465]
[5466]
[5467]
[5468]
[5469]
[5470]
[5471]
[5472]
[5473]
[5474]
[5475]
[5476]
[5477]
[5478]
[5479]
[5480]
[5481]
[5482]
[5483]
[5484]
[5485]
[5486]
[5487]
[5488]
[5489]
[5490]
[5491]
[5492]
[5493]
[5494]
[5495]
[5496]
[5497]
[5498]
[5499]
[5500]
[5501]
[5502]
[5503]
[5504]
[5505]
[5506]
[5507]
[5508]
[5509]
[5510]
[5511]
[5512]
[5513]
[5514]
[5515]
[5516]
[5517]
[5518]
[5519]
[5520]
[5521]
[5522]
[5523]
[5524]
[5525]
[5526]
[5527]
[5528]
[5529]
[5530]
[5531]
[5532]
[5533]
[5534]
[5535]
[5536]
[5537]
[5538]
[5539]
[5540]
[5541]
[5542]
[5543]
[5544]
[5545]
[5546]
[5547]
[5548]
[5549]
[5550]
[5551]
[5552]
[5553]
[5554]
[5555]
[5556]
[5557]
[5558]
[5559]
[5560]
[5561]
[5562]
[5563]
[5564]
[5565]
[5566]
[5567]
[5568]
[5569]
[5570]
[5571]
[5572]
[5573]
[5574]
[5575]
[5576]
[5577]
[5578]
[5579]
[5580]
[5581]
[5582]
[5583]
[5584]
[5585]
[5586]
[5587]
[5588]
[5589]
[5590]
[5591]
[5592]
[5593]
[5594]
[5595]
[5596]
[5597]
[5598]
[5599]
[5600]
[5601]
[5602]
[5603]
[5604]
[5605]
[5606]
[5607]
[5608]
[5609]
[5610]
[5611]
[5612]
[5613]
[5614]
[5615]
[5616]
[5617]
[5618]
[5619]
[5620]
[5621]
[5622]
[5623]
[5624]
[5625]
[5626]
[5627]
[5628]
[5629]
[5630]
[5631]
[5632]
[5633]
[5634]
[5635]
[5636]
[5637]
[5638]
[5639]
[5640]
[5641]
[5642]
[5643]
[5644]
[5645]
[5646]
[5647]
[5648]
[5649]
[5650]
[5651]
[5652]
[5653]
[5654]
[5655]
[5656]
[5657]
[5658]
[5659]
[5660]
[5661]
[5662]
[5663]
[5664]
[5665]
[5666]
[5667]
[5668]
[5669]
[5670]
[5671]
[5672]
[5673]
[5674]
[5675]
[5676]
[5677]
[5678]
[5679]
[5680]
[5681]
[5682]
[5683]
[5684]
[5685]
[5686]
[5687]
[5688]
[5689]
[5690]
[5691]
[5692]
[5693]
[5694]
[5695]
[5696]
[5697]
[5698]
[5699]
[5700,null,null,null,null,null,null,null,null,null,null,{"$f":"IF(AND(I5710=\"\",J5710=\"\"),\"\",L991+I5710-J5710-K5710)","v":""}]
[5701,null,null,null,null,null,null,null,null,null,null,""]
[5702,null,null,null,null,null,null,null,null,null,null,""]
[5703,null,null,null,null,null,null,null,null,null,null,""]
[5704,null,null,null,null,null,null,null,null,null,null,""]
[5705,null,null,null,null,null,null,null,null,null,null,""]
[5706,null,null,null,null,null,null,null,null,null,null,""]
[5707,null,null,null,null,null,null,null,null,null,null,""]
[5708,null,null,null,null,null,null,null,null,null,null,""]
[5709,null,null,null,null,null,null,null,null,null,null,""]
[5710,null,null,null,null,null,null,null,null,null,null,""]
[5711,null,null,null,null,null,null,null,null,null,null,""]
[5712,null,null,null,null,null,null,null,null,null,null,""]
[5713,null,null,null,null,null,null,null,null,null,null,""]
[5714,null,null,null,null,null,null,null,null,null,null,""]
[5715,null,null,null,null,null,null,null,null,null,null,""]
[5716,null,null,null,null,null,null,null,null,null,null,""]
[5717,null,null,null,null,null,null,null,null,null,null,""]
[5718,null,null,null,null,null,null,null,null,null,null,""]
[null,null,null,null,null,null,null,null,{"$f":"SUM(I11:I5728)","v":3015},{"$f":"SUM(J11:J5728)","v":2400},{"$f":"SUM(K11:K5728)","v":0}]

{"sheet":"1","index":1,"n_rows":1011,"n_cols":12,"rows_kept":1011,"cut":false,"hidden":false,"merged":[[1,7,4,7],[6,0,8,0],[6,1,8,1],[6,2,8,2],[6,3,8,3],[6,4,8,4],[6,5,8,5],[6,7,8,7],[1,1,1,3],[2,1,2,3],[3,1,3,3],[4,1,4,3],[6,8,6,10],[6,11,8,11],[7,8,8,8],[7,9,7,10],[6,6,8,6]]}
[]
[null,null,null,null,null,null,null,"قيودحساب صنف"]
[]
[]
[]
[]
["م","رقم السند قبض صرف فاتورة",1,"نوع","التاريخ","اســـــــم العميـــــــل اســـــــم الشركــــــة","الوصف","تفاصيل السند / بيان الحركة","الحركـــــة",null,null,"الرصيد العام لحركات النقدية بالصندوق"]
[null,null,null,null,null,null,null,null,"قبض ( مدين )","انواع سندات الصرف ( الدائنة )"]
[null,null,null,null,null,null,null,null,null,"ص /  رد سلف","ص / اخري"]
[]
[1,null,null,null,null,null,null,null,null,null,null,{"$f":"IF(AND(I11=\"\",J11=\"\"),\"\",L10+I11-J11-K11)","v":""}]
[2,null,null,null,null,null,null,null,null,null,null,""]
[3,null,null,null,null,null,null,null,null,null,null,""]
[4,null,null,null,null,null,null,null,null,null,null,""]
[5,null,null,null,null,null,null,null,null,null,null,""]
[6,null,null,null,null,null,null,null,null,null,null,""]
[7,null,null,null,null,null,null,null,null,null,null,""]
[8,null,null,null,null,null,null,null,null,null,null,""]
[9,null,null,null,null,null,null,null,null,null,null,""]
[10,null,null,null,null,null,null,null,null,null,null,""]
[11,null,null,null,null,null,null,null,null,null,null,""]
[12,null,null,null,null,null,null,null,null,null,null,""]
[13,null,null,null,null,null,null,null,null,null,null,""]
[14,null,null,null,null,null,null,null,null,null,null,""]
[15,null,null,null,null,null,null,null,null,null,null,""]
[16,null,null,null,null,null,null,null,null,null,null,""]
[17,null,null,null,null,null,null,null,null,null,null,""]
[18,null,null,null,null,null,null,null,null,null,null,""]
[19,null,null,null,null,null,null,null,null,null,null,""]
[20,null,null,null,null,null,null,null,null,null,null,""]
[21,null,null,null,null,null,null,null,null,null,null,""]
[22,null,null,null,null,null,null,null,null,null,null,""]
[23,null,null,null,null,null,null,null,null,null,null,""]
[24,null,null,null,null,null,null,null,null,null,null,""]
[25,null,null,null,null,null,null,null,null,null,null,""]
[26,null,null,null,null,null,null,null,null,null,null,""]
[27,null,null,null,null,null,null,null,null,null,null,""]
[28,null,null,null,null,null,null,null,null,null,null,""]
[29,null,null,null,null,null,null,null,null,null,null,""]
[30,null,null,null,null,null,null,null,null,null,null,""]
[31,null,null,null,null,null,null,null,null,null,null,""]
[32,null,null,null,null,null,null,null,null,null,null,""]
[33,null,null,null,null,null,null,null,null,null,null,""]
[34,null,null,null,null,null,null,null,null,null,null,""]
[35,null,null,null,null,null,null,null,null,null,null,""]
[36,null,null,null,null,null,null,null,null,null,null,""]
[37,null,null,null,null,null,null,null,null,null,null,""]
[38,null,null,null,null,null,null,null,null,null,null,""]
[39,null,null,null,null,null,null,null,null,null,null,""]
[40,null,null,null,null,null,null,null,null,null,null,""]
[41,null,null,null,null,null,null,null,null,null,null,""]
[42,null,null,null,null,null,null,null,null,null,null,""]
[43,null,null,null,null,null,null,null,null,null,null,""]
[44,null,null,null,null,null,null,null,null,null,null,""]
[45,null,null,null,null,null,null,null,null,null,null,""]
[46,null,null,null,null,null,null,null,null,null,null,""]
[47,null,null,null,null,null,null,null,null,null,null,""]
[48,null,null,null,null,null,null,null,null,null,null,""]
[49,null,null,null,null,null,null,null,null,null,null,""]
[50,null,null,null,null,null,null,null,null,null,null,""]
[51,null,null,null,null,null,null,null,null,null,null,""]
[52,null,null,null,null,null,null,null,null,null,null,""]
[53,null,null,null,null,null,null,null,null,null,null,""]
[54,null,null,null,null,null,null,null,null,null,null,""]
[55,null,null,null,null,null,null,null,null,null,null,""]
[56,null,null,null,null,null,null,null,null,null,null,""]
[57,null,null,null,null,null,null,null,null,null,null,""]
[58,null,null,null,null,null,null,null,null,null,null,""]
[59,null,null,null,null,null,null,null,null,null,null,""]
[60,null,null,null,null,null,null,null,null,null,null,""]
[61,null,null,null,null,null,null,null,null,null,null,""]
[62,null,null,null,null,null,null,null,null,null,null,""]
[63,null,null,null,null,null,null,null,null,null,null,""]
[64,null,null,null,null,null,null,null,null,null,null,""]
[65,null,null,null,null,null,null,null,null,null,null,{"$f":"IF(AND(I75=\"\",J75=\"\"),\"\",L74+I75-J75-K75)","v":""}]
[66,null,null,null,null,null,null,null,null,null,null,""]
[67,null,null,null,null,null,null,null,null,null,null,""]
[68,null,null,null,null,null,null,null,null,null,null,""]
[69,null,null,null,null,null,null,null,null,null,null,""]
[70,null,null,null,null,null,null,null,null,null,null,""]
[71,null,null,null,null,null,null,null,null,null,null,""]
[72,null,null,null,null,null,null,null,null,null,null,""]
[73,null,null,null,null,null,null,null,null,null,null,""]
[74,null,null,null,null,null,null,null,null,null,null,""]
[75,null,null,null,null,null,null,null,null,null,null,""]
[76,null,null,null,null,null,null,null,null,null,null,""]
[77,null,null,null,null,null,null,null,null,null,null,""]
[78,null,null,null,null,null,null,null,null,null,null,""]
[79,null,null,null,null,null,null,null,null,null,null,""]
[80,null,null,null,null,null,null,null,null,null,null,""]
[81,null,null,null,null,null,null,null,null,null,null,""]
[82,null,null,null,null,null,null,null,null,null,null,""]
[83,null,null,null,null,null,null,null,null,null,null,""]
[84,null,null,null,null,null,null,null,null,null,null,""]
[85,null,null,null,null,null,null,null,null,null,null,""]
[86,null,null,null,null,null,null,null,null,null,null,""]
[87,null,null,null,null,null,null,null,null,null,null,""]
[88,null,null,null,null,null,null,null,null,null,null,""]
[89,null,null,null,null,null,null,null,null,null,null,""]
[90,null,null,null,null,null,null,null,null,null,null,""]
[91,null,null,null,null,null,null,null,null,null,null,""]
[92,null,null,null,null,null,null,null,null,null,null,""]
[93,null,null,null,null,null,null,null,null,null,null,""]
[94,null,null,null,null,null,null,null,null,null,null,""]
[95,null,null,null,null,null,null,null,null,null,null,""]
[96,null,null,null,null,null,null,null,null,null,null,""]
[97,null,null,null,null,null,null,null,null,null,null,""]
[98,null,null,null,null,null,null,null,null,null,null,""]
[99,null,null,null,null,null,null,null,null,null,null,""]
[100,null,null,null,null,null,null,null,null,null,null,""]
[101,null,null,null,null,null,null,null,null,null,null,""]
[102,null,null,null,null,null,null,null,null,null,null,""]
[103,null,null,null,null,null,null,null,null,null,null,""]
[104,null,null,null,null,null,null,null,null,null,null,""]
[105,null,null,null,null,null,null,null,null,null,null,""]
[106,null,null,null,null,null,null,null,null,null,null,""]
[107,null,null,null,null,null,null,null,null,null,null,""]
[108,null,null,null,null,null,null,null,null,null,null,""]
[109,null,null,null,null,null,null,null,null,null,null,""]
[110,null,null,null,null,null,null,null,null,null,null,""]
[111,null,null,null,null,null,null,null,null,null,null,""]
[112,null,null,null,null,null,null,null,null,null,null,""]
[113,null,null,null,null,null,null,null,null,null,null,""]
[114,null,null,null,null,null,null,null,null,null,null,""]
[115,null,null,null,null,null,null,null,null,null,null,""]
[116,null,null,null,null,null,null,null,null,null,null,""]
[117,null,null,null,null,null,null,null,null,null,null,""]
[118,null,null,null,null,null,null,null,null,null,null,""]
[119,null,null,null,null,null,null,null,null,null,null,""]
[120,null,null,null,null,null,null,null,null,null,null,""]
[121,null,null,null,null,null,null,null,null,null,null,""]
[122,null,null,null,null,null,null,null,null,null,null,""]
[123,null,null,null,null,null,null,null,null,null,null,""]
[124,null,null,null,null,null,null,null,null,null,null,""]
[125,null,null,null,null,null,null,null,null,null,null,""]
[126,null,null,null,null,null,null,null,null,null,null,""]
[127,null,null,null,null,null,null,null,null,null,null,""]
[128,null,null,null,null,null,null,null,null,null,null,""]
[129,null,null,null,null,null,null,null,null,null,null,{"$f":"IF(AND(I139=\"\",J139=\"\"),\"\",L138+I139-J139-K139)","v":""}]
[130,null,null,null,null,null,null,null,null,null,null,""]
[131,null,null,null,null,null,null,null,null,null,null,""]
[132,null,null,null,null,null,null,null,null,null,null,""]
[133,null,null,null,null,null,null,null,null,null,null,""]
[134,null,null,null,null,null,null,null,null,null,null,""]
[135,null,null,null,null,null,null,null,null,null,null,""]
[136,null,null,null,null,null,null,null,null,null,null,""]
[137,null,null,null,null,null,null,null,null,null,null,""]
[138,null,null,null,null,null,null,null,null,null,null,""]
[139,null,null,null,null,null,null,null,null,null,null,""]
[140,null,null,null,null,null,null,null,null,null,null,""]
[141,null,null,null,null,null,null,null,null,null,null,""]
[142,null,null,null,null,null,null,null,null,null,null,""]
[143,null,null,null,null,null,null,null,null,null,null,""]
[144,null,null,null,null,null,null,null,null,null,null,""]
[145,null,null,null,null,null,null,null,null,null,null,""]
[146,null,null,null,null,null,null,null,null,null,null,""]
[147,null,null,null,null,null,null,null,null,null,null,""]
[148,null,null,null,null,null,null,null,null,null,null,""]
[149,null,null,null,null,null,null,null,null,null,null,""]
[150,null,null,null,null,null,null,null,null,null,null,""]
[151,null,null,null,null,null,null,null,null,null,null,""]
[152,null,null,null,null,null,null,null,null,null,null,""]
[153,null,null,null,null,null,null,null,null,null,null,""]
[154,null,null,null,null,null,null,null,null,null,null,""]
[155,null,null,null,null,null,null,null,null,null,null,""]
[156,null,null,null,null,null,null,null,null,null,null,""]
[157,null,null,null,null,null,null,null,null,null,null,""]
[158,null,null,null,null,null,null,null,null,null,null,""]
[159,null,null,null,null,null,null,null,null,null,null,""]
[160,null,null,null,null,null,null,null,null,null,null,""]
[161,null,null,null,null,null,null,null,null,null,null,""]
[162,null,null,null,null,null,null,null,null,null,null,""]
[163,null,null,null,null,null,null,null,null,null,null,""]
[164,null,null,null,null,null,null,null,null,null,null,""]
[165,null,null,null,null,null,null,null,null,null,null,""]
[166,null,null,null,null,null,null,null,null,null,null,""]
[167,null,null,null,null,null,null,null,null,null,null,""]
[168,null,null,null,null,null,null,null,null,null,null,""]
[169,null,null,null,null,null,null,null,null,null,null,""]
[170,null,null,null,null,null,null,null,null,null,null,""]
[171,null,null,null,null,null,null,null,null,null,null,""]
[172,null,null,null,null,null,null,null,null,null,null,""]
[173,null,null,null,null,null,null,null,null,null,null,""]
[174,null,null,null,null,null,null,null,null,null,null,""]
[175,null,null,null,null,null,null,null,null,null,null,""]
[176,null,null,null,null,null,null,null,null,null,null,""]
[177,null,null,null,null,null,null,null,null,null,null,""]
[178,null,null,null,null,null,null,null,null,null,null,""]
[179,null,null,null,null,null,null,null,null,null,null,""]
[180,null,null,null,null,null,null,null,null,null,null,""]
[181,null,null,null,null,null,null,null,null,null,null,""]
[182,null,null,null,null,null,null,null,null,null,null,""]
[183,null,null,null,null,null,null,null,null,null,null,""]
[184,null,null,null,null,null,null,null,null,null,null,""]
[185,null,null,null,null,null,null,null,null,null,null,""]
[186,null,null,null,null,null,null,null,null,null,null,""]
[187,null,null,null,null,null,null,null,null,null,null,""]
[188,null,null,null,null,null,null,null,null,null,null,""]
[189,null,null,null,null,null,null,null,null,null,null,""]
[190,null,null,null,null,null,null,null,null,null,null,""]
[191,null,null,null,null,null,null,null,null,null,null,""]
[192,null,null,null,null,null,null,null,null,null,null,""]
[193,null,null,null,null,null,null,null,null,null,null,{"$f":"IF(AND(I203=\"\",J203=\"\"),\"\",L202+I203-J203-K203)","v":""}]
[194,null,null,null,null,null,null,null,null,null,null,""]
[195,null,null,null,null,null,null,null,null,null,null,""]
[196,null,null,null,null,null,null,null,null,null,null,""]
[197,null,null,null,null,null,null,null,null,null,null,""]
[198,null,null,null,null,null,null,null,null,null,null,""]
[199,null,null,null,null,null,null,null,null,null,null,""]
[200,null,null,null,null,null,null,null,null,null,null,""]
[201,null,null,null,null,null,null,null,null,null,null,""]
[202,null,null,null,null,null,null,null,null,null,null,""]
[203,null,null,null,null,null,null,null,null,null,null,""]
[204,null,null,null,null,null,null,null,null,null,null,""]
[205,null,null,null,null,null,null,null,null,null,null,""]
[206,null,null,null,null,null,null,null,null,null,null,""]
[207,null,null,null,null,null,null,null,null,null,null,""]
[208,null,null,null,null,null,null,null,null,null,null,""]
[209,null,null,null,null,null,null,null,null,null,null,""]
[210,null,null,null,null,null,null,null,null,null,null,""]
[211,null,null,null,null,null,null,null,null,null,null,""]
[212,null,null,null,null,null,null,null,null,null,null,""]
[213,null,null,null,null,null,null,null,null,null,null,""]
[214,null,null,null,null,null,null,null,null,null,null,""]
[215,null,null,null,null,null,null,null,null,null,null,""]
[216,null,null,null,null,null,null,null,null,null,null,""]
[217,null,null,null,null,null,null,null,null,null,null,""]
[218,null,null,null,null,null,null,null,null,null,null,""]
[219,null,null,null,null,null,null,null,null,null,null,""]
[220,null,null,null,null,null,null,null,null,null,null,""]
[221,null,null,null,null,null,null,null,null,null,null,""]
[222,null,null,null,null,null,null,null,null,null,null,""]
[223,null,null,null,null,null,null,null,null,null,null,""]
[224,null,null,null,null,null,null,null,null,null,null,""]
[225,null,null,null,null,null,null,null,null,null,null,""]
[226,null,null,null,null,null,null,null,null,null,null,""]
[227,null,null,null,null,null,null,null,null,null,null,""]
[228,null,null,null,null,null,null,null,null,null,null,""]
[229,null,null,null,null,null,null,null,null,null,null,""]
[230,null,null,null,null,null,null,null,null,null,null,""]
[231,null,null,null,null,null,null,null,null,null,null,""]
[232,null,null,null,null,null,null,null,null,null,null,""]
[233,null,null,null,null,null,null,null,null,null,null,""]
[234,null,null,null,null,null,null,null,null,null,null,""]
[235,null,null,null,null,null,null,null,null,null,null,""]
[236,null,null,null,null,null,null,null,null,null,null,""]
[237,null,null,null,null,null,null,null,null,null,null,""]
[238,null,null,null,null,null,null,null,null,null,null,""]
[239,null,null,null,null,null,null,null,null,null,null,""]
[240,null,null,null,null,null,null,null,null,null,null,""]
[241,null,null,null,null,null,null,null,null,null,null,""]
[242,null,null,null,null,null,null,null,null,null,null,""]
[243,null,null,null,null,null,null,null,null,null,null,""]
[244,null,null,null,null,null,null,null,null,null,null,""]
[245,null,null,null,null,null,null,null,null,null,null,""]
[246,null,null,null,null,null,null,null,null,null,null,""]
[247,null,null,null,null,null,null,null,null,null,null,""]
[248,null,null,null,null,null,null,null,null,null,null,""]
[249,null,null,null,null,null,null,null,null,null,null,""]
[250,null,null,null,null,null,null,null,null,null,null,""]
[251,null,null,null,null,null,null,null,null,null,null,""]
[252,null,null,null,null,null,null,null,null,null,null,""]
[253,null,null,null,null,null,null,null,null,null,null,""]
[254,null,null,null,null,null,null,null,null,null,null,""]
[255,null,null,null,null,null,null,null,null,null,null,""]
[256,null,null,null,null,null,null,null,null,null,null,""]
[257,null,null,null,null,null,null,null,null,null,null,{"$f":"IF(AND(I267=\"\",J267=\"\"),\"\",L266+I267-J267-K267)","v":""}]
[258,null,null,null,null,null,null,null,null,null,null,""]
[259,null,null,null,null,null,null,null,null,null,null,""]
[260,null,null,null,null,null,null,null,null,null,null,""]
[261,null,null,null,null,null,null,null,null,null,null,""]
[262,null,null,null,null,null,null,null,null,null,null,""]
[263,null,null,null,null,null,null,null,null,null,null,""]
[264,null,null,null,null,null,null,null,null,null,null,""]
[265,null,null,null,null,null,null,null,null,null,null,""]
[266,null,null,null,null,null,null,null,null,null,null,""]
[267,null,null,null,null,null,null,null,null,null,null,""]
[268,null,null,null,null,null,null,null,null,null,null,""]
[269,null,null,null,null,null,null,null,null,null,null,""]
[270,null,null,null,null,null,null,null,null,null,null,""]
[271,null,null,null,null,null,null,null,null,null,null,""]
[272,null,null,null,null,null,null,null,null,null,null,""]
[273,null,null,null,null,null,null,null,null,null,null,""]
[274,null,null,null,null,null,null,null,null,null,null,""]
[275,null,null,null,null,null,null,null,null,null,null,""]
[276,null,null,null,null,null,null,null,null,null,null,""]
[277,null,null,null,null,null,null,null,null,null,null,""]
[278,null,null,null,null,null,null,null,null,null,null,""]
[279,null,null,null,null,null,null,null,null,null,null,""]
[280,null,null,null,null,null,null,null,null,null,null,""]
[281,null,null,null,null,null,null,null,null,null,null,""]
[282,null,null,null,null,null,null,null,null,null,null,""]
[283,null,null,null,null,null,null,null,null,null,null,""]
[284,null,null,null,null,null,null,null,null,null,null,""]
[285,null,null,null,null,null,null,null,null,null,null,""]
[286,null,null,null,null,null,null,null,null,null,null,""]
[287,null,null,null,null,null,null,null,null,null,null,""]
[288,null,null,null,null,null,null,null,null,null,null,""]
[289,null,null,null,null,null,null,null,null,null,null,""]
[290,null,null,null,null,null,null,null,null,null,null,""]
[291,null,null,null,null,null,null,null,null,null,null,""]
[292,null,null,null,null,null,null,null,null,null,null,""]
[293,null,null,null,null,null,null,null,null,null,null,""]
[294,null,null,null,null,null,null,null,null,null,null,""]
[295,null,null,null,null,null,null,null,null,null,null,""]
[296,null,null,null,null,null,null,null,null,null,null,""]
[297,null,null,null,null,null,null,null,null,null,null,""]
[298,null,null,null,null,null,null,null,null,null,null,""]
[299,null,null,null,null,null,null,null,null,null,null,""]
[300,null,null,null,null,null,null,null,null,null,null,""]
[301,null,null,null,null,null,null,null,null,null,null,""]
[302,null,null,null,null,null,null,null,null,null,null,""]
[303,null,null,null,null,null,null,null,null,null,null,""]
[304,null,null,null,null,null,null,null,null,null,null,""]
[305,null,null,null,null,null,null,null,null,null,null,""]
[306,null,null,null,null,null,null,null,null,null,null,""]
[307,null,null,null,null,null,null,null,null,null,null,""]
[308,null,null,null,null,null,null,null,null,null,null,""]
[309,null,null,null,null,null,null,null,null,null,null,""]
[310,null,null,null,null,null,null,null,null,null,null,""]
[311,null,null,null,null,null,null,null,null,null,null,""]
[312,null,null,null,null,null,null,null,null,null,null,""]
[313,null,null,null,null,null,null,null,null,null,null,""]
[314,null,null,null,null,null,null,null,null,null,null,""]
[315,null,null,null,null,null,null,null,null,null,null,""]
[316,null,null,null,null,null,null,null,null,null,null,""]
[317,null,null,null,null,null,null,null,null,null,null,""]
[318,null,null,null,null,null,null,null,null,null,null,""]
[319,null,null,null,null,null,null,null,null,null,null,""]
[320,null,null,null,null,null,null,null,null,null,null,""]
[321,null,null,null,null,null,null,null,null,null,null,{"$f":"IF(AND(I331=\"\",J331=\"\"),\"\",L330+I331-J331-K331)","v":""}]
[322,null,null,null,null,null,null,null,null,null,null,""]
[323,null,null,null,null,null,null,null,null,null,null,""]
[324,null,null,null,null,null,null,null,null,null,null,""]
[325,null,null,null,null,null,null,null,null,null,null,""]
[326,null,null,null,null,null,null,null,null,null,null,""]
[327,null,null,null,null,null,null,null,null,null,null,""]
[328,null,null,null,null,null,null,null,null,null,null,""]
[329,null,null,null,null,null,null,null,null,null,null,""]
[330,null,null,null,null,null,null,null,null,null,null,""]
[331,null,null,null,null,null,null,null,null,null,null,""]
[332,null,null,null,null,null,null,null,null,null,null,""]
[333,null,null,null,null,null,null,null,null,null,null,""]
[334,null,null,null,null,null,null,null,null,null,null,""]
[335,null,null,null,null,null,null,null,null,null,null,""]
[336,null,null,null,null,null,null,null,null,null,null,""]
[337,null,null,null,null,null,null,null,null,null,null,""]
[338,null,null,null,null,null,null,null,null,null,null,""]
[339,null,null,null,null,null,null,null,null,null,null,""]
[340,null,null,null,null,null,null,null,null,null,null,""]
[341,null,null,null,null,null,null,null,null,null,null,""]
[342,null,null,null,null,null,null,null,null,null,null,""]
[343,null,null,null,null,null,null,null,null,null,null,""]
[344,null,null,null,null,null,null,null,null,null,null,""]
[345,null,null,null,null,null,null,null,null,null,null,""]
[346,null,null,null,null,null,null,null,null,null,null,""]
[347,null,null,null,null,null,null,null,null,null,null,""]
[348,null,null,null,null,null,null,null,null,null,null,""]
[349,null,null,null,null,null,null,null,null,null,null,""]
[350,null,null,null,null,null,null,null,null,null,null,""]
[351,null,null,null,null,null,null,null,null,null,null,""]
[352,null,null,null,null,null,null,null,null,null,null,""]
[353,null,null,null,null,null,null,null,null,null,null,""]
[354,null,null,null,null,null,null,null,null,null,null,""]
[355,null,null,null,null,null,null,null,null,null,null,""]
[356,null,null,null,null,null,null,null,null,null,null,""]
[357,null,null,null,null,null,null,null,null,null,null,""]
[358,null,null,null,null,null,null,null,null,null,null,""]
[359,null,null,null,null,null,null,null,null,null,null,""]
[360,null,null,null,null,null,null,null,null,null,null,""]
[361,null,null,null,null,null,null,null,null,null,null,""]
[362,null,null,null,null,null,null,null,null,null,null,""]
[363,null,null,null,null,null,null,null,null,null,null,""]
[364,null,null,null,null,null,null,null,null,null,null,""]
[365,null,null,null,null,null,null,null,null,null,null,""]
[366,null,null,null,null,null,null,null,null,null,null,""]
[367,null,null,null,null,null,null,null,null,null,null,""]
[368,null,null,null,null,null,null,null,null,null,null,""]
[369,null,null,null,null,null,null,null,null,null,null,""]
[370,null,null,null,null,null,null,null,null,null,null,""]
[371,null,null,null,null,null,null,null,null,null,null,""]
[372,null,null,null,null,null,null,null,null,null,null,""]
[373,null,null,null,null,null,null,null,null,null,null,""]
[374,null,null,null,null,null,null,null,null,null,null,""]
[375,null,null,null,null,null,null,null,null,null,null,""]
[376,null,null,null,null,null,null,null,null,null,null,""]
[377,null,null,null,null,null,null,null,null,null,null,""]
[378,null,null,null,null,null,null,null,null,null,null,""]
[379,null,null,null,null,null,null,null,null,null,null,""]
[380,null,null,null,null,null,null,null,null,null,null,""]
[381,null,null,null,null,null,null,null,null,null,null,""]
[382,null,null,null,null,null,null,null,null,null,null,""]
[383,null,null,null,null,null,null,null,null,null,null,""]
[384,null,null,null,null,null,null,null,null,null,null,""]
[385,null,null,null,null,null,null,null,null,null,null,{"$f":"IF(AND(I395=\"\",J395=\"\"),\"\",L394+I395-J395-K395)","v":""}]
[386,null,null,null,null,null,null,null,null,null,null,""]
[387,null,null,null,null,null,null,null,null,null,null,""]
[388,null,null,null,null,null,null,null,null,null,null,""]
[389,null,null,null,null,null,null,null,null,null,null,""]
[390,null,null,null,null,null,null,null,null,null,null,""]
[391,null,null,null,null,null,null,null,null,null,null,""]
[392,null,null,null,null,null,null,null,null,null,null,""]
[393,null,null,null,null,null,null,null,null,null,null,""]
[394,null,null,null,null,null,null,null,null,null,null,""]
[395,null,null,null,null,null,null,null,null,null,null,""]
[396,null,null,null,null,null,null,null,null,null,null,""]
[397,null,null,null,null,null,null,null,null,null,null,""]
[398,null,null,null,null,null,null,null,null,null,null,""]
[399,null,null,null,null,null,null,null,null,null,null,""]
[400,null,null,null,null,null,null,null,null,null,null,""]
[401,null,null,null,null,null,null,null,null,null,null,""]
[402,null,null,null,null,null,null,null,null,null,null,""]
[403,null,null,null,null,null,null,null,null,null,null,""]
[404,null,null,null,null,null,null,null,null,null,null,""]
[405,null,null,null,null,null,null,null,null,null,null,""]
[406,null,null,null,null,null,null,null,null,null,null,""]
[407,null,null,null,null,null,null,null,null,null,null,""]
[408,null,null,null,null,null,null,null,null,null,null,""]
[409,null,null,null,null,null,null,null,null,null,null,""]
[410,null,null,null,null,null,null,null,null,null,null,""]
[411,null,null,null,null,null,null,null,null,null,null,""]
[412,null,null,null,null,null,null,null,null,null,null,""]
[413,null,null,null,null,null,null,null,null,null,null,""]
[414,null,null,null,null,null,null,null,null,null,null,""]
[415,null,null,null,null,null,null,null,null,null,null,""]
[416,null,null,null,null,null,null,null,null,null,null,""]
[417,null,null,null,null,null,null,null,null,null,null,""]
[418,null,null,null,null,null,null,null,null,null,null,""]
[419,null,null,null,null,null,null,null,null,null,null,""]
[420,null,null,null,null,null,null,null,null,null,null,""]
[421,null,null,null,null,null,null,null,null,null,null,""]
[422,null,null,null,null,null,null,null,null,null,null,""]
[423,null,null,null,null,null,null,null,null,null,null,""]
[424,null,null,null,null,null,null,null,null,null,null,""]
[425,null,null,null,null,null,null,null,null,null,null,""]
[426,null,null,null,null,null,null,null,null,null,null,""]
[427,null,null,null,null,null,null,null,null,null,null,""]
[428,null,null,null,null,null,null,null,null,null,null,""]
[429,null,null,null,null,null,null,null,null,null,null,""]
[430,null,null,null,null,null,null,null,null,null,null,""]
[431,null,null,null,null,null,null,null,null,null,null,""]
[432,null,null,null,null,null,null,null,null,null,null,""]
[433,null,null,null,null,null,null,null,null,null,null,""]
[434,null,null,null,null,null,null,null,null,null,null,""]
[435,null,null,null,null,null,null,null,null,null,null,""]
[436,null,null,null,null,null,null,null,null,null,null,""]
[437,null,null,null,null,null,null,null,null,null,null,""]
[438,null,null,null,null,null,null,null,null,null,null,""]
[439,null,null,null,null,null,null,null,null,null,null,""]
[440,null,null,null,null,null,null,null,null,null,null,""]
[441,null,null,null,null,null,null,null,null,null,null,""]
[442,null,null,null,null,null,null,null,null,null,null,""]
[443,null,null,null,null,null,null,null,null,null,null,""]
[444,null,null,null,null,null,null,null,null,null,null,""]
[445,null,null,null,null,null,null,null,null,null,null,""]
[446,null,null,null,null,null,null,null,null,null,null,""]
[447,null,null,null,null,null,null,null,null,null,null,""]
[448,null,null,null,null,null,null,null,null,null,null,""]
[449,null,null,null,null,null,null,null,null,null,null,{"$f":"IF(AND(I459=\"\",J459=\"\"),\"\",L458+I459-J459-K459)","v":""}]
[450,null,null,null,null,null,null,null,null,null,null,""]
[451,null,null,null,null,null,null,null,null,null,null,""]
[452,null,null,null,null,null,null,null,null,null,null,""]
[453,null,null,null,null,null,null,null,null,null,null,""]
[454,null,null,null,null,null,null,null,null,null,null,""]
[455,null,null,null,null,null,null,null,null,null,null,""]
[456,null,null,null,null,null,null,null,null,null,null,""]
[457,null,null,null,null,null,null,null,null,null,null,""]
[458,null,null,null,null,null,null,null,null,null,null,""]
[459,null,null,null,null,null,null,null,null,null,null,""]
[460,null,null,null,null,null,null,null,null,null,null,""]
[461,null,null,null,null,null,null,null,null,null,null,""]
[462,null,null,null,null,null,null,null,null,null,null,""]
[463,null,null,null,null,null,null,null,null,null,null,""]
[464,null,null,null,null,null,null,null,null,null,null,""]
[465,null,null,null,null,null,null,null,null,null,null,""]
[466,null,null,null,null,null,null,null,null,null,null,""]
[467,null,null,null,null,null,null,null,null,null,null,""]
[468,null,null,null,null,null,null,null,null,null,null,""]
[469,null,null,null,null,null,null,null,null,null,null,""]
[470,null,null,null,null,null,null,null,null,null,null,""]
[471,null,null,null,null,null,null,null,null,null,null,""]
[472,null,null,null,null,null,null,null,null,null,null,""]
[473,null,null,null,null,null,null,null,null,null,null,""]
[474,null,null,null,null,null,null,null,null,null,null,""]
[475,null,null,null,null,null,null,null,null,null,null,""]
[476,null,null,null,null,null,null,null,null,null,null,""]
[477,null,null,null,null,null,null,null,null,null,null,""]
[478,null,null,null,null,null,null,null,null,null,null,""]
[479,null,null,null,null,null,null,null,null,null,null,""]
[480,null,null,null,null,null,null,null,null,null,null,""]
[481,null,null,null,null,null,null,null,null,null,null,""]
[482,null,null,null,null,null,null,null,null,null,null,""]
[483,null,null,null,null,null,null,null,null,null,null,""]
[484,null,null,null,null,null,null,null,null,null,null,""]
[485,null,null,null,null,null,null,null,null,null,null,""]
[486,null,null,null,null,null,null,null,null,null,null,""]
[487,null,null,null,null,null,null,null,null,null,null,""]
[488,null,null,null,null,null,null,null,null,null,null,""]
[489,null,null,null,null,null,null,null,null,null,null,""]
[490,null,null,null,null,null,null,null,null,null,null,""]
[491,null,null,null,null,null,null,null,null,null,null,""]
[492,null,null,null,null,null,null,null,null,null,null,""]
[493,null,null,null,null,null,null,null,null,null,null,""]
[494,null,null,null,null,null,null,null,null,null,null,""]
[495,null,null,null,null,null,null,null,null,null,null,""]
[496,null,null,null,null,null,null,null,null,null,null,""]
[497,null,null,null,null,null,null,null,null,null,null,""]
[498,null,null,null,null,null,null,null,null,null,null,""]
[499,null,null,null,null,null,null,null,null,null,null,""]
[500,null,null,null,null,null,null,null,null,null,null,""]
[501,null,null,null,null,null,null,null,null,null,null,""]
[502,null,null,null,null,null,null,null,null,null,null,""]
[503,null,null,null,null,null,null,null,null,null,null,""]
[504,null,null,null,null,null,null,null,null,null,null,""]
[505,null,null,null,null,null,null,null,null,null,null,""]
[506,null,null,null,null,null,null,null,null,null,null,""]
[507,null,null,null,null,null,null,null,null,null,null,""]
[508,null,null,null,null,null,null,null,null,null,null,""]
[509,null,null,null,null,null,null,null,null,null,null,""]
[510,null,null,null,null,null,null,null,null,null,null,""]
[511,null,null,null,null,null,null,null,null,null,null,""]
[512,null,null,null,null,null,null,null,null,null,null,""]
[513,null,null,null,null,null,null,null,null,null,null,{"$f":"IF(AND(I523=\"\",J523=\"\"),\"\",L522+I523-J523-K523)","v":""}]
[514,null,null,null,null,null,null,null,null,null,null,""]
[515,null,null,null,null,null,null,null,null,null,null,""]
[516,null,null,null,null,null,null,null,null,null,null,""]
[517,null,null,null,null,null,null,null,null,null,null,""]
[518,null,null,null,null,null,null,null,null,null,null,""]
[519,null,null,null,null,null,null,null,null,null,null,""]
[520,null,null,null,null,null,null,null,null,null,null,""]
[521,null,null,null,null,null,null,null,null,null,null,""]
[522,null,null,null,null,null,null,null,null,null,null,""]
[523,null,null,null,null,null,null,null,null,null,null,""]
[524,null,null,null,null,null,null,null,null,null,null,""]
[525,null,null,null,null,null,null,null,null,null,null,""]
[526,null,null,null,null,null,null,null,null,null,null,""]
[527,null,null,null,null,null,null,null,null,null,null,""]
[528,null,null,null,null,null,null,null,null,null,null,""]
[529,null,null,null,null,null,null,null,null,null,null,""]
[530,null,null,null,null,null,null,null,null,null,null,""]
[531,null,null,null,null,null,null,null,null,null,null,""]
[532,null,null,null,null,null,null,null,null,null,null,""]
[533,null,null,null,null,null,null,null,null,null,null,""]
[534,null,null,null,null,null,null,null,null,null,null,""]
[535,null,null,null,null,null,null,null,null,null,null,""]
[536,null,null,null,null,null,null,null,null,null,null,""]
[537,null,null,null,null,null,null,null,null,null,null,""]
[538,null,null,null,null,null,null,null,null,null,null,""]
[539,null,null,null,null,null,null,null,null,null,null,""]
[540,null,null,null,null,null,null,null,null,null,null,""]
[541,null,null,null,null,null,null,null,null,null,null,""]
[542,null,null,null,null,null,null,null,null,null,null,""]
[543,null,null,null,null,null,null,null,null,null,null,""]
[544,null,null,null,null,null,null,null,null,null,null,""]
[545,null,null,null,null,null,null,null,null,null,null,""]
[546,null,null,null,null,null,null,null,null,null,null,""]
[547,null,null,null,null,null,null,null,null,null,null,""]
[548,null,null,null,null,null,null,null,null,null,null,""]
[549,null,null,null,null,null,null,null,null,null,null,""]
[550,null,null,null,null,null,null,null,null,null,null,""]
[551,null,null,null,null,null,null,null,null,null,null,""]
[552,null,null,null,null,null,null,null,null,null,null,""]
[553,null,null,null,null,null,null,null,null,null,null,""]
[554,null,null,null,null,null,null,null,null,null,null,""]
[555,null,null,null,null,null,null,null,null,null,null,""]
[556,null,null,null,null,null,null,null,null,null,null,""]
[557,null,null,null,null,null,null,null,null,null,null,""]
[558,null,null,null,null,null,null,null,null,null,null,""]
[559,null,null,null,null,null,null,null,null,null,null,""]
[560,null,null,null,null,null,null,null,null,null,null,""]
[561,null,null,null,null,null,null,null,null,null,null,""]
[562,null,null,null,null,null,null,null,null,null,null,""]
[563,null,null,null,null,null,null,null,null,null,null,""]
[564,null,null,null,null,null,null,null,null,null,null,""]
[565,null,null,null,null,null,null,null,null,null,null,""]
[566,null,null,null,null,null,null,null,null,null,null,""]
[567,null,null,null,null,null,null,null,null,null,null,""]
[568,null,null,null,null,null,null,null,null,null,null,""]
[569,null,null,null,null,null,null,null,null,null,null,""]
[570,null,null,null,null,null,null,null,null,null,null,""]
[571,null,null,null,null,null,null,null,null,null,null,""]
[572,null,null,null,null,null,null,null,null,null,null,""]
[573,null,null,null,null,null,null,null,null,null,null,""]
[574,null,null,null,null,null,null,null,null,null,null,""]
[575,null,null,null,null,null,null,null,null,null,null,""]
[576,null,null,null,null,null,null,null,null,null,null,""]
[577,null,null,null,null,null,null,null,null,null,null,{"$f":"IF(AND(I587=\"\",J587=\"\"),\"\",L586+I587-J587-K587)","v":""}]
[578,null,null,null,null,null,null,null,null,null,null,""]
[579,null,null,null,null,null,null,null,null,null,null,""]
[580,null,null,null,null,null,null,null,null,null,null,""]
[581,null,null,null,null,null,null,null,null,null,null,""]
[582,null,null,null,null,null,null,null,null,null,null,""]
[583,null,null,null,null,null,null,null,null,null,null,""]
[584,null,null,null,null,null,null,null,null,null,null,""]
[585,null,null,null,null,null,null,null,null,null,null,""]
[586,null,null,null,null,null,null,null,null,null,null,""]
[587,null,null,null,null,null,null,null,null,null,null,""]
[588,null,null,null,null,null,null,null,null,null,null,""]
[589,null,null,null,null,null,null,null,null,null,null,""]
[590,null,null,null,null,null,null,null,null,null,null,""]
[591,null,null,null,null,null,null,null,null,null,null,""]
[592,null,null,null,null,null,null,null,null,null,null,""]
[593,null,null,null,null,null,null,null,null,null,null,""]
[594,null,null,null,null,null,null,null,null,null,null,""]
[595,null,null,null,null,null,null,null,null,null,null,""]
[596,null,null,null,null,null,null,null,null,null,null,""]
[597,null,null,null,null,null,null,null,null,null,null,""]
[598,null,null,null,null,null,null,null,null,null,null,""]
[599,null,null,null,null,null,null,null,null,null,null,""]
[600,null,null,null,null,null,null,null,null,null,null,""]
[601,null,null,null,null,null,null,null,null,null,null,""]
[602,null,null,null,null,null,null,null,null,null,null,""]
[603,null,null,null,null,null,null,null,null,null,null,""]
[604,null,null,null,null,null,null,null,null,null,null,""]
[605,null,null,null,null,null,null,null,null,null,null,""]
[606,null,null,null,null,null,null,null,null,null,null,""]
[607,null,null,null,null,null,null,null,null,null,null,""]
[608,null,null,null,null,null,null,null,null,null,null,""]
[609,null,null,null,null,null,null,null,null,null,null,""]
[610,null,null,null,null,null,null,null,null,null,null,""]
[611,null,null,null,null,null,null,null,null,null,null,""]
[612,null,null,null,null,null,null,null,null,null,null,""]
[613,null,null,null,null,null,null,null,null,null,null,""]
[614,null,null,null,null,null,null,null,null,null,null,""]
[615,null,null,null,null,null,null,null,null,null,null,""]
[616,null,null,null,null,null,null,null,null,null,null,""]
[617,null,null,null,null,null,null,null,null,null,null,""]
[618,null,null,null,null,null,null,null,null,null,null,""]
[619,null,null,null,null,null,null,null,null,null,null,""]
[620,null,null,null,null,null,null,null,null,null,null,""]
[621,null,null,null,null,null,null,null,null,null,null,""]
[622,null,null,null,null,null,null,null,null,null,null,""]
[623,null,null,null,null,null,null,null,null,null,null,""]
[624,null,null,null,null,null,null,null,null,null,null,""]
[625,null,null,null,null,null,null,null,null,null,null,""]
[626,null,null,null,null,null,null,null,null,null,null,""]
[627,null,null,null,null,null,null,null,null,null,null,""]
[628,null,null,null,null,null,null,null,null,null,null,""]
[629,null,null,null,null,null,null,null,null,null,null,""]
[630,null,null,null,null,null,null,null,null,null,null,""]
[631,null,null,null,null,null,null,null,null,null,null,""]
[632,null,null,null,null,null,null,null,null,null,null,""]
[633,null,null,null,null,null,null,null,null,null,null,""]
[634,null,null,null,null,null,null,null,null,null,null,""]
[635,null,null,null,null,null,null,null,null,null,null,""]
[636,null,null,null,null,null,null,null,null,null,null,""]
[637,null,null,null,null,null,null,null,null,null,null,""]
[638,null,null,null,null,null,null,null,null,null,null,""]
[639,null,null,null,null,null,null,null,null,null,null,""]
[640,null,null,null,null,null,null,null,null,null,null,""]
[641,null,null,null,null,null,null,null,null,null,null,{"$f":"IF(AND(I651=\"\",J651=\"\"),\"\",L650+I651-J651-K651)","v":""}]
[642,null,null,null,null,null,null,null,null,null,null,""]
[643,null,null,null,null,null,null,null,null,null,null,""]
[644,null,null,null,null,null,null,null,null,null,null,""]
[645,null,null,null,null,null,null,null,null,null,null,""]
[646,null,null,null,null,null,null,null,null,null,null,""]
[647,null,null,null,null,null,null,null,null,null,null,""]
[648,null,null,null,null,null,null,null,null,null,null,""]
[649,null,null,null,null,null,null,null,null,null,null,""]
[650,null,null,null,null,null,null,null,null,null,null,""]
[651,null,null,null,null,null,null,null,null,null,null,""]
[652,null,null,null,null,null,null,null,null,null,null,""]
[653,null,null,null,null,null,null,null,null,null,null,""]
[654,null,null,null,null,null,null,null,null,null,null,""]
[655,null,null,null,null,null,null,null,null,null,null,""]
[656,null,null,null,null,null,null,null,null,null,null,""]
[657,null,null,null,null,null,null,null,null,null,null,""]
[658,null,null,null,null,null,null,null,null,null,null,""]
[659,null,null,null,null,null,null,null,null,null,null,""]
[660,null,null,null,null,null,null,null,null,null,null,""]
[661,null,null,null,null,null,null,null,null,null,null,""]
[662,null,null,null,null,null,null,null,null,null,null,""]
[663,null,null,null,null,null,null,null,null,null,null,""]
[664,null,null,null,null,null,null,null,null,null,null,""]
[665,null,null,null,null,null,null,null,null,null,null,""]
[666,null,null,null,null,null,null,null,null,null,null,""]
[667,null,null,null,null,null,null,null,null,null,null,""]
[668,null,null,null,null,null,null,null,null,null,null,""]
[669,null,null,null,null,null,null,null,null,null,null,""]
[670,null,null,null,null,null,null,null,null,null,null,""]
[671,null,null,null,null,null,null,null,null,null,null,""]
[672,null,null,null,null,null,null,null,null,null,null,""]
[673,null,null,null,null,null,null,null,null,null,null,""]
[674,null,null,null,null,null,null,null,null,null,null,""]
[675,null,null,null,null,null,null,null,null,null,null,""]
[676,null,null,null,null,null,null,null,null,null,null,""]
[677,null,null,null,null,null,null,null,null,null,null,""]
[678,null,null,null,null,null,null,null,null,null,null,""]
[679,null,null,null,null,null,null,null,null,null,null,""]
[680,null,null,null,null,null,null,null,null,null,null,""]
[681,null,null,null,null,null,null,null,null,null,null,""]
[682,null,null,null,null,null,null,null,null,null,null,""]
[683,null,null,null,null,null,null,null,null,null,null,""]
[684,null,null,null,null,null,null,null,null,null,null,""]
[685,null,null,null,null,null,null,null,null,null,null,""]
[686,null,null,null,null,null,null,null,null,null,null,""]
[687,null,null,null,null,null,null,null,null,null,null,""]
[688,null,null,null,null,null,null,null,null,null,null,""]
[689,null,null,null,null,null,null,null,null,null,null,""]
[690,null,null,null,null,null,null,null,null,null,null,""]
[691,null,null,null,null,null,null,null,null,null,null,""]
[692,null,null,null,null,null,null,null,null,null,null,""]
[693,null,null,null,null,null,null,null,null,null,null,""]
[694,null,null,null,null,null,null,null,null,null,null,""]
[695,null,null,null,null,null,null,null,null,null,null,""]
[696,null,null,null,null,null,null,null,null,null,null,""]
[697,null,null,null,null,null,null,null,null,null,null,""]
[698,null,null,null,null,null,null,null,null,null,null,""]
[699,null,null,null,null,null,null,null,null,null,null,""]
[700,null,null,null,null,null,null,null,null,null,null,""]
[701,null,null,null,null,null,null,null,null,null,null,""]
[702,null,null,null,null,null,null,null,null,null,null,""]
[703,null,null,null,null,null,null,null,null,null,null,""]
[704,null,null,null,null,null,null,null,null,null,null,""]
[705,null,null,null,null,null,null,null,null,null,null,{"$f":"IF(AND(I715=\"\",J715=\"\"),\"\",L714+I715-J715-K715)","v":""}]
[706,null,null,null,null,null,null,null,null,null,null,""]
[707,null,null,null,null,null,null,null,null,null,null,""]
[708,null,null,null,null,null,null,null,null,null,null,""]
[709,null,null,null,null,null,null,null,null,null,null,""]
[710,null,null,null,null,null,null,null,null,null,null,""]
[711,null,null,null,null,null,null,null,null,null,null,""]
[712,null,null,null,null,null,null,null,null,null,null,""]
[713,null,null,null,null,null,null,null,null,null,null,""]
[714,null,null,null,null,null,null,null,null,null,null,""]
[715,null,null,null,null,null,null,null,null,null,null,""]
[716,null,null,null,null,null,null,null,null,null,null,""]
[717,null,null,null,null,null,null,null,null,null,null,""]
[718,null,null,null,null,null,null,null,null,null,null,""]
[719,null,null,null,null,null,null,null,null,null,null,""]
[720,null,null,null,null,null,null,null,null,null,null,""]
[721,null,null,null,null,null,null,null,null,null,null,""]
[722,null,null,null,null,null,null,null,null,null,null,""]
[723,null,null,null,null,null,null,null,null,null,null,""]
[724,null,null,null,null,null,null,null,null,null,null,""]
[725,null,null,null,null,null,null,null,null,null,null,""]
[726,null,null,null,null,null,null,null,null,null,null,""]
[727,null,null,null,null,null,null,null,null,null,null,""]
[728,null,null,null,null,null,null,null,null,null,null,""]
[729,null,null,null,null,null,null,null,null,null,null,""]
[730,null,null,null,null,null,null,null,null,null,null,""]
[731,null,null,null,null,null,null,null,null,null,null,""]
[732,null,null,null,null,null,null,null,null,null,null,""]
[733,null,null,null,null,null,null,null,null,null,null,""]
[734,null,null,null,null,null,null,null,null,null,null,""]
[735,null,null,null,null,null,null,null,null,null,null,""]
[736,null,null,null,null,null,null,null,null,null,null,""]
[737,null,null,null,null,null,null,null,null,null,null,""]
[738,null,null,null,null,null,null,null,null,null,null,""]
[739,null,null,null,null,null,null,null,null,null,null,""]
[740,null,null,null,null,null,null,null,null,null,null,""]
[741,null,null,null,null,null,null,null,null,null,null,""]
[742,null,null,null,null,null,null,null,null,null,null,""]
[743,null,null,null,null,null,null,null,null,null,null,""]
[744,null,null,null,null,null,null,null,null,null,null,""]
[745,null,null,null,null,null,null,null,null,null,null,""]
[746,null,null,null,null,null,null,null,null,null,null,""]
[747,null,null,null,null,null,null,null,null,null,null,""]
[748,null,null,null,null,null,null,null,null,null,null,""]
[749,null,null,null,null,null,null,null,null,null,null,""]
[750,null,null,null,null,null,null,null,null,null,null,""]
[751,null,null,null,null,null,null,null,null,null,null,""]
[752,null,null,null,null,null,null,null,null,null,null,""]
[753,null,null,null,null,null,null,null,null,null,null,""]
[754,null,null,null,null,null,null,null,null,null,null,""]
[755,null,null,null,null,null,null,null,null,null,null,""]
[756,null,null,null,null,null,null,null,null,null,null,""]
[757,null,null,null,null,null,null,null,null,null,null,""]
[758,null,null,null,null,null,null,null,null,null,null,""]
[759,null,null,null,null,null,null,null,null,null,null,""]
[760,null,null,null,null,null,null,null,null,null,null,""]
[761,null,null,null,null,null,null,null,null,null,null,""]
[762,null,null,null,null,null,null,null,null,null,null,""]
[763,null,null,null,null,null,null,null,null,null,null,""]
[764,null,null,null,null,null,null,null,null,null,null,""]
[765,null,null,null,null,null,null,null,null,null,null,""]
[766,null,null,null,null,null,null,null,null,null,null,""]
[767,null,null,null,null,null,null,null,null,null,null,""]
[768,null,null,null,null,null,null,null,null,null,null,""]
[769,null,null,null,null,null,null,null,null,null,null,{"$f":"IF(AND(I779=\"\",J779=\"\"),\"\",L778+I779-J779-K779)","v":""}]
[770,null,null,null,null,null,null,null,null,null,null,""]
[771,null,null,null,null,null,null,null,null,null,null,""]
[772,null,null,null,null,null,null,null,null,null,null,""]
[773,null,null,null,null,null,null,null,null,null,null,""]
[774,null,null,null,null,null,null,null,null,null,null,""]
[775,null,null,null,null,null,null,null,null,null,null,""]
[776,null,null,null,null,null,null,null,null,null,null,""]
[777,null,null,null,null,null,null,null,null,null,null,""]
[778,null,null,null,null,null,null,null,null,null,null,""]
[779,null,null,null,null,null,null,null,null,null,null,""]
[780,null,null,null,null,null,null,null,null,null,null,""]
[781,null,null,null,null,null,null,null,null,null,null,""]
[782,null,null,null,null,null,null,null,null,null,null,""]
[783,null,null,null,null,null,null,null,null,null,null,""]
[784,null,null,null,null,null,null,null,null,null,null,""]
[785,null,null,null,null,null,null,null,null,null,null,""]
[786,null,null,null,null,null,null,null,null,null,null,""]
[787,null,null,null,null,null,null,null,null,null,null,""]
[788,null,null,null,null,null,null,null,null,null,null,""]
[789,null,null,null,null,null,null,null,null,null,null,""]
[790,null,null,null,null,null,null,null,null,null,null,""]
[791,null,null,null,null,null,null,null,null,null,null,""]
[792,null,null,null,null,null,null,null,null,null,null,""]
[793,null,null,null,null,null,null,null,null,null,null,""]
[794,null,null,null,null,null,null,null,null,null,null,""]
[795,null,null,null,null,null,null,null,null,null,null,""]
[796,null,null,null,null,null,null,null,null,null,null,""]
[797,null,null,null,null,null,null,null,null,null,null,""]
[798,null,null,null,null,null,null,null,null,null,null,""]
[799,null,null,null,null,null,null,null,null,null,null,""]
[800,null,null,null,null,null,null,null,null,null,null,""]
[801,null,null,null,null,null,null,null,null,null,null,""]
[802,null,null,null,null,null,null,null,null,null,null,""]
[803,null,null,null,null,null,null,null,null,null,null,""]
[804,null,null,null,null,null,null,null,null,null,null,""]
[805,null,null,null,null,null,null,null,null,null,null,""]
[806,null,null,null,null,null,null,null,null,null,null,""]
[807,null,null,null,null,null,null,null,null,null,null,""]
[808,null,null,null,null,null,null,null,null,null,null,""]
[809,null,null,null,null,null,null,null,null,null,null,""]
[810,null,null,null,null,null,null,null,null,null,null,""]
[811,null,null,null,null,null,null,null,null,null,null,""]
[812,null,null,null,null,null,null,null,null,null,null,""]
[813,null,null,null,null,null,null,null,null,null,null,""]
[814,null,null,null,null,null,null,null,null,null,null,""]
[815,null,null,null,null,null,null,null,null,null,null,""]
[816,null,null,null,null,null,null,null,null,null,null,""]
[817,null,null,null,null,null,null,null,null,null,null,""]
[818,null,null,null,null,null,null,null,null,null,null,""]
[819,null,null,null,null,null,null,null,null,null,null,""]
[820,null,null,null,null,null,null,null,null,null,null,""]
[821,null,null,null,null,null,null,null,null,null,null,""]
[822,null,null,null,null,null,null,null,null,null,null,""]
[823,null,null,null,null,null,null,null,null,null,null,""]
[824,null,null,null,null,null,null,null,null,null,null,""]
[825,null,null,null,null,null,null,null,null,null,null,""]
[826,null,null,null,null,null,null,null,null,null,null,""]
[827,null,null,null,null,null,null,null,null,null,null,""]
[828,null,null,null,null,null,null,null,null,null,null,""]
[829,null,null,null,null,null,null,null,null,null,null,""]
[830,null,null,null,null,null,null,null,null,null,null,""]
[831,null,null,null,null,null,null,null,null,null,null,""]
[832,null,null,null,null,null,null,null,null,null,null,""]
[833,null,null,null,null,null,null,null,null,null,null,{"$f":"IF(AND(I843=\"\",J843=\"\"),\"\",L842+I843-J843-K843)","v":""}]
[834,null,null,null,null,null,null,null,null,null,null,""]
[835,null,null,null,null,null,null,null,null,null,null,""]
[836,null,null,null,null,null,null,null,null,null,null,""]
[837,null,null,null,null,null,null,null,null,null,null,""]
[838,null,null,null,null,null,null,null,null,null,null,""]
[839,null,null,null,null,null,null,null,null,null,null,""]
[840,null,null,null,null,null,null,null,null,null,null,""]
[841,null,null,null,null,null,null,null,null,null,null,""]
[842,null,null,null,null,null,null,null,null,null,null,""]
[843,null,null,null,null,null,null,null,null,null,null,""]
[844,null,null,null,null,null,null,null,null,null,null,""]
[845,null,null,null,null,null,null,null,null,null,null,""]
[846,null,null,null,null,null,null,null,null,null,null,""]
[847,null,null,null,null,null,null,null,null,null,null,""]
[848,null,null,null,null,null,null,null,null,null,null,""]
[849,null,null,null,null,null,null,null,null,null,null,""]
[850,null,null,null,null,null,null,null,null,null,null,""]
[851,null,null,null,null,null,null,null,null,null,null,""]
[852,null,null,null,null,null,null,null,null,null,null,""]
[853,null,null,null,null,null,null,null,null,null,null,""]
[854,null,null,null,null,null,null,null,null,null,null,""]
[855,null,null,null,null,null,null,null,null,null,null,""]
[856,null,null,null,null,null,null,null,null,null,null,""]
[857,null,null,null,null,null,null,null,null,null,null,""]
[858,null,null,null,null,null,null,null,null,null,null,""]
[859,null,null,null,null,null,null,null,null,null,null,""]
[860,null,null,null,null,null,null,null,null,null,null,""]
[861,null,null,null,null,null,null,null,null,null,null,""]
[862,null,null,null,null,null,null,null,null,null,null,""]
[863,null,null,null,null,null,null,null,null,null,null,""]
[864,null,null,null,null,null,null,null,null,null,null,""]
[865,null,null,null,null,null,null,null,null,null,null,""]
[866,null,null,null,null,null,null,null,null,null,null,""]
[867,null,null,null,null,null,null,null,null,null,null,""]
[868,null,null,null,null,null,null,null,null,null,null,""]
[869,null,null,null,null,null,null,null,null,null,null,""]
[870,null,null,null,null,null,null,null,null,null,null,""]
[871,null,null,null,null,null,null,null,null,null,null,""]
[872,null,null,null,null,null,null,null,null,null,null,""]
[873,null,null,null,null,null,null,null,null,null,null,""]
[874,null,null,null,null,null,null,null,null,null,null,""]
[875,null,null,null,null,null,null,null,null,null,null,""]
[876,null,null,null,null,null,null,null,null,null,null,""]
[877,null,null,null,null,null,null,null,null,null,null,""]
[878,null,null,null,null,null,null,null,null,null,null,""]
[879,null,null,null,null,null,null,null,null,null,null,""]
[880,null,null,null,null,null,null,null,null,null,null,""]
[881,null,null,null,null,null,null,null,null,null,null,""]
[882,null,null,null,null,null,null,null,null,null,null,""]
[883,null,null,null,null,null,null,null,null,null,null,""]
[884,null,null,null,null,null,null,null,null,null,null,""]
[885,null,null,null,null,null,null,null,null,null,null,""]
[886,null,null,null,null,null,null,null,null,null,null,""]
[887,null,null,null,null,null,null,null,null,null,null,""]
[888,null,null,null,null,null,null,null,null,null,null,""]
[889,null,null,null,null,null,null,null,null,null,null,""]
[890,null,null,null,null,null,null,null,null,null,null,""]
[891,null,null,null,null,null,null,null,null,null,null,""]
[892,null,null,null,null,null,null,null,null,null,null,""]
[893,null,null,null,null,null,null,null,null,null,null,""]
[894,null,null,null,null,null,null,null,null,null,null,""]
[895,null,null,null,null,null,null,null,null,null,null,""]
[896,null,null,null,null,null,null,null,null,null,null,""]
[897,null,null,null,null,null,null,null,null,null,null,{"$f":"IF(AND(I907=\"\",J907=\"\"),\"\",L906+I907-J907-K907)","v":""}]
[898,null,null,null,null,null,null,null,null,null,null,""]
[899,null,null,null,null,null,null,null,null,null,null,""]
[900,null,null,null,null,null,null,null,null,null,null,""]
[901,null,null,null,null,null,null,null,null,null,null,""]
[902,null,null,null,null,null,null,null,null,null,null,""]
[903,null,null,null,null,null,null,null,null,null,null,""]
[904,null,null,null,null,null,null,null,null,null,null,""]
[905,null,null,null,null,null,null,null,null,null,null,""]
[906,null,null,null,null,null,null,null,null,null,null,""]
[907,null,null,null,null,null,null,null,null,null,null,""]
[908,null,null,null,null,null,null,null,null,null,null,""]
[909,null,null,null,null,null,null,null,null,null,null,""]
[910,null,null,null,null,null,null,null,null,null,null,""]
[911,null,null,null,null,null,null,null,null,null,null,""]
[912,null,null,null,null,null,null,null,null,null,null,""]
[913,null,null,null,null,null,null,null,null,null,null,""]
[914,null,null,null,null,null,null,null,null,null,null,""]
[915,null,null,null,null,null,null,null,null,null,null,""]
[916,null,null,null,null,null,null,null,null,null,null,""]
[917,null,null,null,null,null,null,null,null,null,null,""]
[918,null,null,null,null,null,null,null,null,null,null,""]
[919,null,null,null,null,null,null,null,null,null,null,""]
[920,null,null,null,null,null,null,null,null,null,null,""]
[921,null,null,null,null,null,null,null,null,null,null,""]
[922,null,null,null,null,null,null,null,null,null,null,""]
[923,null,null,null,null,null,null,null,null,null,null,""]
[924,null,null,null,null,null,null,null,null,null,null,""]
[925,null,null,null,null,null,null,null,null,null,null,""]
[926,null,null,null,null,null,null,null,null,null,null,""]
[927,null,null,null,null,null,null,null,null,null,null,""]
[928,null,null,null,null,null,null,null,null,null,null,""]
[929,null,null,null,null,null,null,null,null,null,null,""]
[930,null,null,null,null,null,null,null,null,null,null,""]
[931,null,null,null,null,null,null,null,null,null,null,""]
[932,null,null,null,null,null,null,null,null,null,null,""]
[933,null,null,null,null,null,null,null,null,null,null,""]
[934,null,null,null,null,null,null,null,null,null,null,""]
[935,null,null,null,null,null,null,null,null,null,null,""]
[936,null,null,null,null,null,null,null,null,null,null,""]
[937,null,null,null,null,null,null,null,null,null,null,""]
[938,null,null,null,null,null,null,null,null,null,null,""]
[939,null,null,null,null,null,null,null,null,null,null,""]
[940,null,null,null,null,null,null,null,null,null,null,""]
[941,null,null,null,null,null,null,null,null,null,null,""]
[942,null,null,null,null,null,null,null,null,null,null,""]
[943,null,null,null,null,null,null,null,null,null,null,""]
[944,null,null,null,null,null,null,null,null,null,null,""]
[945,null,null,null,null,null,null,null,null,null,null,""]
[946,null,null,null,null,null,null,null,null,null,null,""]
[947,null,null,null,null,null,null,null,null,null,null,""]
[948,null,null,null,null,null,null,null,null,null,null,""]
[949,null,null,null,null,null,null,null,null,null,null,""]
[950,null,null,null,null,null,null,null,null,null,null,""]
[951,null,null,null,null,null,null,null,null,null,null,""]
[952,null,null,null,null,null,null,null,null,null,null,""]
[953,null,null,null,null,null,null,null,null,null,null,""]
[954,null,null,null,null,null,null,null,null,null,null,""]
[955,null,null,null,null,null,null,null,null,null,null,""]
[956,null,null,null,null,null,null,null,null,null,null,""]
[957,null,null,null,null,null,null,null,null,null,null,""]
[958,null,null,null,null,null,null,null,null,null,null,""]
[959,null,null,null,null,null,null,null,null,null,null,""]
[960,null,null,null,null,null,null,null,null,null,null,""]
[961,null,null,null,null,null,null,null,null,null,null,{"$f":"IF(AND(I971=\"\",J971=\"\"),\"\",L970+I971-J971-K971)","v":""}]
[962,null,null,null,null,null,null,null,null,null,null,""]
[963,null,null,null,null,null,null,null,null,null,null,""]
[964,null,null,null,null,null,null,null,null,null,null,""]
[965,null,null,null,null,null,null,null,null,null,null,""]
[966,null,null,null,null,null,null,null,null,null,null,""]
[967,null,null,null,null,null,null,null,null,null,null,""]
[968,null,null,null,null,null,null,null,null,null,null,""]
[969,null,null,null,null,null,null,null,null,null,null,""]
[970,null,null,null,null,null,null,null,null,null,null,""]
[971,null,null,null,null,null,null,null,null,null,null,""]
[972,null,null,null,null,null,null,null,null,null,null,""]
[973,null,null,null,null,null,null,null,null,null,null,""]
[974,null,null,null,null,null,null,null,null,null,null,""]
[975,null,null,null,null,null,null,null,null,null,null,""]
[976,null,null,null,null,null,null,null,null,null,null,""]
[977,null,null,null,null,null,null,null,null,null,null,""]
[978,null,null,null,null,null,null,null,null,null,null,""]
[979,null,null,null,null,null,null,null,null,null,null,""]
[980,null,null,null,null,null,null,null,null,null,null,""]
[981,null,null,null,null,null,null,null,null,null,null,""]
[982,null,null,null,null,null,null,null,null,null,null,""]
[983,null,null,null,null,null,null,null,null,null,null,""]
[984,null,null,null,null,null,null,null,null,null,null,""]
[985,null,null,null,null,null,null,null,null,null,null,""]
[986,null,null,null,null,null,null,null,null,null,null,""]
[987,null,null,null,null,null,null,null,null,null,null,""]
[988,null,null,null,null,null,null,null,null,null,null,""]
[989,null,null,null,null,null,null,null,null,null,null,""]
[990,null,null,null,null,null,null,null,null,null,null,""]
[991,null,null,null,null,null,null,null,null,null,null,""]
[992,null,null,null,null,null,null,null,null,null,null,""]
[993,null,null,null,null,null,null,null,null,null,null,""]
[994,null,null,null,null,null,null,null,null,null,null,""]
[995,null,null,null,null,null,null,null,null,null,null,""]
[996,null,null,null,null,null,null,null,null,null,null,""]
[997,null,null,null,null,null,null,null,null,null,null,""]
[998,null,null,null,null,null,null,null,null,null,null,""]
[999,null,null,null,null,null,null,null,null,null,null,""]
[1000,null,null,null,null,null,null,null,null,null,null,""]
[null,null,null,null,null,null,null,null,{"$f":"SUM(I11:I1010)","v":0},{"$f":"SUM(J11:J1010)","v":0},{"$f":"SUM(K11:K1010)","v":0}]

{"sheet":"2","index":2,"n_rows":1011,"n_cols":12,"rows_kept":1011,"cut":false,"hidden":false,"merged":[[6,5,8,5],[6,6,8,6],[6,7,8,7],[6,8,6,10],[6,11,8,11],[7,8,8,8],[7,9,7,10],[1,1,1,3],[1,7,4,7],[2,1,2,3],[3,1,3,3],[4,1,4,3],[6,0,8,0],[6,1,8,1],[6,2,8,2],[6,3,8,3],[6,4,8,4]]}
[]
[null,null,null,null,null,null,null,"قيودحساب صنف"]
[]
[]
[]
[]
["م","رقم السند قبض صرف فاتورة",2,"نوع","التاريخ","اســـــــم العميـــــــل اســـــــم الشركــــــة","الوصف","تفاصيل السند / بيان الحركة","الحركـــــة",null,null,"الرصيد العام لحركات النقدية بالصندوق"]
[null,null,null,null,null,null,null,null,"قبض ( مدين )","انواع سندات الصرف ( الدائنة )"]
[null,null,null,null,null,null,null,null,null,"ص /  رد سلف","ص / اخري"]
[]
[1,null,null,null,null,null,null,null,null,null,null,{"$f":"IF(AND(I11=\"\",J11=\"\"),\"\",L10+I11-J11-K11)","v":""}]
[2,null,null,null,null,null,null,null,null,null,null,""]
[3,null,null,null,null,null,null,null,null,null,null,""]
[4,null,null,null,null,null,null,null,null,null,null,""]
[5,null,null,null,null,null,null,null,null,null,null,""]
[6,null,null,null,null,null,null,null,null,null,null,""]
[7,null,null,null,null,null,null,null,null,null,null,""]
[8,null,null,null,null,null,null,null,null,null,null,""]
[9,null,null,null,null,null,null,null,null,null,null,""]
[10,null,null,null,null,null,null,null,null,null,null,""]
[11,null,null,null,null,null,null,null,null,null,null,""]
[12,null,null,null,null,null,null,null,null,null,null,""]
[13,null,null,null,null,null,null,null,null,null,null,""]
[14,null,null,null,null,null,null,null,null,null,null,""]
[15,null,null,null,null,null,null,null,null,null,null,""]
[16,null,null,null,null,null,null,null,null,null,null,""]
[17,null,null,null,null,null,null,null,null,null,null,""]
[18,null,null,null,null,null,null,null,null,null,null,""]
[19,null,null,null,null,null,null,null,null,null,null,""]
[20,null,null,null,null,null,null,null,null,null,null,""]
[21,null,null,null,null,null,null,null,null,null,null,""]
[22,null,null,null,null,null,null,null,null,null,null,""]
[23,null,null,null,null,null,null,null,null,null,null,""]
[24,null,null,null,null,null,null,null,null,null,null,""]
[25,null,null,null,null,null,null,null,null,null,null,""]
[26,null,null,null,null,null,null,null,null,null,null,""]
[27,null,null,null,null,null,null,null,null,null,null,""]
[28,null,null,null,null,null,null,null,null,null,null,""]
[29,null,null,null,null,null,null,null,null,null,null,""]
[30,null,null,null,null,null,null,null,null,null,null,""]
[31,null,null,null,null,null,null,null,null,null,null,""]
[32,null,null,null,null,null,null,null,null,null,null,""]
[33,null,null,null,null,null,null,null,null,null,null,""]
[34,null,null,null,null,null,null,null,null,null,null,""]
[35,null,null,null,null,null,null,null,null,null,null,""]
[36,null,null,null,null,null,null,null,null,null,null,""]
[37,null,null,null,null,null,null,null,null,null,null,""]
[38,null,null,null,null,null,null,null,null,null,null,""]
[39,null,null,null,null,null,null,null,null,null,null,""]
[40,null,null,null,null,null,null,null,null,null,null,""]
[41,null,null,null,null,null,null,null,null,null,null,""]
[42,null,null,null,null,null,null,null,null,null,null,""]
[43,null,null,null,null,null,null,null,null,null,null,""]
[44,null,null,null,null,null,null,null,null,null,null,""]
[45,null,null,null,null,null,null,null,null,null,null,""]
[46,null,null,null,null,null,null,null,null,null,null,""]
[47,null,null,null,null,null,null,null,null,null,null,""]
[48,null,null,null,null,null,null,null,null,null,null,""]
[49,null,null,null,null,null,null,null,null,null,null,""]
[50,null,null,null,null,null,null,null,null,null,null,""]
[51,null,null,null,null,null,null,null,null,null,null,""]
[52,null,null,null,null,null,null,null,null,null,null,""]
[53,null,null,null,null,null,null,null,null,null,null,""]
[54,null,null,null,null,null,null,null,null,null,null,""]
[55,null,null,null,null,null,null,null,null,null,null,""]
[56,null,null,null,null,null,null,null,null,null,null,""]
[57,null,null,null,null,null,null,null,null,null,null,""]
[58,null,null,null,null,null,null,null,null,null,null,""]
[59,null,null,null,null,null,null,null,null,null,null,""]
[60,null,null,null,null,null,null,null,null,null,null,""]
[61,null,null,null,null,null,null,null,null,null,null,""]
[62,null,null,null,null,null,null,null,null,null,null,""]
[63,null,null,null,null,null,null,null,null,null,null,""]
[64,null,null,null,null,null,null,null,null,null,null,""]
[65,null,null,null,null,null,null,null,null,null,null,{"$f":"IF(AND(I75=\"\",J75=\"\"),\"\",L74+I75-J75-K75)","v":""}]
[66,null,null,null,null,null,null,null,null,null,null,""]
[67,null,null,null,null,null,null,null,null,null,null,""]
[68,null,null,null,null,null,null,null,null,null,null,""]
[69,null,null,null,null,null,null,null,null,null,null,""]
[70,null,null,null,null,null,null,null,null,null,null,""]
[71,null,null,null,null,null,null,null,null,null,null,""]
[72,null,null,null,null,null,null,null,null,null,null,""]
[73,null,null,null,null,null,null,null,null,null,null,""]
[74,null,null,null,null,null,null,null,null,null,null,""]
[75,null,null,null,null,null,null,null,null,null,null,""]
[76,null,null,null,null,null,null,null,null,null,null,""]
[77,null,null,null,null,null,null,null,null,null,null,""]
[78,null,null,null,null,null,null,null,null,null,null,""]
[79,null,null,null,null,null,null,null,null,null,null,""]
[80,null,null,null,null,null,null,null,null,null,null,""]
[81,null,null,null,null,null,null,null,null,null,null,""]
[82,null,null,null,null,null,null,null,null,null,null,""]
[83,null,null,null,null,null,null,null,null,null,null,""]
[84,null,null,null,null,null,null,null,null,null,null,""]
[85,null,null,null,null,null,null,null,null,null,null,""]
[86,null,null,null,null,null,null,null,null,null,null,""]
[87,null,null,null,null,null,null,null,null,null,null,""]
[88,null,null,null,null,null,null,null,null,null,null,""]
[89,null,null,null,null,null,null,null,null,null,null,""]
[90,null,null,null,null,null,null,null,null,null,null,""]
[91,null,null,null,null,null,null,null,null,null,null,""]
[92,null,null,null,null,null,null,null,null,null,null,""]
[93,null,null,null,null,null,null,null,null,null,null,""]
[94,null,null,null,null,null,null,null,null,null,null,""]
[95,null,null,null,null,null,null,null,null,null,null,""]
[96,null,null,null,null,null,null,null,null,null,null,""]
[97,null,null,null,null,null,null,null,null,null,null,""]
[98,null,null,null,null,null,null,null,null,null,null,""]
[99,null,null,null,null,null,null,null,null,null,null,""]
[100,null,null,null,null,null,null,null,null,null,null,""]
[101,null,null,null,null,null,null,null,null,null,null,""]
[102,null,null,null,null,null,null,null,null,null,null,""]
[103,null,null,null,null,null,null,null,null,null,null,""]
[104,null,null,null,null,null,null,null,null,null,null,""]
[105,null,null,null,null,null,null,null,null,null,null,""]
[106,null,null,null,null,null,null,null,null,null,null,""]
[107,null,null,null,null,null,null,null,null,null,null,""]
[108,null,null,null,null,null,null,null,null,null,null,""]
[109,null,null,null,null,null,null,null,null,null,null,""]
[110,null,null,null,null,null,null,null,null,null,null,""]
[111,null,null,null,null,null,null,null,null,null,null,""]
[112,null,null,null,null,null,null,null,null,null,null,""]
[113,null,null,null,null,null,null,null,null,null,null,""]
[114,null,null,null,null,null,null,null,null,null,null,""]
[115,null,null,null,null,null,null,null,null,null,null,""]
[116,null,null,null,null,null,null,null,null,null,null,""]
[117,null,null,null,null,null,null,null,null,null,null,""]
[118,null,null,null,null,null,null,null,null,null,null,""]
[119,null,null,null,null,null,null,null,null,null,null,""]
[120,null,null,null,null,null,null,null,null,null,null,""]
[121,null,null,null,null,null,null,null,null,null,null,""]
[122,null,null,null,null,null,null,null,null,null,null,""]
[123,null,null,null,null,null,null,null,null,null,null,""]
[124,null,null,null,null,null,null,null,null,null,null,""]
[125,null,null,null,null,null,null,null,null,null,null,""]
[126,null,null,null,null,null,null,null,null,null,null,""]
[127,null,null,null,null,null,null,null,null,null,null,""]
[128,null,null,null,null,null,null,null,null,null,null,""]
[129,null,null,null,null,null,null,null,null,null,null,{"$f":"IF(AND(I139=\"\",J139=\"\"),\"\",L138+I139-J139-K139)","v":""}]
[130,null,null,null,null,null,null,null,null,null,null,""]
[131,null,null,null,null,null,null,null,null,null,null,""]
[132,null,null,null,null,null,null,null,null,null,null,""]
[133,null,null,null,null,null,null,null,null,null,null,""]
[134,null,null,null,null,null,null,null,null,null,null,""]
[135,null,null,null,null,null,null,null,null,null,null,""]
[136,null,null,null,null,null,null,null,null,null,null,""]
[137,null,null,null,null,null,null,null,null,null,null,""]
[138,null,null,null,null,null,null,null,null,null,null,""]
[139,null,null,null,null,null,null,null,null,null,null,""]
[140,null,null,null,null,null,null,null,null,null,null,""]
[141,null,null,null,null,null,null,null,null,null,null,""]
[142,null,null,null,null,null,null,null,null,null,null,""]
[143,null,null,null,null,null,null,null,null,null,null,""]
[144,null,null,null,null,null,null,null,null,null,null,""]
[145,null,null,null,null,null,null,null,null,null,null,""]
[146,null,null,null,null,null,null,null,null,null,null,""]
[147,null,null,null,null,null,null,null,null,null,null,""]
[148,null,null,null,null,null,null,null,null,null,null,""]
[149,null,null,null,null,null,null,null,null,null,null,""]
[150,null,null,null,null,null,null,null,null,null,null,""]
[151,null,null,null,null,null,null,null,null,null,null,""]
[152,null,null,null,null,null,null,null,null,null,null,""]
[153,null,null,null,null,null,null,null,null,null,null,""]
[154,null,null,null,null,null,null,null,null,null,null,""]
[155,null,null,null,null,null,null,null,null,null,null,""]
[156,null,null,null,null,null,null,null,null,null,null,""]
[157,null,null,null,null,null,null,null,null,null,null,""]
[158,null,null,null,null,null,null,null,null,null,null,""]
[159,null,null,null,null,null,null,null,null,null,null,""]
[160,null,null,null,null,null,null,null,null,null,null,""]
[161,null,null,null,null,null,null,null,null,null,null,""]
[162,null,null,null,null,null,null,null,null,null,null,""]
[163,null,null,null,null,null,null,null,null,null,null,""]
[164,null,null,null,null,null,null,null,null,null,null,""]
[165,null,null,null,null,null,null,null,null,null,null,""]
[166,null,null,null,null,null,null,null,null,null,null,""]
[167,null,null,null,null,null,null,null,null,null,null,""]
[168,null,null,null,null,null,null,null,null,null,null,""]
[169,null,null,null,null,null,null,null,null,null,null,""]
[170,null,null,null,null,null,null,null,null,null,null,""]
[171,null,null,null,null,null,null,null,null,null,null,""]
[172,null,null,null,null,null,null,null,null,null,null,""]
[173,null,null,null,null,null,null,null,null,null,null,""]
[174,null,null,null,null,null,null,null,null,null,null,""]
[175,null,null,null,null,null,null,null,null,null,null,""]
[176,null,null,null,null,null,null,null,null,null,null,""]
[177,null,null,null,null,null,null,null,null,null,null,""]
[178,null,null,null,null,null,null,null,null,null,null,""]
[179,null,null,null,null,null,null,null,null,null,null,""]
[180,null,null,null,null,null,null,null,null,null,null,""]
[181,null,null,null,null,null,null,null,null,null,null,""]
[182,null,null,null,null,null,null,null,null,null,null,""]
[183,null,null,null,null,null,null,null,null,null,null,""]
[184,null,null,null,null,null,null,null,null,null,null,""]
[185,null,null,null,null,null,null,null,null,null,null,""]
[186,null,null,null,null,null,null,null,null,null,null,""]
[187,null,null,null,null,null,null,null,null,null,null,""]
[188,null,null,null,null,null,null,null,null,null,null,""]
[189,null,null,null,null,null,null,null,null,null,null,""]
[190,null,null,null,null,null,null,null,null,null,null,""]
[191,null,null,null,null,null,null,null,null,null,null,""]
[192,null,null,null,null,null,null,null,null,null,null,""]
[193,null,null,null,null,null,null,null,null,null,null,{"$f":"IF(AND(I203=\"\",J203=\"\"),\"\",L202+I203-J203-K203)","v":""}]
[194,null,null,null,null,null,null,null,null,null,null,""]
[195,null,null,null,null,null,null,null,null,null,null,""]
[196,null,null,null,null,null,null,null,null,null,null,""]
[197,null,null,null,null,null,null,null,null,null,null,""]
[198,null,null,null,null,null,null,null,null,null,null,""]
[199,null,null,null,null,null,null,null,null,null,null,""]
[200,null,null,null,null,null,null,null,null,null,null,""]
[201,null,null,null,null,null,null,null,null,null,null,""]
[202,null,null,null,null,null,null,null,null,null,null,""]
[203,null,null,null,null,null,null,null,null,null,null,""]
[204,null,null,null,null,null,null,null,null,null,null,""]
[205,null,null,null,null,null,null,null,null,null,null,""]
[206,null,null,null,null,null,null,null,null,null,null,""]
[207,null,null,null,null,null,null,null,null,null,null,""]
[208,null,null,null,null,null,null,null,null,null,null,""]
[209,null,null,null,null,null,null,null,null,null,null,""]
[210,null,null,null,null,null,null,null,null,null,null,""]
[211,null,null,null,null,null,null,null,null,null,null,""]
[212,null,null,null,null,null,null,null,null,null,null,""]
[213,null,null,null,null,null,null,null,null,null,null,""]
[214,null,null,null,null,null,null,null,null,null,null,""]
[215,null,null,null,null,null,null,null,null,null,null,""]
[216,null,null,null,null,null,null,null,null,null,null,""]
[217,null,null,null,null,null,null,null,null,null,null,""]
[218,null,null,null,null,null,null,null,null,null,null,""]
[219,null,null,null,null,null,null,null,null,null,null,""]
[220,null,null,null,null,null,null,null,null,null,null,""]
[221,null,null,null,null,null,null,null,null,null,null,""]
[222,null,null,null,null,null,null,null,null,null,null,""]
[223,null,null,null,null,null,null,null,null,null,null,""]
[224,null,null,null,null,null,null,null,null,null,null,""]
[225,null,null,null,null,null,null,null,null,null,null,""]
[226,null,null,null,null,null,null,null,null,null,null,""]
[227,null,null,null,null,null,null,null,null,null,null,""]
[228,null,null,null,null,null,null,null,null,null,null,""]
[229,null,null,null,null,null,null,null,null,null,null,""]
[230,null,null,null,null,null,null,null,null,null,null,""]
[231,null,null,null,null,null,null,null,null,null,null,""]
[232,null,null,null,null,null,null,null,null,null,null,""]
[233,null,null,null,null,null,null,null,null,null,null,""]
[234,null,null,null,null,null,null,null,null,null,null,""]
[235,null,null,null,null,null,null,null,null,null,null,""]
[236,null,null,null,null,null,null,null,null,null,null,""]
[237,null,null,null,null,null,null,null,null,null,null,""]
[238,null,null,null,null,null,null,null,null,null,null,""]
[239,null,null,null,null,null,null,null,null,null,null,""]
[240,null,null,null,null,null,null,null,null,null,null,""]
[241,null,null,null,null,null,null,null,null,null,null,""]
[242,null,null,null,null,null,null,null,null,null,null,""]
[243,null,null,null,null,null,null,null,null,null,null,""]
[244,null,null,null,null,null,null,null,null,null,null,""]
[245,null,null,null,null,null,null,null,null,null,null,""]
[246,null,null,null,null,null,null,null,null,null,null,""]
[247,null,null,null,null,null,null,null,null,null,null,""]
[248,null,null,null,null,null,null,null,null,null,null,""]
[249,null,null,null,null,null,null,null,null,null,null,""]
[250,null,null,null,null,null,null,null,null,null,null,""]
[251,null,null,null,null,null,null,null,null,null,null,""]
[252,null,null,null,null,null,null,null,null,null,null,""]
[253,null,null,null,null,null,null,null,null,null,null,""]
[254,null,null,null,null,null,null,null,null,null,null,""]
[255,null,null,null,null,null,null,null,null,null,null,""]
[256,null,null,null,null,null,null,null,null,null,null,""]
[257,null,null,null,null,null,null,null,null,null,null,{"$f":"IF(AND(I267=\"\",J267=\"\"),\"\",L266+I267-J267-K267)","v":""}]
[258,null,null,null,null,null,null,null,null,null,null,""]
[259,null,null,null,null,null,null,null,null,null,null,""]
[260,null,null,null,null,null,null,null,null,null,null,""]
[261,null,null,null,null,null,null,null,null,null,null,""]
[262,null,null,null,null,null,null,null,null,null,null,""]
[263,null,null,null,null,null,null,null,null,null,null,""]
[264,null,null,null,null,null,null,null,null,null,null,""]
[265,null,null,null,null,null,null,null,null,null,null,""]
[266,null,null,null,null,null,null,null,null,null,null,""]
[267,null,null,null,null,null,null,null,null,null,null,""]
[268,null,null,null,null,null,null,null,null,null,null,""]
[269,null,null,null,null,null,null,null,null,null,null,""]
[270,null,null,null,null,null,null,null,null,null,null,""]
[271,null,null,null,null,null,null,null,null,null,null,""]
[272,null,null,null,null,null,null,null,null,null,null,""]
[273,null,null,null,null,null,null,null,null,null,null,""]
[274,null,null,null,null,null,null,null,null,null,null,""]
[275,null,null,null,null,null,null,null,null,null,null,""]
[276,null,null,null,null,null,null,null,null,null,null,""]
[277,null,null,null,null,null,null,null,null,null,null,""]
[278,null,null,null,null,null,null,null,null,null,null,""]
[279,null,null,null,null,null,null,null,null,null,null,""]
[280,null,null,null,null,null,null,null,null,null,null,""]
[281,null,null,null,null,null,null,null,null,null,null,""]
[282,null,null,null,null,null,null,null,null,null,null,""]
[283,null,null,null,null,null,null,null,null,null,null,""]
[284,null,null,null,null,null,null,null,null,null,null,""]
[285,null,null,null,null,null,null,null,null,null,null,""]
[286,null,null,null,null,null,null,null,null,null,null,""]
[287,null,null,null,null,null,null,null,null,null,null,""]
[288,null,null,null,null,null,null,null,null,null,null,""]
[289,null,null,null,null,null,null,null,null,null,null,""]
[290,null,null,null,null,null,null,null,null,null,null,""]
[291,null,null,null,null,null,null,null,null,null,null,""]
[292,null,null,null,null,null,null,null,null,null,null,""]
[293,null,null,null,null,null,null,null,null,null,null,""]
[294,null,null,null,null,null,null,null,null,null,null,""]
[295,null,null,null,null,null,null,null,null,null,null,""]
[296,null,null,null,null,null,null,null,null,null,null,""]
[297,null,null,null,null,null,null,null,null,null,null,""]
[298,null,null,null,null,null,null,null,null,null,null,""]
[299,null,null,null,null,null,null,null,null,null,null,""]
[300,null,null,null,null,null,null,null,null,null,null,""]
[301,null,null,null,null,null,null,null,null,null,null,""]
[302,null,null,null,null,null,null,null,null,null,null,""]
[303,null,null,null,null,null,null,null,null,null,null,""]
[304,null,null,null,null,null,null,null,null,null,null,""]
[305,null,null,null,null,null,null,null,null,null,null,""]
[306,null,null,null,null,null,null,null,null,null,null,""]
[307,null,null,null,null,null,null,null,null,null,null,""]
[308,null,null,null,null,null,null,null,null,null,null,""]
[309,null,null,null,null,null,null,null,null,null,null,""]
[310,null,null,null,null,null,null,null,null,null,null,""]
[311,null,null,null,null,null,null,null,null,null,null,""]
[312,null,null,null,null,null,null,null,null,null,null,""]
[313,null,null,null,null,null,null,null,null,null,null,""]
[314,null,null,null,null,null,null,null,null,null,null,""]
[315,null,null,null,null,null,null,null,null,null,null,""]
[316,null,null,null,null,null,null,null,null,null,null,""]
[317,null,null,null,null,null,null,null,null,null,null,""]
[318,null,null,null,null,null,null,null,null,null,null,""]
[319,null,null,null,null,null,null,null,null,null,null,""]
[320,null,null,null,null,null,null,null,null,null,null,""]
[321,null,null,null,null,null,null,null,null,null,null,{"$f":"IF(AND(I331=\"\",J331=\"\"),\"\",L330+I331-J331-K331)","v":""}]
[322,null,null,null,null,null,null,null,null,null,null,""]
[323,null,null,null,null,null,null,null,null,null,null,""]
[324,null,null,null,null,null,null,null,null,null,null,""]
[325,null,null,null,null,null,null,null,null,null,null,""]
[326,null,null,null,null,null,null,null,null,null,null,""]
[327,null,null,null,null,null,null,null,null,null,null,""]
[328,null,null,null,null,null,null,null,null,null,null,""]
[329,null,null,null,null,null,null,null,null,null,null,""]
[330,null,null,null,null,null,null,null,null,null,null,""]
[331,null,null,null,null,null,null,null,null,null,null,""]
[332,null,null,null,null,null,null,null,null,null,null,""]
[333,null,null,null,null,null,null,null,null,null,null,""]
[334,null,null,null,null,null,null,null,null,null,null,""]
[335,null,null,null,null,null,null,null,null,null,null,""]
[336,null,null,null,null,null,null,null,null,null,null,""]
[337,null,null,null,null,null,null,null,null,null,null,""]
[338,null,null,null,null,null,null,null,null,null,null,""]
[339,null,null,null,null,null,null,null,null,null,null,""]
[340,null,null,null,null,null,null,null,null,null,null,""]
[341,null,null,null,null,null,null,null,null,null,null,""]
[342,null,null,null,null,null,null,null,null,null,null,""]
[343,null,null,null,null,null,null,null,null,null,null,""]
[344,null,null,null,null,null,null,null,null,null,null,""]
[345,null,null,null,null,null,null,null,null,null,null,""]
[346,null,null,null,null,null,null,null,null,null,null,""]
[347,null,null,null,null,null,null,null,null,null,null,""]
[348,null,null,null,null,null,null,null,null,null,null,""]
[349,null,null,null,null,null,null,null,null,null,null,""]
[350,null,null,null,null,null,null,null,null,null,null,""]
[351,null,null,null,null,null,null,null,null,null,null,""]
[352,null,null,null,null,null,null,null,null,null,null,""]
[353,null,null,null,null,null,null,null,null,null,null,""]
[354,null,null,null,null,null,null,null,null,null,null,""]
[355,null,null,null,null,null,null,null,null,null,null,""]
[356,null,null,null,null,null,null,null,null,null,null,""]
[357,null,null,null,null,null,null,null,null,null,null,""]
[358,null,null,null,null,null,null,null,null,null,null,""]
[359,null,null,null,null,null,null,null,null,null,null,""]
[360,null,null,null,null,null,null,null,null,null,null,""]
[361,null,null,null,null,null,null,null,null,null,null,""]
[362,null,null,null,null,null,null,null,null,null,null,""]
[363,null,null,null,null,null,null,null,null,null,null,""]
[364,null,null,null,null,null,null,null,null,null,null,""]
[365,null,null,null,null,null,null,null,null,null,null,""]
[366,null,null,null,null,null,null,null,null,null,null,""]
[367,null,null,null,null,null,null,null,null,null,null,""]
[368,null,null,null,null,null,null,null,null,null,null,""]
[369,null,null,null,null,null,null,null,null,null,null,""]
[370,null,null,null,null,null,null,null,null,null,null,""]
[371,null,null,null,null,null,null,null,null,null,null,""]
[372,null,null,null,null,null,null,null,null,null,null,""]
[373,null,null,null,null,null,null,null,null,null,null,""]
[374,null,null,null,null,null,null,null,null,null,null,""]
[375,null,null,null,null,null,null,null,null,null,null,""]
[376,null,null,null,null,null,null,null,null,null,null,""]
[377,null,null,null,null,null,null,null,null,null,null,""]
[378,null,null,null,null,null,null,null,null,null,null,""]
[379,null,null,null,null,null,null,null,null,null,null,""]
[380,null,null,null,null,null,null,null,null,null,null,""]
[381,null,null,null,null,null,null,null,null,null,null,""]
[382,null,null,null,null,null,null,null,null,null,null,""]
[383,null,null,null,null,null,null,null,null,null,null,""]
[384,null,null,null,null,null,null,null,null,null,null,""]
[385,null,null,null,null,null,null,null,null,null,null,{"$f":"IF(AND(I395=\"\",J395=\"\"),\"\",L394+I395-J395-K395)","v":""}]
[386,null,null,null,null,null,null,null,null,null,null,""]
[387,null,null,null,null,null,null,null,null,null,null,""]
[388,null,null,null,null,null,null,null,null,null,null,""]
[389,null,null,null,null,null,null,null,null,null,null,""]
[390,null,null,null,null,null,null,null,null,null,null,""]
[391,null,null,null,null,null,null,null,null,null,null,""]
[392,null,null,null,null,null,null,null,null,null,null,""]
[393,null,null,null,null,null,null,null,null,null,null,""]
[394,null,null,null,null,null,null,null,null,null,null,""]
[395,null,null,null,null,null,null,null,null,null,null,""]
[396,null,null,null,null,null,null,null,null,null,null,""]
[397,null,null,null,null,null,null,null,null,null,null,""]
[398,null,null,null,null,null,null,null,null,null,null,""]
[399,null,null,null,null,null,null,null,null,null,null,""]
[400,null,null,null,null,null,null,null,null,null,null,""]
[401,null,null,null,null,null,null,null,null,null,null,""]
[402,null,null,null,null,null,null,null,null,null,null,""]
[403,null,null,null,null,null,null,null,null,null,null,""]
[404,null,null,null,null,null,null,null,null,null,null,""]
[405,null,null,null,null,null,null,null,null,null,null,""]
[406,null,null,null,null,null,null,null,null,null,null,""]
[407,null,null,null,null,null,null,null,null,null,null,""]
[408,null,null,null,null,null,null,null,null,null,null,""]
[409,null,null,null,null,null,null,null,null,null,null,""]
[410,null,null,null,null,null,null,null,null,null,null,""]
[411,null,null,null,null,null,null,null,null,null,null,""]
[412,null,null,null,null,null,null,null,null,null,null,""]
[413,null,null,null,null,null,null,null,null,null,null,""]
[414,null,null,null,null,null,null,null,null,null,null,""]
[415,null,null,null,null,null,null,null,null,null,null,""]
[416,null,null,null,null,null,null,null,null,null,null,""]
[417,null,null,null,null,null,null,null,null,null,null,""]
[418,null,null,null,null,null,null,null,null,null,null,""]
[419,null,null,null,null,null,null,null,null,null,null,""]
[420,null,null,null,null,null,null,null,null,null,null,""]
[421,null,null,null,null,null,null,null,null,null,null,""]
[422,null,null,null,null,null,null,null,null,null,null,""]
[423,null,null,null,null,null,null,null,null,null,null,""]
[424,null,null,null,null,null,null,null,null,null,null,""]
[425,null,null,null,null,null,null,null,null,null,null,""]
[426,null,null,null,null,null,null,null,null,null,null,""]
[427,null,null,null,null,null,null,null,null,null,null,""]
[428,null,null,null,null,null,null,null,null,null,null,""]
[429,null,null,null,null,null,null,null,null,null,null,""]
[430,null,null,null,null,null,null,null,null,null,null,""]
[431,null,null,null,null,null,null,null,null,null,null,""]
[432,null,null,null,null,null,null,null,null,null,null,""]
[433,null,null,null,null,null,null,null,null,null,null,""]
[434,null,null,null,null,null,null,null,null,null,null,""]
[435,null,null,null,null,null,null,null,null,null,null,""]
[436,null,null,null,null,null,null,null,null,null,null,""]
[437,null,null,null,null,null,null,null,null,null,null,""]
[438,null,null,null,null,null,null,null,null,null,null,""]
[439,null,null,null,null,null,null,null,null,null,null,""]
[440,null,null,null,null,null,null,null,null,null,null,""]
[441,null,null,null,null,null,null,null,null,null,null,""]
[442,null,null,null,null,null,null,null,null,null,null,""]
[443,null,null,null,null,null,null,null,null,null,null,""]
[444,null,null,null,null,null,null,null,null,null,null,""]
[445,null,null,null,null,null,null,null,null,null,null,""]
[446,null,null,null,null,null,null,null,null,null,null,""]
[447,null,null,null,null,null,null,null,null,null,null,""]
[448,null,null,null,null,null,null,null,null,null,null,""]
[449,null,null,null,null,null,null,null,null,null,null,{"$f":"IF(AND(I459=\"\",J459=\"\"),\"\",L458+I459-J459-K459)","v":""}]
[450,null,null,null,null,null,null,null,null,null,null,""]
[451,null,null,null,null,null,null,null,null,null,null,""]
[452,null,null,null,null,null,null,null,null,null,null,""]
[453,null,null,null,null,null,null,null,null,null,null,""]
[454,null,null,null,null,null,null,null,null,null,null,""]
[455,null,null,null,null,null,null,null,null,null,null,""]
[456,null,null,null,null,null,null,null,null,null,null,""]
[457,null,null,null,null,null,null,null,null,null,null,""]
[458,null,null,null,null,null,null,null,null,null,null,""]
[459,null,null,null,null,null,null,null,null,null,null,""]
[460,null,null,null,null,null,null,null,null,null,null,""]
[461,null,null,null,null,null,null,null,null,null,null,""]
[462,null,null,null,null,null,null,null,null,null,null,""]
[463,null,null,null,null,null,null,null,null,null,null,""]
[464,null,null,null,null,null,null,null,null,null,null,""]
[465,null,null,null,null,null,null,null,null,null,null,""]
[466,null,null,null,null,null,null,null,null,null,null,""]
[467,null,null,null,null,null,null,null,null,null,null,""]
[468,null,null,null,null,null,null,null,null,null,null,""]
[469,null,null,null,null,null,null,null,null,null,null,""]
[470,null,null,null,null,null,null,null,null,null,null,""]
[471,null,null,null,null,null,null,null,null,null,null,""]
[472,null,null,null,null,null,null,null,null,null,null,""]
[473,null,null,null,null,null,null,null,null,null,null,""]
[474,null,null,null,null,null,null,null,null,null,null,""]
[475,null,null,null,null,null,null,null,null,null,null,""]
[476,null,null,null,null,null,null,null,null,null,null,""]
[477,null,null,null,null,null,null,null,null,null,null,""]
[478,null,null,null,null,null,null,null,null,null,null,""]
[479,null,null,null,null,null,null,null,null,null,null,""]
[480,null,null,null,null,null,null,null,null,null,null,""]
[481,null,null,null,null,null,null,null,null,null,null,""]
[482,null,null,null,null,null,null,null,null,null,null,""]
[483,null,null,null,null,null,null,null,null,null,null,""]
[484,null,null,null,null,null,null,null,null,null,null,""]
[485,null,null,null,null,null,null,null,null,null,null,""]
[486,null,null,null,null,null,null,null,null,null,null,""]
[487,null,null,null,null,null,null,null,null,null,null,""]
[488,null,null,null,null,null,null,null,null,null,null,""]
[489,null,null,null,null,null,null,null,null,null,null,""]
[490,null,null,null,null,null,null,null,null,null,null,""]
[491,null,null,null,null,null,null,null,null,null,null,""]
[492,null,null,null,null,null,null,null,null,null,null,""]
[493,null,null,null,null,null,null,null,null,null,null,""]
[494,null,null,null,null,null,null,null,null,null,null,""]
[495,null,null,null,null,null,null,null,null,null,null,""]
[496,null,null,null,null,null,null,null,null,null,null,""]
[497,null,null,null,null,null,null,null,null,null,null,""]
[498,null,null,null,null,null,null,null,null,null,null,""]
[499,null,null,null,null,null,null,null,null,null,null,""]
[500,null,null,null,null,null,null,null,null,null,null,""]
[501,null,null,null,null,null,null,null,null,null,null,""]
[502,null,null,null,null,null,null,null,null,null,null,""]
[503,null,null,null,null,null,null,null,null,null,null,""]
[504,null,null,null,null,null,null,null,null,null,null,""]
[505,null,null,null,null,null,null,null,null,null,null,""]
[506,null,null,null,null,null,null,null,null,null,null,""]
[507,null,null,null,null,null,null,null,null,null,null,""]
[508,null,null,null,null,null,null,null,null,null,null,""]
[509,null,null,null,null,null,null,null,null,null,null,""]
[510,null,null,null,null,null,null,null,null,null,null,""]
[511,null,null,null,null,null,null,null,null,null,null,""]
[512,null,null,null,null,null,null,null,null,null,null,""]
[513,null,null,null,null,null,null,null,null,null,null,{"$f":"IF(AND(I523=\"\",J523=\"\"),\"\",L522+I523-J523-K523)","v":""}]
[514,null,null,null,null,null,null,null,null,null,null,""]
[515,null,null,null,null,null,null,null,null,null,null,""]
[516,null,null,null,null,null,null,null,null,null,null,""]
[517,null,null,null,null,null,null,null,null,null,null,""]
[518,null,null,null,null,null,null,null,null,null,null,""]
[519,null,null,null,null,null,null,null,null,null,null,""]
[520,null,null,null,null,null,null,null,null,null,null,""]
[521,null,null,null,null,null,null,null,null,null,null,""]
[522,null,null,null,null,null,null,null,null,null,null,""]
[523,null,null,null,null,null,null,null,null,null,null,""]
[524,null,null,null,null,null,null,null,null,null,null,""]
[525,null,null,null,null,null,null,null,null,null,null,""]
[526,null,null,null,null,null,null,null,null,null,null,""]
[527,null,null,null,null,null,null,null,null,null,null,""]
[528,null,null,null,null,null,null,null,null,null,null,""]
[529,null,null,null,null,null,null,null,null,null,null,""]
[530,null,null,null,null,null,null,null,null,null,null,""]
[531,null,null,null,null,null,null,null,null,null,null,""]
[532,null,null,null,null,null,null,null,null,null,null,""]
[533,null,null,null,null,null,null,null,null,null,null,""]
[534,null,null,null,null,null,null,null,null,null,null,""]
[535,null,null,null,null,null,null,null,null,null,null,""]
[536,null,null,null,null,null,null,null,null,null,null,""]
[537,null,null,null,null,null,null,null,null,null,null,""]
[538,null,null,null,null,null,null,null,null,null,null,""]
[539,null,null,null,null,null,null,null,null,null,null,""]
[540,null,null,null,null,null,null,null,null,null,null,""]
[541,null,null,null,null,null,null,null,null,null,null,""]
[542,null,null,null,null,null,null,null,null,null,null,""]
[543,null,null,null,null,null,null,null,null,null,null,""]
[544,null,null,null,null,null,null,null,null,null,null,""]
[545,null,null,null,null,null,null,null,null,null,null,""]
[546,null,null,null,null,null,null,null,null,null,null,""]
[547,null,null,null,null,null,null,null,null,null,null,""]
[548,null,null,null,null,null,null,null,null,null,null,""]
[549,null,null,null,null,null,null,null,null,null,null,""]
[550,null,null,null,null,null,null,null,null,null,null,""]
[551,null,null,null,null,null,null,null,null,null,null,""]
[552,null,null,null,null,null,null,null,null,null,null,""]
[553,null,null,null,null,null,null,null,null,null,null,""]
[554,null,null,null,null,null,null,null,null,null,null,""]
[555,null,null,null,null,null,null,null,null,null,null,""]
[556,null,null,null,null,null,null,null,null,null,null,""]
[557,null,null,null,null,null,null,null,null,null,null,""]
[558,null,null,null,null,null,null,null,null,null,null,""]
[559,null,null,null,null,null,null,null,null,null,null,""]
[560,null,null,null,null,null,null,null,null,null,null,""]
[561,null,null,null,null,null,null,null,null,null,null,""]
[562,null,null,null,null,null,null,null,null,null,null,""]
[563,null,null,null,null,null,null,null,null,null,null,""]
[564,null,null,null,null,null,null,null,null,null,null,""]
[565,null,null,null,null,null,null,null,null,null,null,""]
[566,null,null,null,null,null,null,null,null,null,null,""]
[567,null,null,null,null,null,null,null,null,null,null,""]
[568,null,null,null,null,null,null,null,null,null,null,""]
[569,null,null,null,null,null,null,null,null,null,null,""]
[570,null,null,null,null,null,null,null,null,null,null,""]
[571,null,null,null,null,null,null,null,null,null,null,""]
[572,null,null,null,null,null,null,null,null,null,null,""]
[573,null,null,null,null,null,null,null,null,null,null,""]
[574,null,null,null,null,null,null,null,null,null,null,""]
[575,null,null,null,null,null,null,null,null,null,null,""]
[576,null,null,null,null,null,null,null,null,null,null,""]
[577,null,null,null,null,null,null,null,null,null,null,{"$f":"IF(AND(I587=\"\",J587=\"\"),\"\",L586+I587-J587-K587)","v":""}]
[578,null,null,null,null,null,null,null,null,null,null,""]
[579,null,null,null,null,null,null,null,null,null,null,""]
[580,null,null,null,null,null,null,null,null,null,null,""]
[581,null,null,null,null,null,null,null,null,null,null,""]
[582,null,null,null,null,null,null,null,null,null,null,""]
[583,null,null,null,null,null,null,null,null,null,null,""]
[584,null,null,null,null,null,null,null,null,null,null,""]
[585,null,null,null,null,null,null,null,null,null,null,""]
[586,null,null,null,null,null,null,null,null,null,null,""]
[587,null,null,null,null,null,null,null,null,null,null,""]
[588,null,null,null,null,null,null,null,null,null,null,""]
[589,null,null,null,null,null,null,null,null,null,null,""]
[590,null,null,null,null,null,null,null,null,null,null,""]
[591,null,null,null,null,null,null,null,null,null,null,""]
[592,null,null,null,null,null,null,null,null,null,null,""]
[593,null,null,null,null,null,null,null,null,null,null,""]
[594,null,null,null,null,null,null,null,null,null,null,""]
[595,null,null,null,null,null,null,null,null,null,null,""]
[596,null,null,null,null,null,null,null,null,null,null,""]
[597,null,null,null,null,null,null,null,null,null,null,""]
[598,null,null,null,null,null,null,null,null,null,null,""]
[599,null,null,null,null,null,null,null,null,null,null,""]
[600,null,null,null,null,null,null,null,null,null,null,""]
[601,null,null,null,null,null,null,null,null,null,null,""]
[602,null,null,null,null,null,null,null,null,null,null,""]
[603,null,null,null,null,null,null,null,null,null,null,""]
[604,null,null,null,null,null,null,null,null,null,null,""]
[605,null,null,null,null,null,null,null,null,null,null,""]
[606,null,null,null,null,null,null,null,null,null,null,""]
[607,null,null,null,null,null,null,null,null,null,null,""]
[608,null,null,null,null,null,null,null,null,null,null,""]
[609,null,null,null,null,null,null,null,null,null,null,""]
[610,null,null,null,null,null,null,null,null,null,null,""]
[611,null,null,null,null,null,null,null,null,null,null,""]
[612,null,null,null,null,null,null,null,null,null,null,""]
[613,null,null,null,null,null,null,null,null,null,null,""]
[614,null,null,null,null,null,null,null,null,null,null,""]
[615,null,null,null,null,null,null,null,null,null,null,""]
[616,null,null,null,null,null,null,null,null,null,null,""]
[617,null,null,null,null,null,null,null,null,null,null,""]
[618,null,null,null,null,null,null,null,null,null,null,""]
[619,null,null,null,null,null,null,null,null,null,null,""]
[620,null,null,null,null,null,null,null,null,null,null,""]
[621,null,null,null,null,null,null,null,null,null,null,""]
[622,null,null,null,null,null,null,null,null,null,null,""]
[623,null,null,null,null,null,null,null,null,null,null,""]
[624,null,null,null,null,null,null,null,null,null,null,""]
[625,null,null,null,null,null,null,null,null,null,null,""]
[626,null,null,null,null,null,null,null,null,null,null,""]
[627,null,null,null,null,null,null,null,null,null,null,""]
[628,null,null,null,null,null,null,null,null,null,null,""]
[629,null,null,null,null,null,null,null,null,null,null,""]
[630,null,null,null,null,null,null,null,null,null,null,""]
[631,null,null,null,null,null,null,null,null,null,null,""]
[632,null,null,null,null,null,null,null,null,null,null,""]
[633,null,null,null,null,null,null,null,null,null,null,""]
[634,null,null,null,null,null,null,null,null,null,null,""]
[635,null,null,null,null,null,null,null,null,null,null,""]
[636,null,null,null,null,null,null,null,null,null,null,""]
[637,null,null,null,null,null,null,null,null,null,null,""]
[638,null,null,null,null,null,null,null,null,null,null,""]
[639,null,null,null,null,null,null,null,null,null,null,""]
[640,null,null,null,null,null,null,null,null,null,null,""]
[641,null,null,null,null,null,null,null,null,null,null,{"$f":"IF(AND(I651=\"\",J651=\"\"),\"\",L650+I651-J651-K651)","v":""}]
[642,null,null,null,null,null,null,null,null,null,null,""]
[643,null,null,null,null,null,null,null,null,null,null,""]
[644,null,null,null,null,null,null,null,null,null,null,""]
[645,null,null,null,null,null,null,null,null,null,null,""]
[646,null,null,null,null,null,null,null,null,null,null,""]
[647,null,null,null,null,null,null,null,null,null,null,""]
[648,null,null,null,null,null,null,null,null,null,null,""]
[649,null,null,null,null,null,null,null,null,null,null,""]
[650,null,null,null,null,null,null,null,null,null,null,""]
[651,null,null,null,null,null,null,null,null,null,null,""]
[652,null,null,null,null,null,null,null,null,null,null,""]
[653,null,null,null,null,null,null,null,null,null,null,""]
[654,null,null,null,null,null,null,null,null,null,null,""]
[655,null,null,null,null,null,null,null,null,null,null,""]
[656,null,null,null,null,null,null,null,null,null,null,""]
[657,null,null,null,null,null,null,null,null,null,null,""]
[658,null,null,null,null,null,null,null,null,null,null,""]
[659,null,null,null,null,null,null,null,null,null,null,""]
[660,null,null,null,null,null,null,null,null,null,null,""]
[661,null,null,null,null,null,null,null,null,null,null,""]
[662,null,null,null,null,null,null,null,null,null,null,""]
[663,null,null,null,null,null,null,null,null,null,null,""]
[664,null,null,null,null,null,null,null,null,null,null,""]
[665,null,null,null,null,null,null,null,null,null,null,""]
[666,null,null,null,null,null,null,null,null,null,null,""]
[667,null,null,null,null,null,null,null,null,null,null,""]
[668,null,null,null,null,null,null,null,null,null,null,""]
[669,null,null,null,null,null,null,null,null,null,null,""]
[670,null,null,null,null,null,null,null,null,null,null,""]
[671,null,null,null,null,null,null,null,null,null,null,""]
[672,null,null,null,null,null,null,null,null,null,null,""]
[673,null,null,null,null,null,null,null,null,null,null,""]
[674,null,null,null,null,null,null,null,null,null,null,""]
[675,null,null,null,null,null,null,null,null,null,null,""]
[676,null,null,null,null,null,null,null,null,null,null,""]
[677,null,null,null,null,null,null,null,null,null,null,""]
[678,null,null,null,null,null,null,null,null,null,null,""]
[679,null,null,null,null,null,null,null,null,null,null,""]
[680,null,null,null,null,null,null,null,null,null,null,""]
[681,null,null,null,null,null,null,null,null,null,null,""]
[682,null,null,null,null,null,null,null,null,null,null,""]
[683,null,null,null,null,null,null,null,null,null,null,""]
[684,null,null,null,null,null,null,null,null,null,null,""]
[685,null,null,null,null,null,null,null,null,null,null,""]
[686,null,null,null,null,null,null,null,null,null,null,""]
[687,null,null,null,null,null,null,null,null,null,null,""]
[688,null,null,null,null,null,null,null,null,null,null,""]
[689,null,null,null,null,null,null,null,null,null,null,""]
[690,null,null,null,null,null,null,null,null,null,null,""]
[691,null,null,null,null,null,null,null,null,null,null,""]
[692,null,null,null,null,null,null,null,null,null,null,""]
[693,null,null,null,null,null,null,null,null,null,null,""]
[694,null,null,null,null,null,null,null,null,null,null,""]
[695,null,null,null,null,null,null,null,null,null,null,""]
[696,null,null,null,null,null,null,null,null,null,null,""]
[697,null,null,null,null,null,null,null,null,null,null,""]
[698,null,null,null,null,null,null,null,null,null,null,""]
[699,null,null,null,null,null,null,null,null,null,null,""]
[700,null,null,null,null,null,null,null,null,null,null,""]
[701,null,null,null,null,null,null,null,null,null,null,""]
[702,null,null,null,null,null,null,null,null,null,null,""]
[703,null,null,null,null,null,null,null,null,null,null,""]
[704,null,null,null,null,null,null,null,null,null,null,""]
[705,null,null,null,null,null,null,null,null,null,null,{"$f":"IF(AND(I715=\"\",J715=\"\"),\"\",L714+I715-J715-K715)","v":""}]
[706,null,null,null,null,null,null,null,null,null,null,""]
[707,null,null,null,null,null,null,null,null,null,null,""]
[708,null,null,null,null,null,null,null,null,null,null,""]
[709,null,null,null,null,null,null,null,null,null,null,""]
[710,null,null,null,null,null,null,null,null,null,null,""]
[711,null,null,null,null,null,null,null,null,null,null,""]
[712,null,null,null,null,null,null,null,null,null,null,""]
[713,null,null,null,null,null,null,null,null,null,null,""]
[714,null,null,null,null,null,null,null,null,null,null,""]
[715,null,null,null,null,null,null,null,null,null,null,""]
[716,null,null,null,null,null,null,null,null,null,null,""]
[717,null,null,null,null,null,null,null,null,null,null,""]
[718,null,null,null,null,null,null,null,null,null,null,""]
[719,null,null,null,null,null,null,null,null,null,null,""]
[720,null,null,null,null,null,null,null,null,null,null,""]
[721,null,null,null,null,null,null,null,null,null,null,""]
[722,null,null,null,null,null,null,null,null,null,null,""]
[723,null,null,null,null,null,null,null,null,null,null,""]
[724,null,null,null,null,null,null,null,null,null,null,""]
[725,null,null,null,null,null,null,null,null,null,null,""]
[726,null,null,null,null,null,null,null,null,null,null,""]
[727,null,null,null,null,null,null,null,null,null,null,""]
[728,null,null,null,null,null,null,null,null,null,null,""]
[729,null,null,null,null,null,null,null,null,null,null,""]
[730,null,null,null,null,null,null,null,null,null,null,""]
[731,null,null,null,null,null,null,null,null,null,null,""]
[732,null,null,null,null,null,null,null,null,null,null,""]
[733,null,null,null,null,null,null,null,null,null,null,""]
[734,null,null,null,null,null,null,null,null,null,null,""]
[735,null,null,null,null,null,null,null,null,null,null,""]
[736,null,null,null,null,null,null,null,null,null,null,""]
[737,null,null,null,null,null,null,null,null,null,null,""]
[738,null,null,null,null,null,null,null,null,null,null,""]
[739,null,null,null,null,null,null,null,null,null,null,""]
[740,null,null,null,null,null,null,null,null,null,null,""]
[741,null,null,null,null,null,null,null,null,null,null,""]
[742,null,null,null,null,null,null,null,null,null,null,""]
[743,null,null,null,null,null,null,null,null,null,null,""]
[744,null,null,null,null,null,null,null,null,null,null,""]
[745,null,null,null,null,null,null,null,null,null,null,""]
[746,null,null,null,null,null,null,null,null,null,null,""]
[747,null,null,null,null,null,null,null,null,null,null,""]
[748,null,null,null,null,null,null,null,null,null,null,""]
[749,null,null,null,null,null,null,null,null,null,null,""]
[750,null,null,null,null,null,null,null,null,null,null,""]
[751,null,null,null,null,null,null,null,null,null,null,""]
[752,null,null,null,null,null,null,null,null,null,null,""]
[753,null,null,null,null,null,null,null,null,null,null,""]
[754,null,null,null,null,null,null,null,null,null,null,""]
[755,null,null,null,null,null,null,null,null,null,null,""]
[756,null,null,null,null,null,null,null,null,null,null,""]
[757,null,null,null,null,null,null,null,null,null,null,""]
[758,null,null,null,null,null,null,null,null,null,null,""]
[759,null,null,null,null,null,null,null,null,null,null,""]
[760,null,null,null,null,null,null,null,null,null,null,""]
[761,null,null,null,null,null,null,null,null,null,null,""]
[762,null,null,null,null,null,null,null,null,null,null,""]
[763,null,null,null,null,null,null,null,null,null,null,""]
[764,null,null,null,null,null,null,null,null,null,null,""]
[765,null,null,null,null,null,null,null,null,null,null,""]
[766,null,null,null,null,null,null,null,null,null,null,""]
[767,null,null,null,null,null,null,null,null,null,null,""]
[768,null,null,null,null,null,null,null,null,null,null,""]
[769,null,null,null,null,null,null,null,null,null,null,{"$f":"IF(AND(I779=\"\",J779=\"\"),\"\",L778+I779-J779-K779)","v":""}]
[770,null,null,null,null,null,null,null,null,null,null,""]
[771,null,null,null,null,null,null,null,null,null,null,""]
[772,null,null,null,null,null,null,null,null,null,null,""]
[773,null,null,null,null,null,null,null,null,null,null,""]
[774,null,null,null,null,null,null,null,null,null,null,""]
[775,null,null,null,null,null,null,null,null,null,null,""]
[776,null,null,null,null,null,null,null,null,null,null,""]
[777,null,null,null,null,null,null,null,null,null,null,""]
[778,null,null,null,null,null,null,null,null,null,null,""]
[779,null,null,null,null,null,null,null,null,null,null,""]
[780,null,null,null,null,null,null,null,null,null,null,""]
[781,null,null,null,null,null,null,null,null,null,null,""]
[782,null,null,null,null,null,null,null,null,null,null,""]
[783,null,null,null,null,null,null,null,null,null,null,""]
[784,null,null,null,null,null,null,null,null,null,null,""]
[785,null,null,null,null,null,null,null,null,null,null,""]
[786,null,null,null,null,null,null,null,null,null,null,""]
[787,null,null,null,null,null,null,null,null,null,null,""]
[788,null,null,null,null,null,null,null,null,null,null,""]
[789,null,null,null,null,null,null,null,null,null,null,""]
[790,null,null,null,null,null,null,null,null,null,null,""]
[791,null,null,null,null,null,null,null,null,null,null,""]
[792,null,null,null,null,null,null,null,null,null,null,""]
[793,null,null,null,null,null,null,null,null,null,null,""]
[794,null,null,null,null,null,null,null,null,null,null,""]
[795,null,null,null,null,null,null,null,null,null,null,""]
[796,null,null,null,null,null,null,null,null,null,null,""]
[797,null,null,null,null,null,null,null,null,null,null,""]
[798,null,null,null,null,null,null,null,null,null,null,""]
[799,null,null,null,null,null,null,null,null,null,null,""]
[800,null,null,null,null,null,null,null,null,null,null,""]
[801,null,null,null,null,null,null,null,null,null,null,""]
[802,null,null,null,null,null,null,null,null,null,null,""]
[803,null,null,null,null,null,null,null,null,null,null,""]
[804,null,null,null,null,null,null,null,null,null,null,""]
[805,null,null,null,null,null,null,null,null,null,null,""]
[806,null,null,null,null,null,null,null,null,null,null,""]
[807,null,null,null,null,null,null,null,null,null,null,""]
[808,null,null,null,null,null,null,null,null,null,null,""]
[809,null,null,null,null,null,null,null,null,null,null,""]
[810,null,null,null,null,null,null,null,null,null,null,""]
[811,null,null,null,null,null,null,null,null,null,null,""]
[812,null,null,null,null,null,null,null,null,null,null,""]
[813,null,null,null,null,null,null,null,null,null,null,""]
[814,null,null,null,null,null,null,null,null,null,null,""]
[815,null,null,null,null,null,null,null,null,null,null,""]
[816,null,null,null,null,null,null,null,null,null,null,""]
[817,null,null,null,null,null,null,null,null,null,null,""]
[818,null,null,null,null,null,null,null,null,null,null,""]
[819,null,null,null,null,null,null,null,null,null,null,""]
[820,null,null,null,null,null,null,null,null,null,null,""]
[821,null,null,null,null,null,null,null,null,null,null,""]
[822,null,null,null,null,null,null,null,null,null,null,""]
[823,null,null,null,null,null,null,null,null,null,null,""]
[824,null,null,null,null,null,null,null,null,null,null,""]
[825,null,null,null,null,null,null,null,null,null,null,""]
[826,null,null,null,null,null,null,null,null,null,null,""]
[827,null,null,null,null,null,null,null,null,null,null,""]
[828,null,null,null,null,null,null,null,null,null,null,""]
[829,null,null,null,null,null,null,null,null,null,null,""]
[830,null,null,null,null,null,null,null,null,null,null,""]
[831,null,null,null,null,null,null,null,null,null,null,""]
[832,null,null,null,null,null,null,null,null,null,null,""]
[833,null,null,null,null,null,null,null,null,null,null,{"$f":"IF(AND(I843=\"\",J843=\"\"),\"\",L842+I843-J843-K843)","v":""}]
[834,null,null,null,null,null,null,null,null,null,null,""]
[835,null,null,null,null,null,null,null,null,null,null,""]
[836,null,null,null,null,null,null,null,null,null,null,""]
[837,null,null,null,null,null,null,null,null,null,null,""]
[838,null,null,null,null,null,null,null,null,null,null,""]
[839,null,null,null,null,null,null,null,null,null,null,""]
[840,null,null,null,null,null,null,null,null,null,null,""]
[841,null,null,null,null,null,null,null,null,null,null,""]
[842,null,null,null,null,null,null,null,null,null,null,""]
[843,null,null,null,null,null,null,null,null,null,null,""]
[844,null,null,null,null,null,null,null,null,null,null,""]
[845,null,null,null,null,null,null,null,null,null,null,""]
[846,null,null,null,null,null,null,null,null,null,null,""]
[847,null,null,null,null,null,null,null,null,null,null,""]
[848,null,null,null,null,null,null,null,null,null,null,""]
[849,null,null,null,null,null,null,null,null,null,null,""]
[850,null,null,null,null,null,null,null,null,null,null,""]
[851,null,null,null,null,null,null,null,null,null,null,""]
[852,null,null,null,null,null,null,null,null,null,null,""]
[853,null,null,null,null,null,null,null,null,null,null,""]
[854,null,null,null,null,null,null,null,null,null,null,""]
[855,null,null,null,null,null,null,null,null,null,null,""]
[856,null,null,null,null,null,null,null,null,null,null,""]
[857,null,null,null,null,null,null,null,null,null,null,""]
[858,null,null,null,null,null,null,null,null,null,null,""]
[859,null,null,null,null,null,null,null,null,null,null,""]
[860,null,null,null,null,null,null,null,null,null,null,""]
[861,null,null,null,null,null,null,null,null,null,null,""]
[862,null,null,null,null,null,null,null,null,null,null,""]
[863,null,null,null,null,null,null,null,null,null,null,""]
[864,null,null,null,null,null,null,null,null,null,null,""]
[865,null,null,null,null,null,null,null,null,null,null,""]
[866,null,null,null,null,null,null,null,null,null,null,""]
[867,null,null,null,null,null,null,null,null,null,null,""]
[868,null,null,null,null,null,null,null,null,null,null,""]
[869,null,null,null,null,null,null,null,null,null,null,""]
[870,null,null,null,null,null,null,null,null,null,null,""]
[871,null,null,null,null,null,null,null,null,null,null,""]
[872,null,null,null,null,null,null,null,null,null,null,""]
[873,null,null,null,null,null,null,null,null,null,null,""]
[874,null,null,null,null,null,null,null,null,null,null,""]
[875,null,null,null,null,null,null,null,null,null,null,""]
[876,null,null,null,null,null,null,null,null,null,null,""]
[877,null,null,null,null,null,null,null,null,null,null,""]
[878,null,null,null,null,null,null,null,null,null,null,""]
[879,null,null,null,null,null,null,null,null,null,null,""]
[880,null,null,null,null,null,null,null,null,null,null,""]
[881,null,null,null,null,null,null,null,null,null,null,""]
[882,null,null,null,null,null,null,null,null,null,null,""]
[883,null,null,null,null,null,null,null,null,null,null,""]
[884,null,null,null,null,null,null,null,null,null,null,""]
[885,null,null,null,null,null,null,null,null,null,null,""]
[886,null,null,null,null,null,null,null,null,null,null,""]
[887,null,null,null,null,null,null,null,null,null,null,""]
[888,null,null,null,null,null,null,null,null,null,null,""]
[889,null,null,null,null,null,null,null,null,null,null,""]
[890,null,null,null,null,null,null,null,null,null,null,""]
[891,null,null,null,null,null,null,null,null,null,null,""]
[892,null,null,null,null,null,null,null,null,null,null,""]
[893,null,null,null,null,null,null,null,null,null,null,""]
[894,null,null,null,null,null,null,null,null,null,null,""]
[895,null,null,null,null,null,null,null,null,null,null,""]
[896,null,null,null,null,null,null,null,null,null,null,""]
[897,null,null,null,null,null,null,null,null,null,null,{"$f":"IF(AND(I907=\"\",J907=\"\"),\"\",L906+I907-J907-K907)","v":""}]
[898,null,null,null,null,null,null,null,null,null,null,""]
[899,null,null,null,null,null,null,null,null,null,null,""]
[900,null,null,null,null,null,null,null,null,null,null,""]
[901,null,null,null,null,null,null,null,null,null,null,""]
[902,null,null,null,null,null,null,null,null,null,null,""]
[903,null,null,null,null,null,null,null,null,null,null,""]
[904,null,null,null,null,null,null,null,null,null,null,""]
[905,null,null,null,null,null,null,null,null,null,null,""]
[906,null,null,null,null,null,null,null,null,null,null,""]
[907,null,null,null,null,null,null,null,null,null,null,""]
[908,null,null,null,null,null,null,null,null,null,null,""]
[909,null,null,null,null,null,null,null,null,null,null,""]
[910,null,null,null,null,null,null,null,null,null,null,""]
[911,null,null,null,null,null,null,null,null,null,null,""]
[912,null,null,null,null,null,null,null,null,null,null,""]
[913,null,null,null,null,null,null,null,null,null,null,""]
[914,null,null,null,null,null,null,null,null,null,null,""]
[915,null,null,null,null,null,null,null,null,null,null,""]
[916,null,null,null,null,null,null,null,null,null,null,""]
[917,null,null,null,null,null,null,null,null,null,null,""]
[918,null,null,null,null,null,null,null,null,null,null,""]
[919,null,null,null,null,null,null,null,null,null,null,""]
[920,null,null,null,null,null,null,null,null,null,null,""]
[921,null,null,null,null,null,null,null,null,null,null,""]
[922,null,null,null,null,null,null,null,null,null,null,""]
[923,null,null,null,null,null,null,null,null,null,null,""]
[924,null,null,null,null,null,null,null,null,null,null,""]
[925,null,null,null,null,null,null,null,null,null,null,""]
[926,null,null,null,null,null,null,null,null,null,null,""]
[927,null,null,null,null,null,null,null,null,null,null,""]
[928,null,null,null,null,null,null,null,null,null,null,""]
[929,null,null,null,null,null,null,null,null,null,null,""]
[930,null,null,null,null,null,null,null,null,null,null,""]
[931,null,null,null,null,null,null,null,null,null,null,""]
[932,null,null,null,null,null,null,null,null,null,null,""]
[933,null,null,null,null,null,null,null,null,null,null,""]
[934,null,null,null,null,null,null,null,null,null,null,""]
[935,null,null,null,null,null,null,null,null,null,null,""]
[936,null,null,null,null,null,null,null,null,null,null,""]
[937,null,null,null,null,null,null,null,null,null,null,""]
[938,null,null,null,null,null,null,null,null,null,null,""]
[939,null,null,null,null,null,null,null,null,null,null,""]
[940,null,null,null,null,null,null,null,null,null,null,""]
[941,null,null,null,null,null,null,null,null,null,null,""]
[942,null,null,null,null,null,null,null,null,null,null,""]
[943,null,null,null,null,null,null,null,null,null,null,""]
[944,null,null,null,null,null,null,null,null,null,null,""]
[945,null,null,null,null,null,null,null,null,null,null,""]
[946,null,null,null,null,null,null,null,null,null,null,""]
[947,null,null,null,null,null,null,null,null,null,null,""]
[948,null,null,null,null,null,null,null,null,null,null,""]
[949,null,null,null,null,null,null,null,null,null,null,""]
[950,null,null,null,null,null,null,null,null,null,null,""]
[951,null,null,null,null,null,null,null,null,null,null,""]
[952,null,null,null,null,null,null,null,null,null,null,""]
[953,null,null,null,null,null,null,null,null,null,null,""]
[954,null,null,null,null,null,null,null,null,null,null,""]
[955,null,null,null,null,null,null,null,null,null,null,""]
[956,null,null,null,null,null,null,null,null,null,null,""]
[957,null,null,null,null,null,null,null,null,null,null,""]
[958,null,null,null,null,null,null,null,null,null,null,""]
[959,null,null,null,null,null,null,null,null,null,null,""]
[960,null,null,null,null,null,null,null,null,null,null,""]
[961,null,null,null,null,null,null,null,null,null,null,{"$f":"IF(AND(I971=\"\",J971=\"\"),\"\",L970+I971-J971-K971)","v":""}]
[962,null,null,null,null,null,null,null,null,null,null,""]
[963,null,null,null,null,null,null,null,null,null,null,""]
[964,null,null,null,null,null,null,null,null,null,null,""]
[965,null,null,null,null,null,null,null,null,null,null,""]
[966,null,null,null,null,null,null,null,null,null,null,""]
[967,null,null,null,null,null,null,null,null,null,null,""]
[968,null,null,null,null,null,null,null,null,null,null,""]
[969,null,null,null,null,null,null,null,null,null,null,""]
[970,null,null,null,null,null,null,null,null,null,null,""]
[971,null,null,null,null,null,null,null,null,null,null,""]
[972,null,null,null,null,null,null,null,null,null,null,""]
[973,null,null,null,null,null,null,null,null,null,null,""]
[974,null,null,null,null,null,null,null,null,null,null,""]
[975,null,null,null,null,null,null,null,null,null,null,""]
[976,null,null,null,null,null,null,null,null,null,null,""]
[977,null,null,null,null,null,null,null,null,null,null,""]
[978,null,null,null,null,null,null,null,null,null,null,""]
[979,null,null,null,null,null,null,null,null,null,null,""]
[980,null,null,null,null,null,null,null,null,null,null,""]
[981,null,null,null,null,null,null,null,null,null,null,""]
[982,null,null,null,null,null,null,null,null,null,null,""]
[983,null,null,null,null,null,null,null,null,null,null,""]
[984,null,null,null,null,null,null,null,null,null,null,""]
[985,null,null,null,null,null,null,null,null,null,null,""]
[986,null,null,null,null,null,null,null,null,null,null,""]
[987,null,null,null,null,null,null,null,null,null,null,""]
[988,null,null,null,null,null,null,null,null,null,null,""]
[989,null,null,null,null,null,null,null,null,null,null,""]
[990,null,null,null,null,null,null,null,null,null,null,""]
[991,null,null,null,null,null,null,null,null,null,null,""]
[992,null,null,null,null,null,null,null,null,null,null,""]
[993,null,null,null,null,null,null,null,null,null,null,""]
[994,null,null,null,null,null,null,null,null,null,null,""]
[995,null,null,null,null,null,null,null,null,null,null,""]
[996,null,null,null,null,null,null,null,null,null,null,""]
[997,null,null,null,null,null,null,null,null,null,null,""]
[998,null,null,null,null,null,null,null,null,null,null,""]
[999,null,null,null,null,null,null,null,null,null,null,""]
[1000,null,null,null,null,null,null,null,null,null,null,""]
[null,null,null,null,null,null,null,null,{"$f":"SUM(I11:I1010)","v":0},{"$f":"SUM(J11:J1010)","v":0},{"$f":"SUM(K11:K1010)","v":0}]